Workbook

Sheet Rundholzpreise (hidden)
A1: Rundholzpreise
A2: (Durchschnittspreise, mengengewichtet, frei Waldstrasse)
A4: Sortiment | E4: Gewichtung | F4: 2007-1 | G4: 2007-2 | H4: 2007-3 | I4: 2007-4 | J4: 2007-5 | K4: 2007-6 | L4: 2008-1 | M4: 2008-2 | N4: 2008-3 | O4: 2008-4 | P4: 2008-5 | Q4: 2008-6 | R4: 2009-1 | S4: 2009-2 | T4: 2009-3 | U4: 2009-4 | V4: 2009-5 | W4: 2009-6 | X4: 2010-1 | Y4: 2010-2 | Z4: 2010-3 | AA4: 2010-4 | AB4: 2010-5 | AC4: 2010-6 | AD4: 2011-1 | AE4: 2011-2 | AF4: 2011-3 | AG4: 2011-4 | AH4: 2011-5 | AI4: 2011-6 | AJ4: 2012-1 | AK4: 2012-2 | AL4: 2012-3 | AM4: 2012-4 | AN4: 2012-5 | AO4: 2012-6 | AP4: 2013-1 | AQ4: 2013-2 | AR4: 2013-3 | AS4: 2013-4 | AT4: 2013-5 | AU4: 2013-6 | AV4: 2014-1 | AW4: 2014-2 | AX4: 2014-3 | AY4: 2014-4 | AZ4: 2014-5 | BA4: 2014-6 | BB4: 2015-1 | BC4: 2015-2 | BD4: 2015-3 | BE4: 2015-4 | BF4: 2015-5 | BG4: 2015-6 | BH4: 2016-1 | BI4: 2016-2 | BJ4: 2016-3 | BK4: 2016-4 | BL4: 2016-5 | BM4: 2016-6 | BN4: 2017-1 | BO4: 2017-2 | BP4: 2017-3 | BQ4: 2017-4 | BR4: 2017-5 | BS4: 2017-6 | BT4: 2018-1 | BU4: 2018-2 | BV4: 2018-3 | BW4: 2018-4 | BX4: 2018-5 | BY4: 2018-6 | BZ4: 2019-1 | CA4: 2019-2 | CB4: 2019-3 | CC4: 2019-4 | CD4: 2019-5 | CE4: 2019-6 | CF4: 2020-1 | CG4: 2020-2 | CH4: 2020-3 | CI4: 2020-4 | CJ4: 2020-5 | CK4: 2020-6
E5: HIS Index | F5: [Fr./fm] | G5: [Fr./fm] | H5: [Fr./fm] | I5: [Fr./fm] | J5: [Fr./fm] | K5: [Fr./fm] | L5: [Fr./fm] | M5: [Fr./fm] | N5: [Fr./fm] | O5: [Fr./fm] | P5: [Fr./fm] | Q5: [Fr./fm] | R5: [Fr./fm] | S5: [Fr./fm] | T5: [Fr./fm] | U5: [Fr./fm] | V5: [Fr./fm] | W5: [Fr./fm] | X5: [Fr./fm] | Y5: [Fr./fm] | Z5: [Fr./fm] | AA5: [Fr./fm] | AB5: [Fr./fm] | AC5: [Fr./fm] | AD5: [Fr./Fm] | AE5: [Fr./Fm] | AF5: [Fr./Fm] | AG5: [Fr./Fm] | AH5: [Fr./Fm] | AI5: [Fr./Fm] | AJ5: [Fr./Fm] | AK5: [Fr./Fm] | AL5: [Fr./Fm] | AM5: [Fr./Fm] | AN5: [Fr./Fm] | AO5: [Fr./Fm] | AP5: [Fr./Fm] | AQ5: [Fr./Fm] | AR5: [Fr./Fm] | AS5: [Fr./Fm] | AT5: [Fr./Fm] | AU5: [Fr./Fm] | AV5: [Fr./Fm] | AW5: [Fr./Fm] | AX5: [Fr./Fm] | AY5: [Fr./Fm] | AZ5: [Fr./Fm] | BA5: [Fr./Fm] | BB5: [Fr./Fm] | BC5: [Fr./Fm] | BD5: [Fr./Fm] | BE5: [Fr./Fm] | BF5: [Fr./Fm] | BG5: [Fr./Fm] | BH5: [Fr./Fm] | BI5: [Fr./Fm] | BJ5: [Fr./Fm] | BK5: [Fr./Fm] | BL5: [Fr./Fm] | BM5: [Fr./Fm] | BN5: [Fr./Fm] | BO5: [Fr./Fm] | BP5: [Fr./Fm] | BQ5: [Fr./Fm] | BR5: [Fr./Fm] | BS5: [Fr./Fm] | BT5: [Fr./Fm] | BU5: [Fr./Fm] | BV5: [Fr./Fm] | BW5: [Fr./Fm] | BX5: [Fr./Fm] | BY5: [Fr./Fm] | BZ5: [Fr./Fm] | CA5: [Fr./Fm] | CB5: [Fr./Fm] | CC5: [Fr./Fm] | CD5: [Fr./Fm] | CE5: [Fr./Fm] | CF5: [Fr./Fm] | CG5: [Fr./Fm] | CH5: [Fr./Fm] | CI5: [Fr./Fm] | CJ5: [Fr./Fm] | CK5: [Fr./Fm]
A7: Fichte | B7: L1 | C7: 2 | D7: B | E7: 20 | F7: 114 | G7: 114 | H7: 113 | I7: 110 | J7: 115 | K7: 117 | L7: 120 | M7: 119 | N7: 118 | O7: 115 | P7: 116 | Q7: 115 | R7: 115 | S7: 112 | T7: 108 | U7: 105 | V7: 106 | W7: 108 | X7: 111 | Y7: 108 | Z7: 110 | AA7: 111 | AB7: 116 | AC7: 114 | AD7: 117 | AE7: 115 | AF7: 113 | AG7: 112 | AH7: 106 | AI7: 104 | AJ7: 104 | AK7: 104 | AL7: 103 | AM7: 103 | AN7: 103 | AO7: 102 | AP7: 103 | AQ7: 104 | AR7: 105 | AS7: 106 | AT7: 110 | AU7: 108 | AV7: 108 | AW7: 108 | AX7: 108 | AY7: 109 | AZ7: 108 | BA7: 107 | BB7: 104 | BC7: 98 | BD7: 96 | BE7: 96 | BF7: 96 | BG7: 97 | BH7: 98 | BI7: 98 | BJ7: 97 | BK7: 97 | BL7: 97 | BM7: 97 | BN7: 97 | BO7: 97 | BP7: 96 | BQ7: 99 | BR7: 100 | BS7: 99 | BT7: 98 | BU7: 98 | BV7: 99 | BW7: 99 | BX7: 98 | BY7: 98 | BZ7: 97 | CA7: 97 | CB7: 98 | CC7: 98 | CD7: 97 | CE7: 97 | CF7: 97 | CG7: 97 | CH7: 96 | CI7: 90 | CJ7: 89 | CK7: 89
C8: 2 | D8: C | E8: 10 | F8: 92 | G8: 93 | H8: 90 | I8: 85 | J8: 93 | K8: 95 | L8: 100 | M8: 98 | N8: 99 | O8: 96 | P8: 96 | Q8: 95 | R8: 97 | S8: 94 | T8: 88 | U8: 85 | V8: 84 | W8: 82 | X8: 87 | Y8: 82 | Z8: 86 | AA8: 88 | AB8: 94 | AC8: 94 | AD8: 96 | AE8: 94 | AF8: 93 | AG8: 92 | AH8: 87 | AI8: 84 | AJ8: 83 | AK8: 83 | AL8: 83 | AM8: 83 | AN8: 84 | AO8: 82 | AP8: 83 | AQ8: 83 | AR8: 83 | AS8: 85 | AT8: 88 | AU8: 86 | AV8: 86 | AW8: 86 | AX8: 86 | AY8: 86 | AZ8: 87 | BA8: 87 | BB8: 82 | BC8: 77 | BD8: 77 | BE8: 77 | BF8: 76 | BG8: 77 | BH8: 75 | BI8: 76 | BJ8: 73 | BK8: 72 | BL8: 72 | BM8: 72 | BN8: 72 | BO8: 72 | BP8: 72 | BQ8: 74 | BR8: 75 | BS8: 74 | BT8: 73 | BU8: 72 | BV8: 72 | BW8: 72 | BX8: 72 | BY8: 71 | BZ8: 71 | CA8: 71 | CB8: 72 | CC8: 70 | CD8: 69 | CE8: 65 | CF8: 64 | CG8: 63 | CH8: 62 | CI8: 60 | CJ8: 58 | CK8: 56
C9: 3 | D9: B | E9: 20 | F9: 118 | G9: 118 | H9: 114 | I9: 113 | J9: 115 | K9: 122 | L9: 122 | M9: 120 | N9: 120 | O9: 118 | P9: 117 | Q9: 117 | R9: 116 | S9: 114 | T9: 110 | U9: 108 | V9: 108 | W9: 108 | X9: 113 | Y9: 109 | Z9: 111 | AA9: 115 | AB9: 118 | AC9: 117 | AD9: 119 | AE9: 117 | AF9: 114 | AG9: 114 | AH9: 106 | AI9: 105 | AJ9: 104 | AK9: 104 | AL9: 104 | AM9: 103 | AN9: 104 | AO9: 102 | AP9: 103 | AQ9: 104 | AR9: 104 | AS9: 106 | AT9: 108 | AU9: 109 | AV9: 109 | AW9: 109 | AX9: 109 | AY9: 109 | AZ9: 109 | BA9: 109 | BB9: 103 | BC9: 98 | BD9: 96 | BE9: 96 | BF9: 96 | BG9: 96 | BH9: 97 | BI9: 96 | BJ9: 95 | BK9: 95 | BL9: 95 | BM9: 95 | BN9: 95 | BO9: 95 | BP9: 94 | BQ9: 96 | BR9: 96 | BS9: 95 | BT9: 94 | BU9: 95 | BV9: 95 | BW9: 95 | BX9: 94 | BY9: 94 | BZ9: 94 | CA9: 94 | CB9: 94 | CC9: 93 | CD9: 93 | CE9: 91 | CF9: 91 | CG9: 92 | CH9: 89 | CI9: 88 | CJ9: 87 | CK9: 83
C10: 3 | D10: C | E10: 11 | F10: 97 | G10: 98 | H10: 95 | I10: 94 | J10: 98 | K10: 103 | L10: 107 | M10: 103 | N10: 102 | O10: 101 | P10: 100 | Q10: 100 | R10: 95 | S10: 92 | T10: 89 | U10: 86 | V10: 87 | W10: 88 | X10: 91 | Y10: 86 | Z10: 87 | AA10: 94 | AB10: 98 | AC10: 98 | AD10: 98 | AE10: 97 | AF10: 96 | AG10: 95 | AH10: 89 | AI10: 86 | AJ10: 85 | AK10: 85 | AL10: 86 | AM10: 85 | AN10: 85 | AO10: 84 | AP10: 88 | AQ10: 85 | AR10: 86 | AS10: 87 | AT10: 90 | AU10: 92 | AV10: 90 | AW10: 94 | AX10: 95 | AY10: 91 | AZ10: 91 | BA10: 91 | BB10: 85 | BC10: 80 | BD10: 81 | BE10: 79 | BF10: 79 | BG10: 80 | BH10: 82 | BI10: 78 | BJ10: 75 | BK10: 74 | BL10: 73 | BM10: 74 | BN10: 73 | BO10: 72 | BP10: 72 | BQ10: 75 | BR10: 76 | BS10: 75 | BT10: 73 | BU10: 73 | BV10: 72 | BW10: 72 | BX10: 72 | BY10: 71 | BZ10: 71 | CA10: 71 | CB10: 72 | CC10: 70 | CD10: 69 | CE10: 65 | CF10: 63 | CG10: 62 | CH10: 62 | CI10: 61 | CJ10: 58 | CK10: 56
C11: 4 | D11: B | E11: 9 | F11: 118 | G11: 119 | H11: 114 | I11: 109 | J11: 115 | K11: 123 | L11: 124 | M11: 122 | N11: 120 | O11: 120 | P11: 119 | Q11: 120 | R11: 116 | S11: 114 | T11: 112 | U11: 111 | V11: 111 | W11: 108 | X11: 115 | Y11: 110 | Z11: 115 | AA11: 117 | AB11: 119 | AC11: 120 | AD11: 121 | AE11: 117 | AF11: 119 | AG11: 117 | AH11: 107 | AI11: 106 | AJ11: 105 | AK11: 104 | AL11: 105 | AM11: 104 | AN11: 106 | AO11: 105 | AP11: 106 | AQ11: 107 | AR11: 108 | AS11: 109 | AT11: 109 | AU11: 112 | AV11: 110 | AW11: 112 | AX11: 112 | AY11: 110 | AZ11: 110 | BA11: 109 | BB11: 102 | BC11: 100 | BD11: 99 | BE11: 99 | BF11: 98 | BG11: 100 | BH11: 100 | BI11: 99 | BJ11: 97 | BK11: 97 | BL11: 98 | BM11: 99 | BN11: 98 | BO11: 98 | BP11: 97 | BQ11: 97 | BR11: 98 | BS11: 98 | BT11: 100 | BU11: 98 | BV11: 98 | BW11: 99 | BX11: 98 | BY11: 98 | BZ11: 96 | CA11: 97 | CB11: 98 | CC11: 99 | CD11: 98 | CE11: 99 | CF11: 96 | CG11: 95 | CH11: 94 | CI11: 89 | CJ11: 88 | CK11: 88
C12: 4 | D12: C | E12: 6 | F12: 97 | G12: 98 | H12: 96 | I12: 93 | J12: 96 | K12: 101 | L12: 104 | M12: 101 | N12: 101 | O12: 101 | P12: 98 | Q12: 100 | R12: 96 | S12: 93 | T12: 89 | U12: 89 | V12: 90 | W12: 89 | X12: 89 | Y12: 88 | Z12: 89 | AA12: 95 | AB12: 97 | AC12: 98 | AD12: 97 | AE12: 96 | AF12: 96 | AG12: 95 | AH12: 89 | AI12: 86 | AJ12: 85 | AK12: 84 | AL12: 84 | AM12: 83 | AN12: 84 | AO12: 82 | AP12: 83 | AQ12: 84 | AR12: 86 | AS12: 88 | AT12: 89 | AU12: 91 | AV12: 89 | AW12: 89 | AX12: 90 | AY12: 88 | AZ12: 88 | BA12: 88 | BB12: 82 | BC12: 74 | BD12: 81 | BE12: 81 | BF12: 82 | BG12: 82 | BH12: 81 | BI12: 79 | BJ12: 75 | BK12: 73 | BL12: 74 | BM12: 73 | BN12: 73 | BO12: 72 | BP12: 73 | BQ12: 73 | BR12: 74 | BS12: 74 | BT12: 72 | BU12: 72 | BV12: 72 | BW12: 72 | BX12: 71 | BY12: 70 | BZ12: 69 | CA12: 70 | CB12: 71 | CC12: 69 | CD12: 68 | CE12: 66 | CF12: 65 | CG12: 64 | CH12: 62 | CI12: 61 | CJ12: 58 | CK12: 57
C13: 2 - 4 | D13: B / C | E13: - | BT13: 89 | BU13: 90 | BV13: 88 | BW13: 86 | BX13: 85 | BY13: 86 | BZ13: 88 | CA13: 87 | CB13: 85 | CC13: 83 | CD13: 82 | CE13: 83 | CF13: 82 | CG13: 82 | CH13: 80 | CI13: 77 | CJ13: 79 | CK13: 77
A14: Fichte | B14: L1 + L2 | C14: 5 + 6 | D14: B | E14: 3 | F14: 120 | G14: 118 | H14: 115 | I14: 108 | J14: 111 | K14: 125 | L14: 128 | M14: 124 | N14: 120 | O14: 128 | P14: 129 | Q14: 132 | R14: 132 | S14: 120 | T14: 112 | U14: 110 | V14: 112 | W14: 114 | X14: 128 | Y14: 121 | Z14: 123 | AA14: 122 | AB14: 122 | AC14: 112 | AD14: 127 | AE14: 132 | AF14: 143 | AG14: 128 | AH14: 116 | AI14: 124 | AJ14: 118 | AK14: 115 | AL14: 111 | AM14: 113 | AN14: 120 | AO14: 124 | AP14: 122 | AQ14: 120 | AR14: 119 | AS14: 122 | AT14: 118 | AU14: 119 | AV14: 117 | AW14: 124 | AX14: 126 | AY14: 120 | AZ14: 117 | BA14: 120 | BB14: 114 | BC14: 108 | BD14: 106 | BE14: 107 | BF14: 107 | BG14: 104 | BH14: 108 | BI14: 111 | BJ14: 107 | BK14: 109 | BL14: 112 | BM14: 116 | BN14: 113 | BO14: 115 | BP14: 112 | BQ14: 109 | BR14: 107 | BS14: 111 | BT14: 109 | BU14: 108 | BV14: 110 | BW14: 109 | BX14: 105 | BY14: 104 | BZ14: 106 | CA14: 110 | CB14: 104 | CC14: 106 | CD14: 105 | CE14: 105 | CF14: 110 | CG14: 106 | CH14: 105 | CI14: 102 | CJ14: 101 | CK14: 200
C15: 5 + 6 | D15: C | E15: 2 | F15: 90 | G15: 91 | H15: 89 | I15: 83 | J15: 84 | K15: 91 | L15: 95 | M15: 95 | N15: 92 | O15: 98 | P15: 95 | Q15: 95 | R15: 88 | S15: 83 | T15: 78 | U15: 74 | V15: 79 | W15: 85 | X15: 89 | Y15: 88 | Z15: 89 | AA15: 89 | AB15: 91 | AC15: 91 | AD15: 95 | AE15: 96 | AF15: 96 | AG15: 91 | AH15: 85 | AI15: 86 | AJ15: 80 | AK15: 77 | AL15: 81 | AM15: 76 | AN15: 83 | AO15: 82 | AP15: 81 | AQ15: 81 | AR15: 80 | AS15: 83 | AT15: 82 | AU15: 83 | AV15: 83 | AW15: 83 | AX15: 83 | AY15: 82 | AZ15: 83 | BA15: 82 | BB15: 78 | BC15: 74 | BD15: 73 | BE15: 75 | BF15: 74 | BG15: 76 | BH15: 79 | BI15: 75 | BJ15: 73 | BK15: 70 | BL15: 69 | BM15: 71 | BN15: 74 | BO15: 72 | BP15: 70 | BQ15: 68 | BR15: 68 | BS15: 69 | BT15: 69 | BU15: 70 | BV15: 71 | BW15: 71 | BX15: 70 | BY15: 68 | BZ15: 69 | CA15: 71 | CB15: 71 | CC15: 72 | CD15: 70 | CE15: 70 | CF15: 70 | CG15: 69 | CH15: 68 | CI15: 64 | CJ15: 62 | CK15: 65
A16: Fichte | B16: L3 | C16: alle | D16: B | E16: 9 | F16: 119 | G16: 121 | H16: 116 | I16: 112 | J16: 119 | K16: 122 | L16: 121 | M16: 122 | N16: 118 | O16: 117 | P16: 117 | Q16: 115 | R16: 119 | S16: 116 | T16: 109 | U16: 107 | V16: 108 | W16: 109 | X16: 110 | Y16: 109 | Z16: 114 | AA16: 113 | AB16: 114 | AC16: 112 | AD16: 114 | AE16: 113 | AF16: 110 | AG16: 110 | AH16: 112 | AI16: 108 | AJ16: 106 | AK16: 106 | AL16: 105 | AM16: 105 | AN16: 101 | AO16: 101 | AP16: 102 | AQ16: 102 | AR16: 106 | AS16: 108 | AT16: 111 | AU16: 112 | AV16: 112 | AW16: 112 | AX16: 115 | AY16: 108 | AZ16: 109 | BA16: 111 | BB16: 111 | BC16: 107 | BD16: 93 | BE16: 96 | BF16: 94 | BG16: 95 | BH16: 92 | BI16: 93 | BJ16: 92 | BK16: 92 | BL16: 91 | BM16: 92 | BN16: 93 | BO16: 91 | BP16: 92 | BQ16: 93 | BR16: 93 | BS16: 94 | BT16: 98 | BU16: 97 | BV16: 97 | BW16: 98 | BX16: 97 | BY16: 96 | BZ16: 95 | CA16: 92 | CB16: 93 | CC16: 92 | CD16: 93 | CE16: 92 | CF16: 94 | CG16: 94 | CH16: 92 | CI16: 90 | CJ16: 89 | CK16: 92
C17: alle | D17: C | E17: 6 | F17: 99 | G17: 98 | H17: 95 | I17: 88 | J17: 91 | K17: 97 | L17: 103 | M17: 103 | N17: 96 | O17: 98 | P17: 98 | Q17: 98 | R17: 97 | S17: 95 | T17: 86 | U17: 84 | V17: 87 | W17: 90 | X17: 93 | Y17: 92 | Z17: 97 | AA17: 97 | AB17: 99 | AC17: 97 | AD17: 99 | AE17: 95 | AF17: 96 | AG17: 95 | AH17: 92 | AI17: 87 | AJ17: 86 | AK17: 87 | AL17: 86 | AM17: 87 | AN17: 85 | AO17: 85 | AP17: 85 | AQ17: 85 | AR17: 86 | AS17: 88 | AT17: 88 | AU17: 89 | AV17: 91 | AW17: 90 | AX17: 91 | AY17: 89 | AZ17: 89 | BA17: 88 | BB17: 88 | BC17: 87 | BD17: 81 | BE17: 83 | BF17: 81 | BG17: 82 | BH17: 81 | BI17: 81 | BJ17: 81 | BK17: 81 | BL17: 81 | BM17: 81 | BN17: 81 | BO17: 81 | BP17: 82 | BQ17: 81 | BR17: 81 | BS17: 81 | BT17: 81 | BU17: 79 | BV17: 81 | BW17: 80 | BX17: 77 | BY17: 78 | BZ17: 79 | CA17: 78 | CB17: 77 | CC17: 76 | CD17: 76 | CE17: 73 | CF17: 72 | CG17: 71 | CH17: 70 | CI17: 68 | CJ17: 67 | CK17: 70
A18: Fichte | B18: L1 bis L3 | C18: alle | D18: D | E18: 4 | F18: 64 | G18: 64 | H18: 65 | I18: 65 | J18: 69 | K18: 70 | L18: 71 | M18: 72 | N18: 69 | O18: 69 | P18: 67 | Q18: 68 | R18: 62 | S18: 61 | T18: 61 | U18: 60 | V18: 62 | W18: 62 | X18: 59 | Y18: 62 | Z18: 65 | AA18: 67 | AB18: 69 | AC18: 67 | AD18: 69 | AE18: 68 | AF18: 67 | AG18: 67 | AH18: 64 | AI18: 64 | AJ18: 62 | AK18: 61 | AL18: 61 | AM18: 60 | AN18: 57 | AO18: 57 | AP18: 57 | AQ18: 57 | AR18: 57 | AS18: 59 | AT18: 60 | AU18: 60 | AV18: 62 | AW18: 60 | AX18: 62 | AY18: 62 | AZ18: 60 | BA18: 62 | BB18: 59 | BC18: 55 | BD18: 54 | BE18: 56 | BF18: 53 | BG18: 54 | BH18: 54 | BI18: 53 | BJ18: 55 | BK18: 55 | BL18: 53 | BM18: 51 | BN18: 49 | BO18: 48 | BP18: 49 | BQ18: 50 | BR18: 49 | BS18: 50 | BT18: 50 | BU18: 49 | BV18: 52 | BW18: 51 | BX18: 55 | BY18: 49 | BZ18: 46 | CA18: 47 | CB18: 46 | CC18: 45 | CD18: 42 | CE18: 41 | CF18: 37 | CG18: 37 | CH18: 35 | CI18: 36 | CJ18: 35 | CK18: 39
A19: Rundholz Fichte Index | E19: =SUM(E7:E18) -> 100 | F19: =($E7*F7/$BF7+$E8*F8/$BF8+$E9*F9/$BF9+$E10*F10/$BF10+$E11*F11/$BF11+$E12*F12/$BF12+$E14*F14/$BF14+$E15*F15/$BF15+$E16*F16/$BF16+$E17*F17/$BF17+$E18*F18/$BF18)/$E19 -> 1.212332787 | G19: =($E7*G7/$BF7+$E8*G8/$BF8+$E9*G9/$BF9+$E10*G10/$BF10+$E11*G11/$BF11+$E12*G12/$BF12+$E14*G14/$BF14+$E15*G15/$BF15+$E16*G16/$BF16+$E17*G17/$BF17+$E18*G18/$BF18)/$E19 -> 1.217574732 | H19: 1.185341829 | I19: 1.149650974 | J19: 1.201090179 | K19: 1.254327886 | L19: 1.28200386 | M19: 1.264111472 | N19: 1.246903359 | O19: 1.235535566 | P19: 1.228989801 | Q19: 1.227653405 | R19: 1.211308179 | S19: 1.178910696 | T19: 1.128445377 | U19: 1.103192839 | V19: 1.112685697 | W19: 1.117488419 | X19: 1.157261652 | Y19: 1.122146878 | Z19: 1.154045425 | AA19: 1.183339098 | AB19: 1.221259174 | AC19: 1.208949701 | AD19: 1.232377105 | AE19: 1.212611623 | AF19: 1.201521292 | AG19: 1.187863623 | AH19: 1.122632074 | AI19: 1.100123771 | AJ19: 1.086213235 | AK19: 1.082897252 | AL19: 1.081386089 | AM19: 1.075455696 | AN19: 1.07770235 | AO19: 1.065897809 | AP19: 1.078726389 | AQ19: 1.079805168 | AR19: 1.089682572 | AS19: 1.108896079 | AT19: 1.132487662 | AU19: 1.137024908 | AV19: 1.133370117 | AW19: 1.140488914 | AX19: 1.148296289 | AY19: 1.13137373 | AZ19: 1.129483348 | BA19: 1.129736085 | BB19: 1.080206417 | BC19: 1.025705665 | BD19: 1.003533886 | BE19: 1.007433246 | BF19: 1 | BG19: =($E7*BG7/$BF7+$E8*BG8/$BF8+$E9*BG9/$BF9+$E10*BG10/$BF10+$E11*BG11/$BF11+$E12*BG12/$BF12+$E14*BG14/$BF14+$E15*BG15/$BF15+$E16*BG16/$BF16+$E17*BG17/$BF17+$E18*BG18/$BF18)/$E19 -> 1.008780586 | BH19: 1.010688002 | BI19: 1.001931826 | BJ19: 0.9837669628 | BK19: =($E7*BK7/$BF7+$E8*BK8/$BF8+$E9*BK9/$BF9+$E10*BK10/$BF10+$E11*BK11/$BF11+$E12*BK12/$BF12+$E14*BK14/$BF14+$E15*BK15/$BF15+$E16*BK16/$BF16+$E17*BK17/$BF17+$E18*BK18/$BF18)/$E19 -> 0.9793452905 | BL19: 0.9777069306 | BM19: =($E7*BM7/$BF7+$E8*BM8/$BF8+$E9*BM9/$BF9+$E10*BM10/$BF10+$E11*BM11/$BF11+$E12*BM12/$BF12+$E14*BM14/$BF14+$E15*BM15/$BF15+$E16*BM16/$BF16+$E17*BM17/$BF17+$E18*BM18/$BF18)/$E19 -> 0.9803960444 | BN19: 0.9775029741 | BO19: =($E7*BO7/$BF7+$E8*BO8/$BF8+$E9*BO9/$BF9+$E10*BO10/$BF10+$E11*BO11/$BF11+$E12*BO12/$BF12+$E14*BO14/$BF14+$E15*BO15/$BF15+$E16*BO16/$BF16+$E17*BO17/$BF17+$E18*BO18/$BF18)/$E19 -> 0.9727294583 | BP19: 0.9694473741 | BQ19: =($E7*BQ7/$BF7+$E8*BQ8/$BF8+$E9*BQ9/$BF9+$E10*BQ10/$BF10+$E11*BQ11/$BF11+$E12*BQ12/$BF12+$E14*BQ14/$BF14+$E15*BQ15/$BF15+$E16*BQ16/$BF16+$E17*BQ17/$BF17+$E18*BQ18/$BF18)/$E19 -> 0.9862625959 | BR19: 0.9913887338 | BS19: =($E7*BS7/$BF7+$E8*BS8/$BF8+$E9*BS9/$BF9+$E10*BS10/$BF10+$E11*BS11/$BF11+$E12*BS12/$BF12+$E14*BS14/$BF14+$E15*BS15/$BF15+$E16*BS16/$BF16+$E17*BS17/$BF17+$E18*BS18/$BF18)/$E19 -> 0.987617802 | BT19: 0.9829928953 | BU19: =($E7*BU7/$BF7+$E8*BU8/$BF8+$E9*BU9/$BF9+$E10*BU10/$BF10+$E11*BU11/$BF11+$E12*BU12/$BF12+$E14*BU14/$BF14+$E15*BU15/$BF15+$E16*BU16/$BF16+$E17*BU17/$BF17+$E18*BU18/$BF18)/$E19 -> 0.9787199557 | BV19: 0.9839875343 | BW19: =($E7*BW7/$BF7+$E8*BW8/$BF8+$E9*BW9/$BF9+$E10*BW10/$BF10+$E11*BW11/$BF11+$E12*BW12/$BF12+$E14*BW14/$BF14+$E15*BW15/$BF15+$E16*BW16/$BF16+$E17*BW17/$BF17+$E18*BW18/$BF18)/$E19 -> 0.9840875169 | BX19: 0.9767182089 | BY19: =($E7*BY7/$BF7+$E8*BY8/$BF8+$E9*BY9/$BF9+$E10*BY10/$BF10+$E11*BY11/$BF11+$E12*BY12/$BF12+$E14*BY14/$BF14+$E15*BY15/$BF15+$E16*BY16/$BF16+$E17*BY17/$BF17+$E18*BY18/$BF18)/$E19 -> 0.9677123847 | BZ19: 0.9614107703 | CA19: =($E7*CA7/$BF7+$E8*CA8/$BF8+$E9*CA9/$BF9+$E10*CA10/$BF10+$E11*CA11/$BF11+$E12*CA12/$BF12+$E14*CA14/$BF14+$E15*CA15/$BF15+$E16*CA16/$BF16+$E17*CA17/$BF17+$E18*CA18/$BF18)/$E19 -> 0.9618645166 | CB19: 0.9660858652 | CC19: =($E7*CC7/$BF7+$E8*CC8/$BF8+$E9*CC9/$BF9+$E10*CC10/$BF10+$E11*CC11/$BF11+$E12*CC12/$BF12+$E14*CC14/$BF14+$E15*CC15/$BF15+$E16*CC16/$BF16+$E17*CC17/$BF17+$E18*CC18/$BF18)/$E19 -> 0.9564192089 | CD19: 0.9478499879 | CE19: =($E7*CE7/$BF7+$E8*CE8/$BF8+$E9*CE9/$BF9+$E10*CE10/$BF10+$E11*CE11/$BF11+$E12*CE12/$BF12+$E14*CE14/$BF14+$E15*CE15/$BF15+$E16*CE16/$BF16+$E17*CE17/$BF17+$E18*CE18/$BF18)/$E19 -> 0.9283711098 | CF19: =($E7*CF7/$BF7+$E8*CF8/$BF8+$E9*CF9/$BF9+$E10*CF10/$BF10+$E11*CF11/$BF11+$E12*CF12/$BF12+$E14*CF14/$BF14+$E15*CF15/$BF15+$E16*CF16/$BF16+$E17*CF17/$BF17+$E18*CF18/$BF18)/$E19 -> 0.9203408549 | CG19: 0.9159334127 | CH19: 0.8991867955 | CI19: 0.8706920734 | CJ19: 0.8533293044 | CK19: 0.8755291254
E20: - | F20: =F19-1 -> 0.2123327872 | G20: =G19-1 -> 0.2175747319 | H20: 0.1853418289 | I20: 0.1496509736 | J20: 0.2010901786 | K20: 0.2543278856 | L20: 0.2820038597 | M20: 0.2641114723 | N20: 0.2469033592 | O20: 0.235535566 | P20: 0.2289898007 | Q20: 0.2276534048 | R20: 0.2113081791 | S20: 0.178910696 | T20: 0.128445377 | U20: 0.1031928385 | V20: 0.1126856968 | W20: 0.1174884185 | X20: 0.157261652 | Y20: 0.1221468782 | Z20: 0.1540454252 | AA20: 0.1833390982 | AB20: 0.221259174 | AC20: 0.2089497013 | AD20: 0.2323771046 | AE20: 0.2126116232 | AF20: 0.2015212922 | AG20: 0.1878636227 | AH20: 0.1226320738 | AI20: 0.1001237709 | AJ20: 0.08621323542 | AK20: 0.08289725221 | AL20: 0.08138608949 | AM20: 0.0754556965 | AN20: 0.07770235037 | AO20: =AO19-1 -> 0.06589780944 | AP20: =AP19-1 -> 0.07872638937 | AQ20: =AQ19-1 -> 0.07980516785 | AR20: =AR19-1 -> 0.0896825721 | AS20: =AS19-1 -> 0.1088960795 | AT20: =AT19-1 -> 0.1324876622 | AU20: 0.1370249084 | AV20: =AV19-1 -> 0.1333701167 | AW20: 0.1404889138 | AX20: =AX19-1 -> 0.1482962889 | AY20: 0.1313737303 | AZ20: 0.129483348 | BA20: 0.1297360854 | BB20: 0.08020641733 | BC20: =BC19-1 -> 0.02570566478 | BD20: 0.003533885701 | BE20: 0.007433245816 | BF20: =BF19-1 -> 0 | BG20: 0.00878058614 | BH20: =BH19-1 -> 0.01068800164 | BI20: 0.001931825788 | BJ20: =BJ19-1 -> -0.01623303717 | BK20: -0.02065470948 | BL20: =BL19-1 -> -0.02229306943 | BM20: -0.01960395562 | BN20: =BN19-1 -> -0.02249702587 | BO20: -0.02727054173 | BP20: =BP19-1 -> -0.03055262593 | BQ20: -0.01373740411 | BR20: -0.008611266221 | BS20: =BS19-1 -> -0.01238219804 | BT20: -0.01700710467 | BU20: =BU19-1 -> -0.02128004434 | BV20: -0.01601246571 | BW20: =BW19-1 -> -0.01591248311 | BX20: -0.02328179115 | BY20: =BY19-1 -> -0.03228761533 | BZ20: -0.03858922975 | CA20: =CA19-1 -> -0.0381354834 | CB20: -0.03391413477 | CC20: =CC19-1 -> -0.04358079106 | CD20: -0.0521500121 | CE20: =CE19-1 -> -0.07162889022 | CF20: -0.07965914506 | CG20: -0.08406658727 | CH20: -0.1008132045 | CI20: =CI19-1 -> -0.1293079266 | CJ20: -0.1466706956 | CK20: =CK19-1 -> -0.1244708746
A21: Tanne | B21: L1 | C21: 2 | D21: B | E21: 14 | F21: 96 | G21: 96 | H21: 93 | I21: 89 | J21: 95 | K21: 99 | L21: 99 | M21: 99 | N21: 98 | O21: 97 | P21: 97 | Q21: 96 | R21: 97 | S21: 95 | T21: 91 | U21: 90 | V21: 88 | W21: 87 | X21: 91 | Y21: 89 | Z21: 91 | AA21: 94 | AB21: 98 | AC21: 98 | AD21: 97 | AE21: 94 | AF21: 93 | AG21: 92 | AH21: 88 | AI21: 84 | AJ21: 85 | AK21: 85 | AL21: 85 | AM21: 85 | AN21: 85 | AO21: 84 | AP21: 85 | AQ21: 85 | AR21: 86 | AS21: 88 | AT21: 91 | AU21: 93 | AV21: 93 | AW21: 93 | AX21: 93 | AY21: 94 | AZ21: 94 | BA21: 93 | BB21: 89 | BC21: 83 | BD21: 82 | BE21: 82 | BF21: 82 | BG21: 84 | BH21: 84 | BI21: 83 | BJ21: 83 | BK21: 82 | BL21: 84 | BM21: 84 | BN21: 82 | BO21: 83 | BP21: 82 | BQ21: 83 | BR21: 85 | BS21: 83 | BT21: 84 | BU21: 83 | BV21: 84 | BW21: 83 | BX21: 83 | BY21: 82 | BZ21: 82 | CA21: 82 | CB21: 83 | CC21: 82 | CD21: 78 | CE21: 76 | CF21: 75 | CG21: 76 | CH21: 75 | CI21: 73 | CJ21: 74 | CK21: 71
C22: 2 | D22: C | E22: 7 | F22: 78 | G22: 79 | H22: 76 | I22: 72 | J22: 76 | K22: 85 | L22: 84 | M22: 85 | N22: 87 | O22: 83 | P22: 82 | Q22: 79 | R22: 81 | S22: 81 | T22: 78 | U22: 75 | V22: 72 | W22: 70 | X22: 70 | Y22: 71 | Z22: 74 | AA22: 76 | AB22: 80 | AC22: 80 | AD22: 80 | AE22: 77 | AF22: 76 | AG22: 76 | AH22: 74 | AI22: 71 | AJ22: 72 | AK22: 73 | AL22: 72 | AM22: 73 | AN22: 71 | AO22: 70 | AP22: 71 | AQ22: 69 | AR22: 69 | AS22: 70 | AT22: 73 | AU22: 75 | AV22: 74 | AW22: 74 | AX22: 74 | AY22: 74 | AZ22: 76 | BA22: 77 | BB22: 70 | BC22: 66 | BD22: 66 | BE22: 66 | BF22: 65 | BG22: 65 | BH22: 65 | BI22: 64 | BJ22: 63 | BK22: 62 | BL22: 63 | BM22: 63 | BN22: 62 | BO22: 62 | BP22: 62 | BQ22: 63 | BR22: 64 | BS22: 63 | BT22: 62 | BU22: 62 | BV22: 62 | BW22: 61 | BX22: 62 | BY22: 61 | BZ22: 62 | CA22: 61 | CB22: 64 | CC22: 61 | CD22: 60 | CE22: 57 | CF22: 55 | CG22: 55 | CH22: 54 | CI22: 53 | CJ22: 53 | CK22: 53
C23: 3 | D23: B | E23: 19 | F23: 100 | G23: 100 | H23: 95 | I23: 90 | J23: 96 | K23: 100 | L23: 100 | M23: 100 | N23: 100 | O23: 100 | P23: 98 | Q23: 99 | R23: 97 | S23: 94 | T23: 90 | U23: 90 | V23: 89 | W23: 90 | X23: 92 | Y23: 88 | Z23: 90 | AA23: 95 | AB23: 99 | AC23: 99 | AD23: 98 | AE23: 97 | AF23: 96 | AG23: 95 | AH23: 90 | AI23: 87 | AJ23: 87 | AK23: 87 | AL23: 87 | AM23: 87 | AN23: 87 | AO23: 86 | AP23: 87 | AQ23: 87 | AR23: 88 | AS23: 90 | AT23: 92 | AU23: 94 | AV23: 94 | AW23: 96 | AX23: 96 | AY23: 94 | AZ23: 92 | BA23: 94 | BB23: 90 | BC23: 85 | BD23: 87 | BE23: 83 | BF23: 83 | BG23: 83 | BH23: 80 | BI23: 82 | BJ23: 82 | BK23: 82 | BL23: 82 | BM23: 82 | BN23: 82 | BO23: 81 | BP23: 80 | BQ23: 81 | BR23: 83 | BS23: 82 | BT23: 82 | BU23: 81 | BV23: 81 | BW23: 82 | BX23: 82 | BY23: 81 | BZ23: 81 | CA23: 80 | CB23: 81 | CC23: 81 | CD23: 79 | CE23: 76 | CF23: 74 | CG23: 74 | CH23: 73 | CI23: 73 | CJ23: 71 | CK23: 71
C24: 3 | D24: C | E24: 10 | F24: 82 | G24: 84 | H24: 80 | I24: 76 | J24: 81 | K24: 89 | L24: 91 | M24: 88 | N24: 89 | O24: 88 | P24: 88 | Q24: 86 | R24: 84 | S24: 81 | T24: 78 | U24: 75 | V24: 76 | W24: 76 | X24: 76 | Y24: 73 | Z24: 74 | AA24: 77 | AB24: 80 | AC24: 78 | AD24: 77 | AE24: 77 | AF24: 76 | AG24: 75 | AH24: 74 | AI24: 71 | AJ24: 70 | AK24: 69 | AL24: 70 | AM24: 69 | AN24: 70 | AO24: 71 | AP24: 70 | AQ24: 70 | AR24: 71 | AS24: 71 | AT24: 73 | AU24: 75 | AV24: 75 | AW24: 78 | AX24: 80 | AY24: 78 | AZ24: 79 | BA24: 80 | BB24: 73 | BC24: 72 | BD24: 73 | BE24: 70 | BF24: 69 | BG24: 70 | BH24: 72 | BI24: 71 | BJ24: 73 | BK24: 68 | BL24: 62 | BM24: 67 | BN24: 68 | BO24: 68 | BP24: 68 | BQ24: 65 | BR24: 65 | BS24: 66 | BT24: 68 | BU24: 65 | BV24: 63 | BW24: 61 | BX24: 63 | BY24: 61 | BZ24: 61 | CA24: 62 | CB24: 62 | CC24: 61 | CD24: 60 | CE24: 61 | CF24: 60 | CG24: 60 | CH24: 60 | CI24: 57 | CJ24: 57 | CK24: 53
C25: 4 | D25: B | E25: 11 | F25: 98 | G25: 99 | H25: 95 | I25: 90 | J25: 95 | K25: 101 | L25: 102 | M25: 102 | N25: 98 | O25: 98 | P25: 97 | Q25: 96 | R25: 94 | S25: 93 | T25: 92 | U25: 91 | V25: 92 | W25: 92 | X25: 93 | Y25: 89 | Z25: 90 | AA25: 95 | AB25: 99 | AC25: 98 | AD25: 98 | AE25: 96 | AF25: 96 | AG25: 96 | AH25: 91 | AI25: 89 | AJ25: 88 | AK25: 89 | AL25: 88 | AM25: 88 | AN25: 87 | AO25: 88 | AP25: 90 | AQ25: 90 | AR25: 90 | AS25: 92 | AT25: 93 | AU25: 95 | AV25: 94 | AW25: 94 | AX25: 95 | AY25: 95 | AZ25: 94 | BA25: 93 | BB25: 89 | BC25: 86 | BD25: 87 | BE25: 86 | BF25: 85 | BG25: 85 | BH25: 84 | BI25: 83 | BJ25: 82 | BK25: 83 | BL25: 83 | BM25: 83 | BN25: 82 | BO25: 82 | BP25: 82 | BQ25: 82 | BR25: 83 | BS25: 83 | BT25: 83 | BU25: 84 | BV25: 84 | BW25: 83 | BX25: 83 | BY25: 82 | BZ25: 84 | CA25: 83 | CB25: 85 | CC25: 83 | CD25: 83 | CE25: 81 | CF25: 81 | CG25: 81 | CH25: 81 | CI25: 79 | CJ25: 79 | CK25: 78
C26: 4 | D26: C | E26: 9 | F26: 84 | G26: 85 | H26: 84 | I26: 79 | J26: 78 | K26: 88 | L26: 91 | M26: 89 | N26: 88 | O26: 86 | P26: 85 | Q26: 84 | R26: 82 | S26: 80 | T26: 78 | U26: 77 | V26: 77 | W26: 78 | X26: 75 | Y26: 74 | Z26: 77 | AA26: 76 | AB26: 78 | AC26: 76 | AD26: 77 | AE26: 76 | AF26: 76 | AG26: 75 | AH26: 71 | AI26: 69 | AJ26: 69 | AK26: 68 | AL26: 69 | AM26: 68 | AN26: 69 | AO26: 69 | AP26: 68 | AQ26: 68 | AR26: 69 | AS26: 70 | AT26: 73 | AU26: 75 | AV26: 76 | AW26: 75 | AX26: 76 | AY26: 75 | AZ26: 75 | BA26: 78 | BB26: 71 | BC26: 69 | BD26: 71 | BE26: 72 | BF26: 71 | BG26: 71 | BH26: 70 | BI26: 65 | BJ26: 63 | BK26: 63 | BL26: 63 | BM26: 63 | BN26: 61 | BO26: 60 | BP26: 61 | BQ26: 63 | BR26: 61 | BS26: 62 | BT26: 61 | BU26: 63 | BV26: 63 | BW26: 62 | BX26: 61 | BY26: 60 | BZ26: 60 | CA26: 61 | CB26: 61 | CC26: 60 | CD26: 59 | CE26: 58 | CF26: 60 | CG26: 58 | CH26: 58 | CI26: 55 | CJ26: 55 | CK26: 53
C27: 2 - 4 | D27: B / C | BT27: 74 | BU27: 76 | BV27: 74 | BW27: 72 | BX27: 73 | BY27: 73 | BZ27: 70 | CA27: 70 | CB27: 70 | CC27: 69 | CD27: 67 | CE27: 65 | CF27: 64 | CG27: 64 | CH27: 64 | CI27: 62 | CJ27: 64 | CK27: 61
A28: Tanne | B28: L1 + L2 | C28: 5 + 6 | D28: B | E28: 9 | F28: 108 | G28: 109 | H28: 107 | I28: 103 | J28: 99 | K28: 104 | L28: 108 | M28: 103 | N28: 101 | O28: 108 | P28: 109 | Q28: 110 | R28: 105 | S28: 104 | T28: 102 | U28: 102 | V28: 104 | W28: 102 | X28: 106 | Y28: 100 | Z28: 101 | AA28: 107 | AB28: 108 | AC28: 108 | AD28: 105 | AE28: 105 | AF28: 108 | AG28: 101 | AH28: 92 | AI28: 96 | AJ28: 93 | AK28: 92 | AL28: 89 | AM28: 92 | AN28: 98 | AO28: 102 | AP28: 99 | AQ28: 96 | AR28: 97 | AS28: 100 | AT28: 97 | AU28: 95 | AV28: 97 | AW28: 97 | AX28: 99 | AY28: 97 | AZ28: 95 | BA28: 99 | BB28: 92 | BC28: 90 | BD28: 92 | BE28: 90 | BF28: 91 | BG28: 89 | BH28: 92 | BI28: 92 | BJ28: 91 | BK28: 92 | BL28: 91 | BM28: 94 | BN28: 98 | BO28: 95 | BP28: 94 | BQ28: 93 | BR28: 93 | BS28: 93 | BT28: 92 | BU28: 93 | BV28: 92 | BW28: 93 | BX28: 90 | BY28: 90 | BZ28: 88 | CA28: 91 | CB28: 91 | CC28: 89 | CD28: 89 | CE28: 92 | CF28: 93 | CG28: 91 | CH28: 91 | CI28: 88 | CJ28: 88 | CK28: 90
C29: 5 + 6 | D29: C | E29: 9 | F29: 87 | G29: 89 | H29: 87 | I29: 83 | J29: 80 | K29: 85 | L29: 90 | M29: 87 | N29: 84 | O29: 89 | P29: 86 | Q29: 85 | R29: 80 | S29: 77 | T29: 76 | U29: 73 | V29: 76 | W29: 78 | X29: 78 | Y29: 75 | Z29: 77 | AA29: 77 | AB29: 79 | AC29: 77 | AD29: 78 | AE29: 79 | AF29: 80 | AG29: 77 | AH29: 70 | AI29: 74 | AJ29: 70 | AK29: 68 | AL29: 67 | AM29: 66 | AN29: 66 | AO29: 68 | AP29: 67 | AQ29: 67 | AR29: 66 | AS29: 67 | AT29: 68 | AU29: 68 | AV29: 66 | AW29: 67 | AX29: 67 | AY29: 70 | AZ29: 70 | BA29: 72 | BB29: 66 | BC29: 69 | BD29: 64 | BE29: 63 | BF29: 64 | BG29: 63 | BH29: 64 | BI29: 64 | BJ29: 63 | BK29: 62 | BL29: 61 | BM29: 64 | BN29: 66 | BO29: 65 | BP29: 63 | BQ29: 62 | BR29: 61 | BS29: 62 | BT29: 60 | BU29: 63 | BV29: 62 | BW29: 64 | BX29: 60 | BY29: 61 | BZ29: 61 | CA29: 65 | CB29: 63 | CC29: 62 | CD29: 62 | CE29: 61 | CF29: 59 | CG29: 60 | CH29: 60 | CI29: 58 | CJ29: 57 | CK29: 60
A30: Tanne | B30: L3 | C30: alle | D30: B | E30: 6 | F30: 101 | G30: 102 | H30: 100 | I30: 94 | J30: 99 | K30: 103 | L30: 103 | M30: 103 | N30: 101 | O30: 99 | P30: 98 | Q30: 102 | R30: 102 | S30: 101 | T30: 94 | U30: 92 | V30: 92 | W30: 94 | X30: 98 | Y30: 96 | Z30: 97 | AA30: 96 | AB30: 98 | AC30: 97 | AD30: 97 | AE30: 96 | AF30: 95 | AG30: 93 | AH30: 98 | AI30: 93 | AJ30: 89 | AK30: 89 | AL30: 89 | AM30: 88 | AN30: 88 | AO30: 87 | AP30: 90 | AQ30: 88 | AR30: 89 | AS30: 91 | AT30: 93 | AU30: 92 | AV30: 94 | AW30: 94 | AX30: 94 | AY30: 93 | AZ30: 92 | BA30: 94 | BB30: 93 | BC30: 91 | BD30: 88 | BE30: 84 | BF30: 82 | BG30: 82 | BH30: 77 | BI30: 81 | BJ30: 81 | BK30: 80 | BL30: 81 | BM30: 81 | BN30: 81 | BO30: 81 | BP30: 81 | BQ30: 80 | BR30: 80 | BS30: 81 | BT30: 83 | BU30: 84 | BV30: 83 | BW30: 83 | BX30: 82 | BY30: 83 | BZ30: 80 | CA30: 78 | CB30: 80 | CC30: 78 | CD30: 79 | CE30: 76 | CF30: 76 | CG30: 75 | CH30: 77 | CI30: 78 | CJ30: 75 | CK30: 73
C31: alle | D31: C | E31: 3 | F31: 84 | G31: 84 | H31: 82 | I31: 81 | J31: 86 | K31: 89 | L31: 90 | M31: 90 | N31: 86 | O31: 85 | P31: 86 | Q31: 86 | R31: 89 | S31: 84 | T31: 77 | U31: 74 | V31: 75 | W31: 77 | X31: 81 | Y31: 80 | Z31: 82 | AA31: 81 | AB31: 85 | AC31: 83 | AD31: 84 | AE31: 83 | AF31: 83 | AG31: 83 | AH31: 87 | AI31: 80 | AJ31: 75 | AK31: 75 | AL31: 75 | AM31: 76 | AN31: 74 | AO31: 73 | AP31: 74 | AQ31: 75 | AR31: 74 | AS31: 76 | AT31: 75 | AU31: 78 | AV31: 80 | AW31: 78 | AX31: 80 | AY31: 80 | AZ31: 79 | BA31: 79 | BB31: 77 | BC31: 77 | BD31: 74 | BE31: 76 | BF31: 75 | BG31: 74 | BH31: 70 | BI31: 72 | BJ31: 73 | BK31: 73 | BL31: 74 | BM31: 73 | BN31: 72 | BO31: 72 | BP31: 74 | BQ31: 72 | BR31: 73 | BS31: 72 | BT31: 71 | BU31: 72 | BV31: 74 | BW31: 76 | BX31: 73 | BY31: 74 | BZ31: 72 | CA31: 70 | CB31: 69 | CC31: 70 | CD31: 67 | CE31: 66 | CF31: 65 | CG31: 64 | CH31: 62 | CI31: 62 | CJ31: 62 | CK31: 60
A32: Tanne | B32: L1 bis L3 | C32: alle | D32: D | E32: 3 | F32: 64 | G32: 63 | H32: 63 | I32: 63 | J32: 65 | K32: 67 | L32: 70 | M32: 71 | N32: 67 | O32: 67 | P32: 67 | Q32: 68 | R32: 62 | S32: 61 | T32: 60 | U32: 59 | V32: 60 | W32: 59 | X32: 58 | Y32: 62 | Z32: 65 | AA32: 67 | AB32: 69 | AC32: 66 | AD32: 67 | AE32: 68 | AF32: 67 | AG32: 67 | AH32: 60 | AI32: 61 | AJ32: 61 | AK32: 60 | AL32: 61 | AM32: 60 | AN32: 56 | AO32: 56 | AP32: 57 | AQ32: 56 | AR32: 57 | AS32: 59 | AT32: 59 | AU32: 60 | AV32: 60 | AW32: 60 | AX32: 61 | AY32: 61 | AZ32: 59 | BA32: 62 | BB32: 59 | BC32: 55 | BD32: 54 | BE32: 53 | BF32: 52 | BG32: 54 | BH32: 53 | BI32: 56 | BJ32: 55 | BK32: 54 | BL32: 52 | BM32: 51 | BN32: 49 | BO32: 47 | BP32: 49 | BQ32: 49 | BR32: 49 | BS32: 50 | BT32: 49 | BU32: 48 | BV32: 51 | BW32: 50 | BX32: 55 | BY32: 49 | BZ32: 46 | CA32: 46 | CB32: 46 | CC32: 43 | CD32: 42 | CE32: 40 | CF32: 37 | CG32: 37 | CH32: 35 | CI32: 36 | CJ32: 35 | CK32: 33
A33: Rundholz Tanne Index | E33: =SUM(E21:E32) -> 100 | F33: =($E21*F21/$BF21+$E22*F22/$BF22+$E23*F23/$BF23+$E24*F24/$BF24+$E25*F25/$BF25+$E26*F26/$BF26+$E28*F28/$BF28+$E29*F29/$BF29+$E30*F30/$BF30+$E31*F31/$BF31+$E32*F32/$BF32)/$E33 -> 1.202543537 | G33: =($E21*G21/$BF21+$E22*G22/$BF22+$E23*G23/$BF23+$E24*G24/$BF24+$E25*G25/$BF25+$E26*G26/$BF26+$E28*G28/$BF28+$E29*G29/$BF29+$E30*G30/$BF30+$E31*G31/$BF31+$E32*G32/$BF32)/$E33 -> 1.213037029 | H33: 1.173943411 | I33: 1.118383662 | J33: 1.157757144 | K33: 1.232727292 | L33: 1.252763918 | M33: 1.238370922 | N33: 1.222254771 | O33: 1.224346187 | P33: 1.212567781 | Q33: 1.207545091 | R33: 1.1845681 | S33: 1.15759245 | T33: 1.118315485 | U33: 1.099008761 | V33: 1.099991289 | W33: 1.102207858 | X33: 1.11901269 | Y33: 1.087017912 | Z33: 1.111851826 | AA33: 1.14608042 | AB33: 1.186452287 | AC33: 1.173649431 | AD33: 1.168887428 | AE33: 1.155241175 | AF33: 1.151783156 | AG33: 1.132464559 | AH33: 1.081520602 | AI33: 1.058821252 | AJ33: 1.045343237 | AK33: 1.040618963 | AL33: 1.037168443 | AM33: 1.036180638 | AN33: 1.038275929 | AO33: 1.041582762 | AP33: 1.045326275 | AQ33: 1.038565058 | AR33: 1.045769804 | AS33: 1.066486059 | AT33: 1.08691521 | AU33: 1.104151194 | AV33: 1.104476696 | AW33: 1.11274148 | AX33: 1.121556699 | AY33: 1.116028567 | AZ33: 1.109495682 | BA33: 1.127364304 | BB33: 1.061022256 | BC33: 1.02562766 | BD33: 1.024751987 | BE33: 1.005132998 | BF33: 1 | BG33: 1.002233484 | BH33: 0.9942406646 | BI33: 0.992410915 | BJ33: 0.9878310296 | BK33: =($E21*BK21/$BF21+$E22*BK22/$BF22+$E23*BK23/$BF23+$E24*BK24/$BF24+$E25*BK25/$BF25+$E26*BK26/$BF26+$E28*BK28/$BF28+$E29*BK29/$BF29+$E30*BK30/$BF30+$E31*BK31/$BF31+$E32*BK32/$BF32)/$E33 -> 0.9773686609 | BL33: 0.9707471661 | BM33: =($E21*BM21/$BF21+$E22*BM22/$BF22+$E23*BM23/$BF23+$E24*BM24/$BF24+$E25*BM25/$BF25+$E26*BM26/$BF26+$E28*BM28/$BF28+$E29*BM29/$BF29+$E30*BM30/$BF30+$E31*BM31/$BF31+$E32*BM32/$BF32)/$E33 -> 0.9842024028 | BN33: 0.9825454899 | BO33: =($E21*BO21/$BF21+$E22*BO22/$BF22+$E23*BO23/$BF23+$E24*BO24/$BF24+$E25*BO25/$BF25+$E26*BO26/$BF26+$E28*BO28/$BF28+$E29*BO29/$BF29+$E30*BO30/$BF30+$E31*BO31/$BF31+$E32*BO32/$BF32)/$E33 -> 0.9751689156 | BP33: 0.9705923827 | BQ33: =($E21*BQ21/$BF21+$E22*BQ22/$BF22+$E23*BQ23/$BF23+$E24*BQ24/$BF24+$E25*BQ25/$BF25+$E26*BQ26/$BF26+$E28*BQ28/$BF28+$E29*BQ29/$BF29+$E30*BQ30/$BF30+$E31*BQ31/$BF31+$E32*BQ32/$BF32)/$E33 -> 0.9699261963 | BR33: 0.9767487232 | BS33: =($E21*BS21/$BF21+$E22*BS22/$BF22+$E23*BS23/$BF23+$E24*BS24/$BF24+$E25*BS25/$BF25+$E26*BS26/$BF26+$E28*BS28/$BF28+$E29*BS29/$BF29+$E30*BS30/$BF30+$E31*BS31/$BF31+$E32*BS32/$BF32)/$E33 -> 0.9749997707 | BT33: 0.9739460904 | BU33: =($E21*BU21/$BF21+$E22*BU22/$BF22+$E23*BU23/$BF23+$E24*BU24/$BF24+$E25*BU25/$BF25+$E26*BU26/$BF26+$E28*BU28/$BF28+$E29*BU29/$BF29+$E30*BU30/$BF30+$E31*BU31/$BF31+$E32*BU32/$BF32)/$E33 -> 0.9751936647 | BV33: 0.973406232 | BW33: =($E21*BW21/$BF21+$E22*BW22/$BF22+$E23*BW23/$BF23+$E24*BW24/$BF24+$E25*BW25/$BF25+$E26*BW26/$BF26+$E28*BW28/$BF28+$E29*BW29/$BF29+$E30*BW30/$BF30+$E31*BW31/$BF31+$E32*BW32/$BF32)/$E33 -> 0.9714754624 | BX33: 0.9665442057 | BY33: =($E21*BY21/$BF21+$E22*BY22/$BF22+$E23*BY23/$BF23+$E24*BY24/$BF24+$E25*BY25/$BF25+$E26*BY26/$BF26+$E28*BY28/$BF28+$E29*BY29/$BF29+$E30*BY30/$BF30+$E31*BY31/$BF31+$E32*BY32/$BF32)/$E33 -> 0.9550869537 | BZ33: 0.9520481989 | CA33: =($E21*CA21/$BF21+$E22*CA22/$BF22+$E23*CA23/$BF23+$E24*CA24/$BF24+$E25*CA25/$BF25+$E26*CA26/$BF26+$E28*CA28/$BF28+$E29*CA29/$BF29+$E30*CA30/$BF30+$E31*CA31/$BF31+$E32*CA32/$BF32)/$E33 -> 0.9564335009 | CB33: 0.9644998938 | CC33: =($E21*CC21/$BF21+$E22*CC22/$BF22+$E23*CC23/$BF23+$E24*CC24/$BF24+$E25*CC25/$BF25+$E26*CC26/$BF26+$E28*CC28/$BF28+$E29*CC29/$BF29+$E30*CC30/$BF30+$E31*CC31/$BF31+$E32*CC32/$BF32)/$E33 -> 0.9480782353 | CD33: 0.931831634 | CE33: =($E21*CE21/$BF21+$E22*CE22/$BF22+$E23*CE23/$BF23+$E24*CE24/$BF24+$E25*CE25/$BF25+$E26*CE26/$BF26+$E28*CE28/$BF28+$E29*CE29/$BF29+$E30*CE30/$BF30+$E31*CE31/$BF31+$E32*CE32/$BF32)/$E33 -> 0.91372401 | CF33: 0.9024162112 | CG33: =($E21*CG21/$BF21+$E22*CG22/$BF22+$E23*CG23/$BF23+$E24*CG24/$BF24+$E25*CG25/$BF25+$E26*CG26/$BF26+$E28*CG28/$BF28+$E29*CG29/$BF29+$E30*CG30/$BF30+$E31*CG31/$BF31+$E32*CG32/$BF32)/$E33 -> 0.8998848377 | CH33: 0.8943210094 | CI33: =($E21*CI21/$BF21+$E22*CI22/$BF22+$E23*CI23/$BF23+$E24*CI24/$BF24+$E25*CI25/$BF25+$E26*CI26/$BF26+$E28*CI28/$BF28+$E29*CI29/$BF29+$E30*CI30/$BF30+$E31*CI31/$BF31+$E32*CI32/$BF32)/$E33 -> 0.8746196713 | CJ33: 0.8675703801 | CK33: =($E21*CK21/$BF21+$E22*CK22/$BF22+$E23*CK23/$BF23+$E24*CK24/$BF24+$E25*CK25/$BF25+$E26*CK26/$BF26+$E28*CK28/$BF28+$E29*CK29/$BF29+$E30*CK30/$BF30+$E31*CK31/$BF31+$E32*CK32/$BF32)/$E33 -> 0.8556015097
F34: =F33-1 -> 0.2025435368 | G34: =G33-1 -> 0.2130370291 | H34: 0.1739434112 | I34: 0.1183836618 | J34: 0.1577571445 | K34: 0.2327272925 | L34: 0.2527639179 | M34: 0.2383709217 | N34: 0.222254771 | O34: 0.2243461873 | P34: 0.2125677814 | Q34: 0.207545091 | R34: 0.1845681003 | S34: 0.1575924499 | T34: 0.1183154846 | U34: 0.09900876119 | V34: 0.09999128925 | W34: 0.1022078579 | X34: 0.1190126903 | Y34: 0.08701791215 | Z34: 0.1118518262 | AA34: 0.1460804202 | AB34: 0.186452287 | AC34: 0.1736494308 | AD34: 0.1688874275 | AE34: 0.1552411753 | AF34: 0.1517831557 | AG34: 0.1324645595 | AH34: 0.08152060189 | AI34: 0.05882125228 | AJ34: 0.04534323719 | AK34: 0.04061896285 | AL34: 0.03716844323 | AM34: 0.03618063789 | AN34: 0.03827592871 | AO34: =AO33-1 -> 0.04158276158 | AP34: =AP33-1 -> 0.04532627472 | AQ34: =AQ33-1 -> 0.03856505788 | AR34: =AR33-1 -> 0.04576980396 | AS34: =AS33-1 -> 0.06648605912 | AT34: =AT33-1 -> 0.08691520977 | AU34: 0.1041511944 | AV34: =AV33-1 -> 0.1044766959 | AW34: 0.1127414796 | AX34: =AX33-1 -> 0.1215566987 | AY34: 0.1160285668 | AZ34: 0.109495682 | BA34: 0.1273643037 | BB34: 0.06102225634 | BC34: =BC33-1 -> 0.02562765996 | BD34: 0.02475198737 | BE34: 0.005132998442 | BF34: =BF33-1 -> 0 | BG34: 0.002233483684 | BH34: =BH33-1 -> -0.005759335447 | BI34: -0.007589085023 | BJ34: =BJ33-1 -> -0.01216897036 | BK34: -0.02263133908 | BL34: =BL33-1 -> -0.02925283385 | BM34: -0.01579759715 | BN34: =BN33-1 -> -0.01745451012 | BO34: -0.02483108443 | BP34: =BP33-1 -> -0.02940761733 | BQ34: -0.03007380368 | BR34: -0.02325127683 | BS34: =BS33-1 -> -0.02500022929 | BT34: -0.02605390963 | BU34: =BU33-1 -> -0.02480633527 | BV34: -0.026593768 | BW34: =BW33-1 -> -0.02852453762 | BX34: -0.03345579435 | BY34: =BY33-1 -> -0.04491304627 | BZ34: -0.04795180106 | CA34: =CA33-1 -> -0.04356649909 | CB34: -0.03550010623 | CC34: =CC33-1 -> -0.05192176466 | CD34: -0.06816836604 | CE34: =CE33-1 -> -0.08627599 | CF34: -0.09758378882 | CG34: =CG33-1 -> -0.1001151623 | CH34: -0.1056789906 | CI34: =CI33-1 -> -0.1253803287 | CJ34: -0.1324296199 | CK34: =CK33-1 -> -0.1443984903

Sheet Schnittholzpreise (hidden)
A1: Nadel - Schnittholzpreise
A2: (Durchschnittspreise, mengengewichtet, ab Werk) | BC2: Klotzbretter und Kanteln nicht analog BFS gerechnet <<
BC3: alte Werte analog vorgaben BFS mit Dreisatz umgerechnet << | BD3: >> Neue Basis 100% und neue Gewichtung
A4: Sortiment | C4: Gewichtung | D4: 2007-1 | E4: 2007-2 | F4: 2007-3 | G4: 2007-4 | H4: 2007-5 | I4: 2007-6 | J4: 2008-1 | K4: 2008-2 | L4: 2008-3 | M4: 2008-4 | N4: 2008-5 | O4: 2008-6 | P4: 2009-1 | Q4: 2009-2 | R4: 2009-3 | S4: 2009-4 | T4: 2009-5 | U4: 2009-6 | V4: 2010-1 | W4: 2010-2 | X4: 2010-3 | Y4: 2010-4 | Z4: 2010-5 | AA4: 2010-6 | AB4: 2011-1 | AC4: 2011-2 | AD4: 2011-3 | AE4: 2011-4 | AF4: 2011-5 | AG4: 2011-6 | AH4: 2012-1 | AI4: 2012-2 | AJ4: 2012-3 | AK4: 2012-4 | AL4: 2012-5 | AM4: 2012-6 | AN4: 2013-1 | AO4: 2013-2 | AP4: 2013-3 | AQ4: 2013-4 | AR4: 2013-5 | AS4: 2013-6 | AT4: 2014-1 | AU4: 2014-2 | AV4: 2014-3 | AW4: 2014-4 | AX4: 2014-5 | AY4: 2014-6 | AZ4: 2015-1 | BA4: 2015-2 | BB4: 2015-3 | BC4: 2015-4 | BD4: 2015-5 | BE4: 2015-6 | BF4: 2016-1 | BG4: 2016-2 | BH4: 2016-3 | BI4: 2016-4 | BJ4: 2016-5 | BK4: 2016-6 | BL4: 2017-1 | BM4: 2017-2 | BN4: 2017-3 | BO4: 2017-4 | BP4: 2017-5 | BQ4: 2017-6 | BR4: 2018-1 | BS4: 2018-2 | BT4: 2018-3 | BU4: 2018-4 | BV4: 2018-5 | BW4: 2018-6 | BX4: 2019-1 | BY4: 2019-2 | BZ4: 2019-3 | CA4: 2019-4 | CB4: 2019-5 | CC4: 2019-6 | CD4: 2020-1 | CE4: 2020-2 | CF4: 2020-3 | CG4: 2020-4 | CH4: 2020-5 | CI4: 2020-6
A5: (Falls keine Angaben alle Schnitthölzer FI/TA) | C5: BfS Index | D5: [Fr./m3] | E5: [Fr./m3] | F5: [Fr./m3] | G5: [Fr./m3] | H5: [Fr./m3] | I5: [Fr./m3] | J5: [Fr./m3] | K5: [Fr./m3] | L5: [Fr./m3] | M5: [Fr./m3] | N5: [Fr./m3] | O5: [Fr./m3] | P5: [Fr./m3] | Q5: [Fr./m3] | R5: [Fr./m3] | S5: [Fr./m3] | T5: [Fr./m3] | U5: [Fr./m3] | V5: [Fr./m3] | W5: [Fr./m3] | X5: [Fr./m3] | Y5: [Fr./m3] | Z5: [Fr./m3] | AA5: [Fr./m3] | AB5: [Fr./m3] | AC5: [Fr./m3] | AD5: [Fr./m3] | AE5: [Fr./m3] | AF5: [Fr./m3] | AG5: [Fr./m3] | AH5: [Fr./m3] | AI5: [Fr./m3] | AJ5: [Fr./m3] | AK5: [Fr./m3] | AL5: [Fr./m3] | AM5: [Fr./m3] | AN5: [Fr./m3] | AO5: [Fr./m3] | AP5: [Fr./m3] | AQ5: [Fr./m3] | AR5: [Fr./m3] | AS5: [Fr./m3] | AT5: [Fr./m3] | AU5: [Fr./m3] | AV5: [Fr./m3] | AW5: [Fr./m3] | AX5: [Fr./m3] | AY5: [Fr./m3] | AZ5: [Fr./m3] | BA5: [Fr./m3] | BB5: [Fr./m3] | BC5: [Fr./m3] | BD5: [Fr./m3] | BE5: [Fr./m3] | BF5: [Fr./m3] | BG5: [Fr./m3] | BH5: [Fr./m3] | BI5: [Fr./m3] | BJ5: [Fr./m3] | BK5: [Fr./m3] | BL5: [Fr./m3] | BM5: [Fr./m3] | BN5: [Fr./m3] | BO5: [Fr./m3] | BP5: [Fr./m3] | BQ5: [Fr./m3] | BR5: [Fr./m3] | BS5: [Fr./m3] | BT5: [Fr./m3] | BU5: [Fr./m3] | BV5: [Fr./m3] | BW5: [Fr./m3] | BX5: [Fr./m3] | BY5: [Fr./m3] | BZ5: [Fr./m3] | CA5: [Fr./m3] | CB5: [Fr./m3] | CC5: [Fr./m3] | CD5: [Fr./m3] | CE5: [Fr./m3] | CF5: [Fr./m3] | CG5: [Fr./m3] | CH5: [Fr./m3] | CI5: [Fr./m3]
A7: Vollholz | B7: C24, N, bis 8m, herzgetrennt, frisch | C7: 11 | D7: 401 | E7: 406 | F7: 419 | G7: 417 | H7: 409 | I7: 406 | J7: 412 | K7: 412 | L7: 416 | M7: 407 | N7: 408 | O7: 407 | P7: 398 | Q7: 406 | R7: 405 | S7: 407 | T7: 408 | U7: 407 | V7: 410 | W7: 406 | X7: 408 | Y7: 402 | Z7: 403 | AA7: 408 | AB7: 407 | AC7: 408 | AD7: 406 | AE7: 404 | AF7: 402 | AG7: 400 | AH7: 399 | AI7: 398 | AJ7: 397 | AK7: 394 | AL7: 400 | AM7: 401 | AN7: 395 | AO7: 402 | AP7: 398 | AQ7: 401 | AR7: 402 | AS7: 398 | AT7: 397 | AU7: 399 | AV7: 401 | AW7: 399 | AX7: 405 | AY7: 407 | AZ7: 398 | BA7: 387 | BB7: 386 | BC7: 391 | BD7: 394 | BE7: 387 | BF7: 386 | BG7: 389 | BH7: 390 | BI7: 392 | BJ7: 386 | BK7: 390 | BL7: 390 | BM7: 395 | BN7: 399 | BO7: 401 | BP7: 405 | BQ7: 398 | BR7: 403 | BS7: 398 | BT7: 402 | BU7: 403 | BV7: 412 | BW7: 396 | BX7: 388 | BY7: 392 | BZ7: 394 | CA7: 388 | CB7: 381 | CC7: 384 | CD7: 385 | CE7: 387 | CF7: 387 | CG7: 384 | CH7: 385 | CI7: 388
A8: keilgezinktes Vollholz | B8: C24, I, technisch getrocknet | C8: 0 | D8: 590 | E8: 578 | F8: 578 | G8: 573 | H8: 553 | I8: 517 | J8: 472 | K8: 472 | L8: 508 | M8: 514 | N8: 523 | O8: 514 | P8: 515 | Q8: 508 | R8: 502 | S8: 502 | T8: 495 | U8: 494 | V8: 489 | W8: 498 | X8: 520 | Y8: 515 | Z8: 510 | AA8: 500 | AB8: 501 | AC8: 502 | AD8: 482 | AE8: 474 | AF8: 458 | AG8: 469 | AH8: 471 | AI8: 474 | AJ8: 472 | AK8: 465 | AL8: 474 | AM8: 470 | AN8: 479 | AO8: 480 | AP8: 483 | AQ8: 479 | AR8: 482 | AS8: 481 | AT8: 478 | AU8: 481 | AV8: 482 | AW8: 488 | AX8: 482 | AY8: 479 | AZ8: 474 | BA8: 469 | BB8: 474 | BC8: 493 | BD8: 488 | BE8: 487 | BF8: 487 | BG8: 487 | BH8: 478 | BI8: 476 | BJ8: 468 | BK8: 471 | BL8: 467 | BM8: 470 | BN8: 468 | BO8: 469 | BP8: 469 | BQ8: 467 | BR8: 465 | BS8: 466 | BT8: 474 | BU8: 480 | BV8: 485 | BW8: 491 | BX8: 489 | BY8: 492 | BZ8: 497 | CA8: 494 | CB8: 495 | CC8: 486 | CD8: 487 | CE8: 485 | CF8: 485 | CG8: 487 | CH8: 490 | CI8: 501
A9: schichtverleimtes VH | B9: C24, I, technisch getrocknet | C9: 0 | D9: 606 | E9: 621 | F9: 664 | G9: 641 | H9: 639 | I9: 620 | J9: 605 | K9: 595 | L9: 626 | M9: 631 | N9: 634 | O9: 624 | P9: 591 | Q9: 581 | R9: 541 | S9: 538 | T9: 554 | U9: 562 | V9: 561 | W9: 551 | X9: 562 | Y9: 557 | Z9: 563 | AA9: 561 | AB9: 563 | AC9: 570 | AD9: 562 | AE9: 564 | AF9: 552 | AG9: 554 | AH9: 532 | AI9: 542 | AJ9: 534 | AK9: 532 | AL9: 537 | AM9: 524 | AN9: 526 | AO9: 527 | AP9: 523 | AQ9: 525 | AR9: 529 | AS9: 531 | AT9: 528 | AU9: 530 | AV9: 539 | AW9: 542 | AX9: 539 | AY9: 543 | AZ9: 505 | BA9: 502 | BB9: 506 | BC9: 513 | BD9: 513 | BE9: 511 | BF9: 508 | BG9: 508 | BH9: 519 | BI9: 524 | BJ9: 511 | BK9: 517 | BL9: 507 | BM9: 508 | BN9: 507 | BO9: 512 | BP9: 515 | BQ9: 532 | BR9: 525 | BS9: 524 | BT9: 531 | BU9: 529 | BV9: 529 | BW9: 534 | BX9: 526 | BY9: 533 | BZ9: 538 | CA9: 534 | CB9: 536 | CC9: 531 | CD9: 535 | CE9: 536 | CF9: 542 | CG9: 535 | CH9: 534 | CI9: 537
A10: Dachlatten | B10: lufttrocken | C10: 11 | D10: 403 | E10: 409 | F10: 406 | G10: 399 | H10: 396 | I10: 398 | J10: 387 | K10: 388 | L10: 388 | M10: 382 | N10: 387 | O10: 392 | P10: 380 | Q10: 382 | R10: 370 | S10: 374 | T10: 380 | U10: 384 | V10: 375 | W10: 372 | X10: 378 | Y10: 378 | Z10: 379 | AA10: 381 | AB10: 376 | AC10: 371 | AD10: 376 | AE10: 374 | AF10: 370 | AG10: 372 | AH10: 379 | AI10: 368 | AJ10: 375 | AK10: 371 | AL10: 373 | AM10: 371 | AN10: 365 | AO10: 367 | AP10: 367 | AQ10: 366 | AR10: 370 | AS10: 375 | AT10: 372 | AU10: 380 | AV10: 376 | AW10: 370 | AX10: 372 | AY10: 376 | AZ10: 372 | BA10: 365 | BB10: 364 | BC10: 365 | BD10: 364 | BE10: 369 | BF10: 372 | BG10: 364 | BH10: 368 | BI10: 368 | BJ10: 369 | BK10: 370 | BL10: 371 | BM10: 369 | BN10: 368 | BO10: 371 | BP10: 372 | BQ10: 368 | BR10: 369 | BS10: 371 | BT10: 369 | BU10: 365 | BV10: 368 | BW10: 368 | BX10: 372 | BY10: 371 | BZ10: 365 | CA10: 372 | CB10: 374 | CC10: 369 | CD10: 372 | CE10: 372 | CF10: 366 | CG10: 363 | CH10: 363 | CI10: 367
A11: Doppellatten | B11: lufttrocken | C11: 11 | D11: 395 | E11: 414 | F11: 416 | G11: 405 | H11: 401 | I11: 405 | J11: 392 | K11: 395 | L11: 397 | M11: 384 | N11: 387 | O11: 393 | P11: 380 | Q11: 373 | R11: 374 | S11: 375 | T11: 383 | U11: 381 | V11: 381 | W11: 378 | X11: 382 | Y11: 382 | Z11: 381 | AA11: 380 | AB11: 380 | AC11: 375 | AD11: 380 | AE11: 378 | AF11: 375 | AG11: 376 | AH11: 386 | AI11: 373 | AJ11: 374 | AK11: 374 | AL11: 377 | AM11: 374 | AN11: 371 | AO11: 376 | AP11: 373 | AQ11: 377 | AR11: 378 | AS11: 381 | AT11: 377 | AU11: 380 | AV11: 379 | AW11: 375 | AX11: 374 | AY11: 379 | AZ11: 373 | BA11: 365 | BB11: 365 | BC11: 369 | BD11: 365 | BE11: 369 | BF11: 373 | BG11: 362 | BH11: 367 | BI11: 364 | BJ11: 367 | BK11: 373 | BL11: 375 | BM11: 372 | BN11: 368 | BO11: 372 | BP11: 370 | BQ11: 366 | BR11: 368 | BS11: 372 | BT11: 373 | BU11: 368 | BV11: 369 | BW11: 375 | BX11: 370 | BY11: 369 | BZ11: 370 | CA11: 371 | CB11: 371 | CC11: 366 | CD11: 370 | CE11: 369 | CF11: 361 | CG11: 360 | CH11: 360 | CI11: 365
A12: BSH-Lamellen | B12: C24, N, technisch getrocknet | C12: 9 | D12: 340 | E12: 348 | F12: 351 | G12: 348 | H12: 347 | I12: 346 | J12: 335 | K12: 332 | L12: 333 | M12: 335 | N12: 333 | O12: 332 | P12: 325 | Q12: 317 | R12: 323 | S12: 325 | T12: 328 | U12: 327 | V12: 326 | W12: 327 | X12: 329 | Y12: 334 | Z12: 336 | AA12: 336 | AB12: 333 | AC12: 322 | AD12: 318 | AE12: 313 | AF12: 306 | AG12: 309 | AH12: 305 | AI12: 307 | AJ12: 306 | AK12: 305 | AL12: 292 | AM12: 291 | AN12: 291 | AO12: 307 | AP12: 305 | AQ12: 307 | AR12: 306 | AS12: 310 | AT12: 314 | AU12: 317 | AV12: 314 | AW12: 292 | AX12: 290 | AY12: 293 | AZ12: 290 | BA12: 284 | BB12: 286 | BC12: 283 | BD12: 282 | BE12: 282 | BF12: 289 | BG12: 297 | BH12: 304 | BI12: 303 | BJ12: 306 | BK12: 309 | BL12: 310 | BM12: 311 | BN12: 305 | BO12: 307 | BP12: 300 | BQ12: 302 | BR12: 300 | BS12: 300 | BT12: 305 | BU12: 303 | BV12: 305 | BW12: 306 | BX12: 308 | BY12: 307 | BZ12: 308 | CA12: 309 | CB12: 306 | CC12: 303 | CD12: 306 | CE12: 303 | CF12: 286 | CG12: 285 | CH12: 288 | CI12: 293
B13: C24, I, technisch getrocknet | C13: 8 | D13: 304 | E13: 315 | F13: 317 | G13: 315 | H13: 310 | I13: 303 | J13: 300 | K13: 294 | L13: 290 | M13: 284 | N13: 284 | O13: 292 | P13: 278 | Q13: 265 | R13: 273 | S13: 279 | T13: 280 | U13: 278 | V13: 274 | W13: 278 | X13: 283 | Y13: 288 | Z13: 288 | AA13: 287 | AB13: 282 | AC13: 276 | AD13: 277 | AE13: 268 | AF13: 261 | AG13: 261 | AH13: 268 | AI13: 259 | AJ13: 253 | AK13: 261 | AL13: 256 | AM13: 254 | AN13: 250 | AO13: 249 | AP13: 255 | AQ13: 260 | AR13: 260 | AS13: 266 | AT13: 269 | AU13: 267 | AV13: 266 | AW13: 266 | AX13: 265 | AY13: 267 | AZ13: 262 | BA13: 258 | BB13: 254 | BC13: 254 | BD13: 253 | BE13: 253 | BF13: 255 | BG13: 252 | BH13: 253 | BI13: 255 | BJ13: 250 | BK13: 251 | BL13: 258 | BM13: 258 | BN13: 257 | BO13: 258 | BP13: 259 | BQ13: 259 | BR13: 262 | BS13: 263 | BT13: 268 | BU13: 264 | BV13: 267 | BW13: 265 | BX13: 263 | BY13: 266 | BZ13: 263 | CA13: 263 | CB13: 256 | CC13: 253 | CD13: 246 | CE13: 246 | CF13: 240 | CG13: 240 | CH13: 242 | CI13: 249
A14: Index Bauholz (ohne verleimtes Vollholz) | C14: =SUM(C7:C13) -> 50 | D14: =ROUND(D15*$BD14/$BD15,4) -> 110.0828 | E14: 112.8333 | F14: 114.2113 | G14: 112.862 | H14: 111.4956 | I14: 111.1027 | J14: 109.6381 | K14: 109.3441 | L14: 109.6413 | M14: 107.7063 | N14: 108.0623 | O14: 108.8843 | P14: 105.7179 | Q14: 104.9823 | R14: 105.1703 | S14: 106.0177 | T14: 107.0254 | U14: 106.8547 | V14: 106.4278 | W14: 106.0576 | X14: 107.0995 | Y14: 107.1373 | Z14: 107.3361 | AA14: 107.7585 | AB14: 106.998 | AC14: 105.6302 | AD14: 105.7647 | AE14: 104.6223 | AF14: 103.3247 | AG14: 103.471 | AH14: 104.3632 | AI14: 102.7331 | AJ14: =ROUND(AJ15*$BD14/$BD15,4) -> 102.6434 | AK14: 102.5648 | AL14: 102.3054 | AM14: 101.9794 | AN14: 100.812 | AO14: 102.6575 | AP14: 102.3566 | AQ14: 103.1617 | AR14: 103.4267 | AS14: 104.0194 | AT14: 103.9812 | AU14: 104.7498 | AV14: 104.4578 | AW14: 102.5086 | AX14: 102.9005 | AY14: 103.8007 | AZ14: 102.0803 | BA14: 99.821 | BB14: 99.5921 | BC14: =ROUND(BC15*$BD14/$BD15,4) -> 100.1042 | BD14: 100 | BE14: =ROUND(($C7*BE7/$BD7+$C8*BE8/$BD8+$C9*BE9/$BD9+$C10*BE10/$BD10+$C11*BE11/$BD11+$C12*BE12/$BD12+$C13*BE13/$BD13)/$C14*100,4) -> 100.1524 | BF14: 101.0923 | BG14: 100.4342 | BH14: 101.5432 | BI14: 101.5367 | BJ14: 101.3182 | BK14: 102.2184 | BL14: =ROUND(($C7*BL7/$BD7+$C8*BL8/$BD8+$C9*BL9/$BD9+$C10*BL10/$BD10+$C11*BL11/$BD11+$C12*BL12/$BD12+$C13*BL13/$BD13)/$C14*100,4) -> 102.9059 | BM14: 102.9472 | BN14: =ROUND(($C7*BN7/$BD7+$C8*BN8/$BD8+$C9*BN9/$BD9+$C10*BN10/$BD10+$C11*BN11/$BD11+$C12*BN12/$BD12+$C13*BN13/$BD13)/$C14*100,4) -> 102.4228 | BO14: 103.1478 | BP14: 102.9275 | BQ14: =ROUND(($C7*BQ7/$BD7+$C8*BQ8/$BD8+$C9*BQ9/$BD9+$C10*BQ10/$BD10+$C11*BQ11/$BD11+$C12*BQ12/$BD12+$C13*BQ13/$BD13)/$C14*100,4) -> 102.1814 | BR14: 102.7037 | BS14: =ROUND(($C7*BS7/$BD7+$C8*BS8/$BD8+$C9*BS9/$BD9+$C10*BS10/$BD10+$C11*BS11/$BD11+$C12*BS12/$BD12+$C13*BS13/$BD13)/$C14*100,4) -> 102.8497 | BT14: 103.6478 | BU14: =ROUND(($C7*BU7/$BD7+$C8*BU8/$BD8+$C9*BU9/$BD9+$C10*BU10/$BD10+$C11*BU11/$BD11+$C12*BU12/$BD12+$C13*BU13/$BD13)/$C14*100,4) -> 102.7799 | BV14: 103.8414 | BW14: =ROUND(($C7*BW7/$BD7+$C8*BW8/$BD8+$C9*BW9/$BD9+$C10*BW10/$BD10+$C11*BW11/$BD11+$C12*BW12/$BD12+$C13*BW13/$BD13)/$C14*100,4) -> 103.247 | BX14: 102.7418 | BY14: =ROUND(($C7*BY7/$BD7+$C8*BY8/$BD8+$C9*BY9/$BD9+$C10*BY10/$BD10+$C11*BY11/$BD11+$C12*BY12/$BD12+$C13*BY13/$BD13)/$C14*100,4) -> 102.9704 | BZ14: 102.6538 | CA14: =ROUND(($C7*CA7/$BD7+$C8*CA8/$BD8+$C9*CA9/$BD9+$C10*CA10/$BD10+$C11*CA11/$BD11+$C12*CA12/$BD12+$C13*CA13/$BD13)/$C14*100,4) -> 102.866 | CB14: 101.9618 | CC14: =ROUND(($C7*CC7/$BD7+$C8*CC8/$BD8+$C9*CC9/$BD9+$C10*CC10/$BD10+$C11*CC11/$BD11+$C12*CC12/$BD12+$C13*CC13/$BD13)/$C14*100,4) -> 101.1445 | CD14: 101.3716 | CE14: =ROUND(($C7*CE7/$BD7+$C8*CE8/$BD8+$C9*CE9/$BD9+$C10*CE10/$BD10+$C11*CE11/$BD11+$C12*CE12/$BD12+$C13*CE13/$BD13)/$C14*100,4) -> 101.2315 | CF14: 98.9221 | CG14: =ROUND(($C7*CG7/$BD7+$C8*CG8/$BD8+$C9*CG9/$BD9+$C10*CG10/$BD10+$C11*CG11/$BD11+$C12*CG12/$BD12+$C13*CG13/$BD13)/$C14*100,4) -> 98.4492 | CH14: 98.823 | CI14: =ROUND(($C7*CI7/$BD7+$C8*CI8/$BD8+$C9*CI9/$BD9+$C10*CI10/$BD10+$C11*CI11/$BD11+$C12*CI12/$BD12+$C13*CI13/$BD13)/$C14*100,4) -> 100.2955
A15: Index Bauholz (ohne verleimtes Vollholz) alte Basis | D15: 102.559 | E15: 105.1215 | F15: 106.4053 | G15: 105.1482 | H15: 103.8752 | I15: 103.5092 | J15: 102.1447 | K15: 101.8708 | L15: 102.1476 | M15: 100.3449 | N15: 100.6766 | O15: 101.4424 | P15: 98.4924 | Q15: 97.8071 | R15: 97.9822 | S15: 98.7717 | T15: 99.7105 | U15: 99.5515 | V15: 99.1538 | W15: 98.8089 | X15: 99.7796 | Y15: 99.8148 | Z15: 100 | AA15: 100.3935 | AB15: 99.685 | AC15: 98.4107 | AD15: 98.536 | AE15: 97.4717 | AF15: 96.2628 | AG15: 96.3991 | AH15: 97.2303 | AI15: 95.7116 | AJ15: 95.628 | AK15: 95.5548 | AL15: 95.3131 | AM15: 95.0094 | AN15: 93.9218 | AO15: 95.6412 | AP15: 95.3608 | AQ15: 96.1109 | AR15: 96.3578 | AS15: 96.91 | AT15: 96.8744 | AU15: 97.5905 | AV15: 97.3184 | AW15: 95.5024 | AX15: 95.8676 | AY15: 96.7062 | AZ15: 95.1034 | BA15: 92.9985 | BB15: 92.7853 | BC15: 93.2624 | BD15: 93.1653
A16: Index Bauholz (ohne verleimtes Vollholz) Internet BFS | Z16: 107.3361 | AB16: 106.998 | AC16: 105.6302 | AD16: 105.7647 | AE16: 104.6223 | AF16: 103.3247 | AG16: 103.471 | AH16: 104.3632 | AI16: 102.7331 | AJ16: 102.6434 | AK16: 102.5648 | AL16: 102.3054 | AM16: 101.9794 | AN16: 100.812 | AO16: 102.6575 | AP16: 102.3566 | AQ16: 103.1617 | AR16: 103.4267 | AS16: 104.0194 | AT16: 103.9812 | AU16: 104.7498 | AV16: 104.4578 | AW16: 102.5086 | AX16: 102.9005 | AY16: 103.8007 | AZ16: 102.0803 | BA16: 99.821 | BB16: 99.5921 | BC16: 100.1042 | BD16: 100 | BE16: 100.1524 | BF16: 101.0923 | BG16: 100.4342 | BH16: 101.5432 | BI16: 101.5367 | BJ16: 101.3182 | BK16: 102.2184 | BL16: 102.9059 | BM16: 102.9472 | BN16: 102.4228 | BO16: 103.1478 | BP16: 102.9275 | BQ16: 102.1814 | BR16: 102.7037 | BS16: 102.8497 | BT16: 103.6478 | BU16: 102.7799 | BV16: 103.8414 | BW16: 103.247 | BX16: 102.7418 | BY16: 102.9704 | BZ16: 102.6538 | CA16: 102.8659 | CB16: 101.9618 | CC16: 101.1445 | CD16: 101.3716 | CE16: 101.2315 | CF16: 98.9221 | CG16: 98.4492
A17: Kontrolle | Z17: =Z14-Z16 -> 0 | AB17: 0 | AC17: 0 | AD17: 0 | AE17: 0 | AF17: 0 | AG17: 0 | AH17: 0 | AI17: 0 | AJ17: 0 | AK17: 0 | AL17: =AL14-AL16 -> 0 | AM17: =AM14-AM16 -> 0 | AN17: 0 | AO17: 0 | AP17: 0 | AQ17: 0 | AR17: 0 | AS17: 0 | AT17: 0 | AU17: 0 | AV17: 0 | AW17: 0 | AX17: 0 | AY17: 0 | AZ17: 0 | BA17: 0 | BB17: 0 | BC17: =BC14-BC16 -> 0 | BD17: 0 | BE17: 0 | BF17: 0 | BG17: 0 | BH17: 0 | BI17: =BI14-BI16 -> 0 | BJ17: 0 | BK17: =BK14-BK16 -> 0 | BL17: 0 | BM17: =BM14-BM16 -> 0 | BN17: 0 | BO17: =BO14-BO16 -> 0 | BP17: 0 | BQ17: =BQ14-BQ16 -> 0 | BR17: 0 | BS17: =BS14-BS16 -> 0 | BT17: 0 | BU17: =BU14-BU16 -> 0 | BV17: 0 | BW17: =BW14-BW16 -> 0 | BX17: 0 | BY17: =BY14-BY16 -> 0 | BZ17: 0 | CA17: =CA14-CA16 -> 0.0001 | CB17: 0 | CC17: =CC14-CC16 -> 0 | CD17: 0 | CE17: =CE14-CE16 -> 0 | CF17: 0 | CG17: =CG14-CG16 -> 0 | CH17: 98.823 | CI17: =CI14-CI16 -> 100.2955
A18: Index Bauholz (ohne verleimtes Vollholz) | C18: =SUM(C7:C13) -> 50 | D18: =(D$14-100)/100 -> 0.100828 | E18: =(E$14-100)/100 -> 0.128333 | F18: 0.142113 | G18: 0.12862 | H18: 0.114956 | I18: 0.111027 | J18: 0.096381 | K18: 0.093441 | L18: 0.096413 | M18: 0.077063 | N18: 0.080623 | O18: 0.088843 | P18: 0.057179 | Q18: 0.049823 | R18: 0.051703 | S18: 0.060177 | T18: 0.070254 | U18: 0.068547 | V18: 0.064278 | W18: 0.060576 | X18: 0.070995 | Y18: 0.071373 | Z18: 0.073361 | AA18: 0.077585 | AB18: 0.06998 | AC18: 0.056302 | AD18: 0.057647 | AE18: 0.046223 | AF18: 0.033247 | AG18: 0.03471 | AH18: 0.043632 | AI18: 0.027331 | AJ18: 0.026434 | AK18: 0.025648 | AL18: 0.023054 | AM18: 0.019794 | AN18: 0.00812 | AO18: 0.026575 | AP18: 0.023566 | AQ18: 0.031617 | AR18: 0.034267 | AS18: 0.040194 | AT18: 0.039812 | AU18: 0.047498 | AV18: 0.044578 | AW18: 0.025086 | AX18: 0.029005 | AY18: 0.038007 | AZ18: 0.020803 | BA18: -0.00179 | BB18: -0.004079 | BC18: 0.001042 | BD18: 0 | BE18: 0.001524 | BF18: 0.010923 | BG18: 0.004342 | BH18: 0.015432 | BI18: 0.015367 | BJ18: 0.013182 | BK18: 0.022184 | BL18: 0.029059 | BM18: 0.029472 | BN18: 0.024228 | BO18: 0.031478 | BP18: 0.029275 | BQ18: =(BQ$14-100)/100 -> 0.021814 | BR18: 0.027037 | BS18: 0.028497 | BT18: 0.036478 | BU18: 0.027799 | BV18: 0.038414 | BW18: 0.03247 | BX18: 0.027418 | BY18: 0.029704 | BZ18: 0.026538 | CA18: 0.02866 | CB18: 0.019618 | CC18: 0.011445 | CD18: 0.013716 | CE18: 0.012315 | CF18: -0.010779 | CG18: -0.015508 | CH18: -0.01177 | CI18: 0.002955
A20: Schalungskantholz | B20: C16, 8/12, gekappt, frisch | C20: 14 | D20: 261 | E20: 271 | F20: 276 | G20: 270 | H20: 278 | I20: 275 | J20: 277 | K20: 281 | L20: 278 | M20: 274 | N20: 273 | O20: 281 | P20: 276 | Q20: 281 | R20: 268.5 | S20: 272 | T20: 271 | U20: 271 | V20: 276 | W20: 266 | X20: 269 | Y20: 274 | Z20: 274 | AA20: 277 | AB20: 272 | AC20: 273 | AD20: 272 | AE20: 273 | AF20: 274 | AG20: 275 | AH20: 265 | AI20: 275 | AJ20: 274 | AK20: 271 | AL20: 269 | AM20: 270 | AN20: 269 | AO20: 271 | AP20: 272 | AQ20: 276 | AR20: 278 | AS20: 278 | AT20: 276 | AU20: 282 | AV20: 287 | AW20: 278 | AX20: 269 | AY20: 273 | AZ20: 269 | BA20: 264 | BB20: 266 | BC20: 267 | BD20: 267 | BE20: 264 | BF20: 266 | BG20: 266 | BH20: 263 | BI20: 262 | BJ20: 260 | BK20: 259 | BL20: 258 | BM20: 261 | BN20: 257 | BO20: 260 | BP20: 260 | BQ20: 254 | BR20: 261 | BS20: 265 | BT20: 261 | BU20: 262 | BV20: 260 | BW20: 258 | BX20: 262 | BY20: 261 | BZ20: 261 | CA20: 261 | CB20: 259 | CC20: 259 | CD20: 260 | CE20: 256 | CF20: 255 | CG20: 256 | CH20: 255 | CI20: 251
A21: Schalbretter | B21: C16, roh, fix breit, frisch | C21: 11 | D21: 265 | E21: 271 | F21: 279 | G21: 276 | H21: 273 | I21: 271 | J21: 283 | K21: 276 | L21: 279 | M21: 276 | N21: 276 | O21: 280 | P21: 271 | Q21: 278 | R21: 272 | S21: 272 | T21: 274 | U21: 275 | V21: 278 | W21: 272 | X21: 281 | Y21: 277 | Z21: 276 | AA21: 278 | AB21: 277 | AC21: 279 | AD21: 273 | AE21: 277 | AF21: 272 | AG21: 275 | AH21: 276 | AI21: 269 | AJ21: 264 | AK21: 265 | AL21: 263 | AM21: 267 | AN21: 261 | AO21: 262 | AP21: 268 | AQ21: 276 | AR21: 280 | AS21: 282 | AT21: 275 | AU21: 281 | AV21: 278 | AW21: 274 | AX21: 265 | AY21: 272 | AZ21: 270 | BA21: 260 | BB21: 262 | BC21: 259 | BD21: 260 | BE21: 260 | BF21: 264 | BG21: 261 | BH21: 261 | BI21: 259 | BJ21: 258 | BK21: 260 | BL21: 256 | BM21: 255 | BN21: 254 | BO21: 256 | BP21: 255 | BQ21: 258 | BR21: 261 | BS21: 258 | BT21: 260 | BU21: 257 | BV21: 254 | BW21: 261 | BX21: 260 | BY21: 256 | BZ21: 251 | CA21: 252 | CB21: 253 | CC21: 255 | CD21: 253 | CE21: 253 | CF21: 245 | CG21: 246 | CH21: 248 | CI21: 253
A22: Gerüstbretter | B22: C24, fix breit, gekappt, frisch | C22: 13 | D22: 300 | E22: 307 | F22: 304 | G22: 302 | H22: 312 | I22: 307 | J22: 318 | K22: 312 | L22: 311 | M22: 307 | N22: 302 | O22: 308 | P22: 295 | Q22: 299 | R22: 296 | S22: 298 | T22: 301 | U22: 298 | V22: 306 | W22: 296 | X22: 298 | Y22: 307 | Z22: 302 | AA22: 306 | AB22: 304 | AC22: 305 | AD22: 303 | AE22: 306 | AF22: 301 | AG22: 301 | AH22: 293 | AI22: 298 | AJ22: 295 | AK22: 302 | AL22: 298 | AM22: 300 | AN22: 299 | AO22: 296 | AP22: 293 | AQ22: 295 | AR22: 300 | AS22: 305 | AT22: 304 | AU22: 306 | AV22: 307 | AW22: 301 | AX22: 298 | AY22: 296 | AZ22: 295 | BA22: 294 | BB22: 296 | BC22: 292 | BD22: 293 | BE22: 293 | BF22: 294 | BG22: 294 | BH22: 294 | BI22: 290 | BJ22: 288 | BK22: 290 | BL22: 290 | BM22: 288 | BN22: 285 | BO22: 288 | BP22: 287 | BQ22: 291 | BR22: 289 | BS22: 289 | BT22: 286 | BU22: 288 | BV22: 289 | BW22: 294 | BX22: 292 | BY22: 290 | BZ22: 288 | CA22: 286 | CB22: 287 | CC22: 285 | CD22: 285 | CE22: 285 | CF22: 278 | CG22: 283 | CH22: 282 | CI22: 281
A23: Index Arbeitsmittel | C23: =SUM(C20:C22) -> 38 | D23: =ROUND(D24*$BD23/$BD24,4) -> 100.3246 | E23: 103.2589 | F23: 104.5516 | G23: 103.0877 | H23: 105.0956 | I23: 103.8854 | J23: 106.615 | K23: 105.8764 | L23: 105.6109 | M23: 104.2471 | N23: 103.5576 | O23: 105.8647 | P23: 102.7631 | Q23: 104.6982 | R23: 101.7986 | S23: 102.56 | T23: 102.9304 | U23: 102.7143 | V23: 104.6611 | W23: 101.4071 | X23: 103.0231 | Y23: 104.3508 | Z23: 103.7142 | AA23: 104.8177 | AB23: 103.7177 | AC23: 104.1883 | AD23: 103.1966 | AE23: 104.0876 | AF23: 103.1929 | AG23: 103.6606 | AH23: 101.3454 | AI23: 102.7189 | AJ23: 101.7242 | AK23: 102.1041 | AL23: 101.1571 | AM23: 101.9415 | AN23: 101.0564 | AO23: 101.1536 | AP23: 101.6124 | AQ23: 103.2814 | AR23: 104.5423 | AS23: 105.2825 | AT23: 104.137 | AU23: 105.9119 | AV23: 106.4906 | AW23: 104.0268 | AX23: 101.3645 | AY23: 102.5035 | AZ23: 101.5631 | BA23: 99.6367 | BB23: 100.3705 | BC23: =ROUND(BC24*$BD23/$BD24,4) -> 99.7898 | BD23: 100 | BE23: =ROUND(($C20*BE20/$BD20+$C21*BE21/$BD21+$C22*BE22/$BD22)/$C23*100,4) -> 99.586 | BF23: =ROUND(($C20*BF20/$BD20+$C21*BF21/$BD21+$C22*BF22/$BD22)/$C23*100,4) -> 100.4241 | BG23: 100.0901 | BH23: 99.6762 | BI23: =ROUND(($C20*BI20/$BD20+$C21*BI21/$BD21+$C22*BI22/$BD22)/$C23*100,4) -> 98.8485 | BJ23: 98.2276 | BK23: =ROUND(($C20*BK20/$BD20+$C21*BK21/$BD21+$C22*BK22/$BD22)/$C23*100,4) -> 98.5458 | BL23: 97.9625 | BM23: =ROUND(($C20*BM20/$BD20+$C21*BM21/$BD21+$C22*BM22/$BD22)/$C23*100,4) -> 98.0316 | BN23: 97.0181 | BO23: =ROUND(($C20*BO20/$BD20+$C21*BO21/$BD21+$C22*BO22/$BD22)/$C23*100,4) -> 98.005 | BP23: 97.7769 | BQ23: =ROUND(($C20*BQ20/$BD20+$C21*BQ21/$BD21+$C22*BQ22/$BD22)/$C23*100,4) -> 97.75 | BR23: 98.8164 | BS23: =ROUND(($C20*BS20/$BD20+$C21*BS21/$BD21+$C22*BS22/$BD22)/$C23*100,4) -> 99.0343 | BT23: 98.3548 | BU23: =ROUND(($C20*BU20/$BD20+$C21*BU21/$BD21+$C22*BU22/$BD22)/$C23*100,4) -> 98.3923 | BV23: 97.899 | BW23: =ROUND(($C20*BW20/$BD20+$C21*BW21/$BD21+$C22*BW22/$BD22)/$C23*100,4) -> 98.9862 | BX23: 99.1933 | BY23: =ROUND(($C20*BY20/$BD20+$C21*BY21/$BD21+$C22*BY22/$BD22)/$C23*100,4) -> 98.3765 | BZ23: 97.5863 | CA23: =ROUND(($C20*CA20/$BD20+$C21*CA21/$BD21+$C22*CA22/$BD22)/$C23*100,4) -> 97.4641 | CB23: 97.4162 | CC23: =ROUND(($C20*CC20/$BD20+$C21*CC21/$BD21+$C22*CC22/$BD22)/$C23*100,4) -> 97.4054 | CD23: 97.3207 | CE23: =ROUND(($C20*CE20/$BD20+$C21*CE21/$BD21+$C22*CE22/$BD22)/$C23*100,4) -> 96.7687 | CF23: 94.9227 | CG23: =ROUND(($C20*CG20/$BD20+$C21*CG21/$BD21+$C22*CG22/$BD22)/$C23*100,4) -> 95.7559 | CH23: 95.7238 | CI23: =ROUND(($C20*CI20/$BD20+$C21*CI21/$BD21+$C22*CI22/$BD22)/$C23*100,4) -> 95.6118
A24: Index Arbeitsmittel alte Basis | D24: 96.7318 | E24: 99.561 | F24: 100.8074 | G24: 99.3959 | H24: 101.3319 | I24: 100.1651 | J24: 102.7969 | K24: 102.0848 | L24: 101.8288 | M24: 100.5138 | N24: 99.849 | O24: 102.0735 | P24: 99.0829 | Q24: 100.9487 | R24: 98.153 | S24: 98.8871 | T24: 99.2443 | U24: 99.0359 | V24: 100.913 | W24: 97.7755 | X24: 99.3336 | Y24: 100.6138 | Z24: 100 | AA24: 101.064 | AB24: 100.0034 | AC24: 100.4571 | AD24: 99.5009 | AE24: 100.36 | AF24: 99.4974 | AG24: 99.9483 | AH24: 97.716 | AI24: 99.0403 | AJ24: 98.0813 | AK24: 98.4475 | AL24: 97.5345 | AM24: 98.2908 | AN24: 97.4374 | AO24: 97.5311 | AP24: 97.9735 | AQ24: 99.5827 | AR24: 100.7984 | AS24: 101.5121 | AT24: 100.4076 | AU24: 102.119 | AV24: 102.677 | AW24: 100.3014 | AX24: 97.7344 | AY24: 98.8326 | AZ24: 97.9259 | BA24: 96.0685 | BB24: 96.776 | BC24: 96.2161 | BD24: 96.4188
A25: Index Arbeitsmittel Internet BFS | Z25: 103.7142 | AB25: 103.7177 | AC25: 104.1883 | AD25: 103.1966 | AE25: 104.0876 | AF25: 103.1929 | AG25: 103.6606 | AH25: 101.3454 | AI25: 102.7189 | AJ25: 101.7242 | AK25: 102.1041 | AL25: 101.1571 | AM25: 101.9415 | AN25: 101.0564 | AO25: 101.1536 | AP25: 101.6124 | AQ25: 103.2814 | AR25: 104.5423 | AS25: 105.2825 | AT25: 104.137 | AU25: 105.9119 | AV25: 106.4906 | AW25: 104.0268 | AX25: 101.3645 | AY25: 102.5035 | AZ25: 101.5631 | BA25: 99.6367 | BB25: 100.3705 | BC25: 99.7898 | BD25: 100 | BE25: 99.586 | BF25: 100.4241 | BG25: 100.0901 | BH25: 99.6762 | BI25: 98.8485 | BJ25: 98.2276 | BK25: 98.5458 | BL25: 97.9625 | BM25: 98.0316 | BN25: 97.0181 | BO25: 98.005 | BP25: 97.7769 | BQ25: 97.75 | BR25: 98.8164 | BS25: 99.0343 | BT25: 98.3548 | BU25: 98.3923 | BV25: 97.899 | BW25: 98.9862 | BX25: 99.1933 | BY25: 98.3765 | BZ25: 97.5863 | CA25: 97.4641 | CB25: 97.4162 | CC25: 97.4054 | CD25: 97.3207 | CE25: 96.7687 | CF25: 94.9227 | CG25: 95.7559
A26: Kontrolle | Z26: =Z23-Z25 -> 0 | AB26: =AB23-AB25 -> 0 | AC26: =AC23-AC25 -> 0 | AD26: =AD23-AD25 -> 0 | AE26: =AE23-AE25 -> 0 | AF26: =AF23-AF25 -> 0 | AG26: =AG23-AG25 -> 0 | AH26: =AH23-AH25 -> 0 | AI26: =AI23-AI25 -> 0 | AJ26: =AJ23-AJ25 -> 0 | AK26: =AK23-AK25 -> 0 | AL26: =AL23-AL25 -> 0 | AM26: =AM23-AM25 -> 0 | AN26: =AN23-AN25 -> 0 | AO26: =AO23-AO25 -> 0 | AP26: =AP23-AP25 -> 0 | AQ26: =AQ23-AQ25 -> 0 | AR26: =AR23-AR25 -> 0 | AS26: =AS23-AS25 -> 0 | AT26: =AT23-AT25 -> 0 | AU26: =AU23-AU25 -> 0 | AV26: =AV23-AV25 -> 0 | AW26: =AW23-AW25 -> 0 | AX26: =AX23-AX25 -> 0 | AY26: =AY23-AY25 -> 0 | AZ26: =AZ23-AZ25 -> 0 | BA26: =BA23-BA25 -> 0 | BB26: =BB23-BB25 -> 0 | BC26: =BC23-BC25 -> 0 | BD26: =BD23-BD25 -> 0 | BE26: =BE23-BE25 -> 0 | BF26: 0 | BG26: 0 | BH26: 0 | BI26: 0 | BJ26: 0 | BK26: 0 | BL26: =BL23-BL25 -> 0 | BM26: 0 | BN26: =BN23-BN25 -> 0 | BO26: 0 | BP26: 0 | BQ26: =BQ23-BQ25 -> 0 | BR26: 0 | BS26: =BS23-BS25 -> 0 | BT26: 0 | BU26: =BU23-BU25 -> 0 | BV26: 0 | BW26: =BW23-BW25 -> 0 | BX26: 0 | BY26: =BY23-BY25 -> 0 | BZ26: 0 | CA26: =CA23-CA25 -> 0 | CB26: 0 | CC26: =CC23-CC25 -> 0 | CD26: 0 | CE26: =CE23-CE25 -> 0 | CF26: 0 | CG26: =CG23-CG25 -> 0 | CH26: 95.7238 | CI26: =CI23-CI25 -> 95.6118
A27: Index Arbeitsmittel | C27: =SUM(C20:C22) -> 38 | D27: =(D$23-100)/100 -> 0.003246 | E27: 0.032589 | F27: 0.045516 | G27: 0.030877 | H27: 0.050956 | I27: 0.038854 | J27: 0.06615 | K27: 0.058764 | L27: 0.056109 | M27: 0.042471 | N27: 0.035576 | O27: 0.058647 | P27: 0.027631 | Q27: 0.046982 | R27: 0.017986 | S27: 0.0256 | T27: 0.029304 | U27: 0.027143 | V27: 0.046611 | W27: 0.014071 | X27: 0.030231 | Y27: 0.043508 | Z27: 0.037142 | AA27: 0.048177 | AB27: 0.037177 | AC27: 0.041883 | AD27: 0.031966 | AE27: 0.040876 | AF27: 0.031929 | AG27: 0.036606 | AH27: 0.013454 | AI27: 0.027189 | AJ27: 0.017242 | AK27: 0.021041 | AL27: 0.011571 | AM27: 0.019415 | AN27: 0.010564 | AO27: 0.011536 | AP27: 0.016124 | AQ27: 0.032814 | AR27: 0.045423 | AS27: 0.052825 | AT27: 0.04137 | AU27: 0.059119 | AV27: 0.064906 | AW27: 0.040268 | AX27: 0.013645 | AY27: 0.025035 | AZ27: 0.015631 | BA27: -0.003633 | BB27: 0.003705 | BC27: -0.002102 | BD27: 0 | BE27: =(BE$23-100)/100 -> -0.00414 | BF27: =(BF$23-100)/100 -> 0.004241 | BG27: 0.000901 | BH27: -0.003238 | BI27: -0.011515 | BJ27: -0.017724 | BK27: -0.014542 | BL27: -0.020375 | BM27: -0.019684 | BN27: -0.029819 | BO27: -0.01995 | BP27: -0.022231 | BQ27: -0.0225 | BR27: -0.011836 | BS27: -0.009657 | BT27: -0.016452 | BU27: -0.016077 | BV27: -0.02101 | BW27: -0.010138 | BX27: -0.008067 | BY27: -0.016235 | BZ27: -0.024137 | CA27: -0.025359 | CB27: -0.025838 | CC27: -0.025946 | CD27: -0.026793 | CE27: -0.032313 | CF27: -0.050773 | CG27: -0.042441 | CH27: -0.042762 | CI27: -0.043882
A29: Klotzbretter FI | B29: 2, technisch getrocknet | C29: 25 | D29: 757 | E29: 772 | F29: 792 | G29: 776 | H29: 781 | I29: 804 | J29: 792 | K29: 804 | L29: 780 | M29: 744 | N29: 759 | O29: 772 | P29: 751 | Q29: 781 | R29: 782 | S29: 769 | T29: 774 | U29: 773 | V29: 770 | W29: 755 | X29: 759 | Y29: 754 | Z29: 772 | AA29: 779 | AB29: 768 | AC29: 788 | AD29: 767 | AE29: 771 | AF29: 777 | AG29: 780 | AH29: 773 | AI29: 772 | AJ29: 752 | AK29: 781 | AL29: 773 | AM29: 766 | AN29: 758 | AO29: 759 | AP29: 758 | AQ29: 772 | AR29: 759 | AS29: 771 | AT29: 795 | AU29: 805 | AV29: 798 | AW29: 803 | AX29: 788 | AY29: 773 | AZ29: 782 | BA29: 774 | BB29: 722 | BC29: 766 | BD29: 745 | BE29: 742 | BF29: 738 | BG29: 738 | BH29: 754 | BI29: 768 | BJ29: 776 | BK29: 783 | BL29: 785 | BM29: 783 | BN29: 777 | BO29: 797 | BP29: 797 | BQ29: 805 | BR29: 807 | BS29: 800 | BT29: 818 | BU29: 806 | BV29: 827 | BW29: 815 | BX29: 814 | BY29: 810 | BZ29: 832 | CA29: 835 | CB29: 812 | CC29: 808 | CD29: 823 | CE29: 831 | CF29: 819 | CG29: 826 | CH29: 823 | CI29: 837
A30: Klotzbretter TA | B30: 2, technisch getrocknet | C30: 25 | D30: 762 | E30: 754 | F30: 760 | G30: 741 | H30: 747 | I30: 755 | J30: 730 | K30: 730 | L30: 719 | M30: 700 | N30: 710 | O30: 711 | P30: 707 | Q30: 693 | R30: 712 | S30: 724 | T30: 716 | U30: 715 | V30: 704 | W30: 699 | X30: 698 | Y30: 693 | Z30: 722 | AA30: 738 | AB30: 711 | AC30: 711 | AD30: 708 | AE30: 718 | AF30: 738 | AG30: 718 | AH30: 723 | AI30: 704 | AJ30: 680 | AK30: 678 | AL30: 676 | AM30: 668 | AN30: 671 | AO30: 674 | AP30: 687 | AQ30: 689 | AR30: 694 | AS30: 687 | AT30: 683 | AU30: 680 | AV30: 703 | AW30: 692 | AX30: 688 | AY30: 694 | AZ30: 691 | BA30: 679 | BB30: 692 | BC30: 685 | BD30: 689 | BE30: 692 | BF30: 693 | BG30: 693 | BH30: 710 | BI30: 722 | BJ30: 744 | BK30: 751 | BL30: 769 | BM30: 754 | BN30: 744 | BO30: 740 | BP30: 731 | BQ30: 722 | BR30: 714 | BS30: 707 | BT30: 709 | BU30: 692 | BV30: 708 | BW30: 688 | BX30: 715 | BY30: 712 | BZ30: 737 | CA30: 749 | CB30: 771 | CC30: 769 | CD30: 773 | CE30: 772 | CF30: 766 | CG30: 764 | CH30: 767 | CI30: 785
A31: Flügelkanteln FI | B31: 2, technisch getrocknet | C31: 25 | D31: 1002 | E31: 1014 | F31: 1011 | G31: 1021 | H31: 1024 | I31: 1020 | J31: 1015 | K31: 1004 | L31: 1016 | M31: 1030 | N31: 1045 | O31: 1084 | P31: 1010 | Q31: 1007 | R31: 1007 | S31: 1025 | T31: 1039 | U31: 1059 | V31: 1076 | W31: 1097 | X31: 1133 | Y31: 1151 | Z31: 1160 | AA31: 1182 | AB31: 1194 | AC31: 1216 | AD31: 1179 | AE31: 1209 | AF31: 1152 | AG31: 1161 | AH31: 1164 | AI31: 1172 | AJ31: 1190 | AK31: 1198 | AL31: 1186 | AM31: 1149 | AN31: 1154 | AO31: 1157 | AP31: 1147 | AQ31: 1115 | AR31: 1136 | AS31: 1133 | AT31: 1132 | AU31: 1153 | AV31: 1148 | AW31: 1140 | AX31: 1132 | AY31: 1131 | AZ31: 1098 | BA31: 1006 | BB31: 1026 | BC31: 1053 | BD31: 1028 | BE31: 1023 | BF31: 1011 | BG31: 1011 | BH31: 982 | BI31: 998 | BJ31: 980 | BK31: 974 | BL31: 967 | BM31: 953 | BN31: 961 | BO31: 986 | BP31: 995 | BQ31: 999 | BR31: 991 | BS31: 990 | BT31: 1002 | BU31: 992 | BV31: 999 | BW31: 1049 | BX31: 990 | BY31: 1012 | BZ31: 1046 | CA31: 1052 | CB31: 1059 | CC31: 1031 | CD31: 1040 | CE31: 1046 | CF31: 1041 | CG31: 1057 | CH31: 1054 | CI31: 957
A32: Rahmenkanteln FI | B32: 2, technisch getrocknet | C32: 25 | D32: 754 | E32: 787 | F32: 800 | G32: 799 | H32: 795 | I32: 795 | J32: 818 | K32: 815 | L32: 832 | M32: 844 | N32: 871 | O32: 890 | P32: 868 | Q32: 880 | R32: 867 | S32: 894 | T32: 887 | U32: 896 | V32: 911 | W32: 961 | X32: 961 | Y32: 912 | Z32: 942 | AA32: 948 | AB32: 963 | AC32: 983 | AD32: 962 | AE32: 984 | AF32: 985 | AG32: 981 | AH32: 976 | AI32: 979 | AJ32: 974 | AK32: 972 | AL32: 960 | AM32: 994 | AN32: 965 | AO32: 950 | AP32: 939 | AQ32: 960 | AR32: 941 | AS32: 938 | AT32: 935 | AU32: 954 | AV32: 950 | AW32: 953 | AX32: 943 | AY32: 958 | AZ32: 955 | BA32: 918 | BB32: 904 | BC32: 925 | BD32: 912 | BE32: 908 | BF32: 901 | BG32: 901 | BH32: 885 | BI32: 909 | BJ32: 896 | BK32: 894 | BL32: 896 | BM32: 885 | BN32: 881 | BO32: 902 | BP32: 926 | BQ32: 922 | BR32: 909 | BS32: 919 | BT32: 916 | BU32: 908 | BV32: 921 | BW32: 915 | BX32: 912 | BY32: 910 | BZ32: 908 | CA32: 904 | CB32: 906 | CC32: 883 | CD32: 885 | CE32: 886 | CF32: 880 | CG32: 890 | CH32: 891 | CI32: 880
A33: Index Klotzbretter und Kanteln | C33: =SUM(C29:C32) -> 100 | D33: =ROUND(($C29*D29/$BD29+$C30*D30/$BD30+$C31*D31/$BD31+$C32*D32/$BD32)/$C33*100,4) -> 98.088 | E33: =ROUND(($C29*E29/$BD29+$C30*E30/$BD30+$C31*E31/$BD31+$C32*E32/$BD32)/$C33*100,4) -> 99.4975 | F33: =ROUND(($C29*F29/$BD29+$C30*F30/$BD30+$C31*F31/$BD31+$C32*F32/$BD32)/$C33*100,4) -> 100.6698 | G33: =ROUND(($C29*G29/$BD29+$C30*G30/$BD30+$C31*G31/$BD31+$C32*G32/$BD32)/$C33*100,4) -> 99.6592 | H33: =ROUND(($C29*H29/$BD29+$C30*H30/$BD30+$C31*H31/$BD31+$C32*H32/$BD32)/$C33*100,4) -> 100.008 | I33: =ROUND(($C29*I29/$BD29+$C30*I30/$BD30+$C31*I31/$BD31+$C32*I32/$BD32)/$C33*100,4) -> 100.9729 | J33: =ROUND(($C29*J29/$BD29+$C30*J30/$BD30+$C31*J31/$BD31+$C32*J32/$BD32)/$C33*100,4) -> 100.1719 | K33: =ROUND(($C29*K29/$BD29+$C30*K30/$BD30+$C31*K31/$BD31+$C32*K32/$BD32)/$C33*100,4) -> 100.2249 | L33: =ROUND(($C29*L29/$BD29+$C30*L30/$BD30+$C31*L31/$BD31+$C32*L32/$BD32)/$C33*100,4) -> 99.7782 | M33: =ROUND(($C29*M29/$BD29+$C30*M30/$BD30+$C31*M31/$BD31+$C32*M32/$BD32)/$C33*100,4) -> 98.5502 | N33: =ROUND(($C29*N29/$BD29+$C30*N30/$BD30+$C31*N31/$BD31+$C32*N32/$BD32)/$C33*100,4) -> 100.5213 | O33: =ROUND(($C29*O29/$BD29+$C30*O30/$BD30+$C31*O31/$BD31+$C32*O32/$BD32)/$C33*100,4) -> 102.4631 | P33: =ROUND(($C29*P29/$BD29+$C30*P30/$BD30+$C31*P31/$BD31+$C32*P32/$BD32)/$C33*100,4) -> 99.2106 | Q33: =ROUND(($C29*Q29/$BD29+$C30*Q30/$BD30+$C31*Q31/$BD31+$C32*Q32/$BD32)/$C33*100,4) -> 99.9653 | R33: =ROUND(($C29*R29/$BD29+$C30*R30/$BD30+$C31*R31/$BD31+$C32*R32/$BD32)/$C33*100,4) -> 100.3319 | S33: =ROUND(($C29*S29/$BD29+$C30*S30/$BD30+$C31*S31/$BD31+$C32*S32/$BD32)/$C33*100,4) -> 101.5089 | T33: =ROUND(($C29*T29/$BD29+$C30*T30/$BD30+$C31*T31/$BD31+$C32*T32/$BD32)/$C33*100,4) -> 101.535 | U33: =ROUND(($C29*U29/$BD29+$C30*U30/$BD30+$C31*U31/$BD31+$C32*U32/$BD32)/$C33*100,4) -> 102.1983 | V33: =ROUND(($C29*V29/$BD29+$C30*V30/$BD30+$C31*V31/$BD31+$C32*V32/$BD32)/$C33*100,4) -> 102.5231 | W33: =ROUND(($C29*W29/$BD29+$C30*W30/$BD30+$C31*W31/$BD31+$C32*W32/$BD32)/$C33*100,4) -> 103.7196 | X33: =ROUND(($C29*X29/$BD29+$C30*X30/$BD30+$C31*X31/$BD31+$C32*X32/$BD32)/$C33*100,4) -> 104.6931 | Y33: =ROUND(($C29*Y29/$BD29+$C30*Y30/$BD30+$C31*Y31/$BD31+$C32*Y32/$BD32)/$C33*100,4) -> 103.4384 | Z33: =ROUND(($C29*Z29/$BD29+$C30*Z30/$BD30+$C31*Z31/$BD31+$C32*Z32/$BD32)/$C33*100,4) -> 106.1359 | AA33: =ROUND(($C29*AA29/$BD29+$C30*AA30/$BD30+$C31*AA31/$BD31+$C32*AA32/$BD32)/$C33*100,4) -> 107.6509 | AB33: =ROUND(($C29*AB29/$BD29+$C30*AB30/$BD30+$C31*AB31/$BD31+$C32*AB32/$BD32)/$C33*100,4) -> 107.0051 | AC33: =ROUND(($C29*AC29/$BD29+$C30*AC30/$BD30+$C31*AC31/$BD31+$C32*AC32/$BD32)/$C33*100,4) -> 108.7595 | AD33: =ROUND(($C29*AD29/$BD29+$C30*AD30/$BD30+$C31*AD31/$BD31+$C32*AD32/$BD32)/$C33*100,4) -> 106.4705 | AE33: =ROUND(($C29*AE29/$BD29+$C30*AE30/$BD30+$C31*AE31/$BD31+$C32*AE32/$BD32)/$C33*100,4) -> 108.3002 | AF33: =ROUND(($C29*AF29/$BD29+$C30*AF30/$BD30+$C31*AF31/$BD31+$C32*AF32/$BD32)/$C33*100,4) -> 107.8684 | AG33: =ROUND(($C29*AG29/$BD29+$C30*AG30/$BD30+$C31*AG31/$BD31+$C32*AG32/$BD32)/$C33*100,4) -> 107.3526 | AH33: =ROUND(($C29*AH29/$BD29+$C30*AH30/$BD30+$C31*AH31/$BD31+$C32*AH32/$BD32)/$C33*100,4) -> 107.235 | AI33: =ROUND(($C29*AI29/$BD29+$C30*AI30/$BD30+$C31*AI31/$BD31+$C32*AI32/$BD32)/$C33*100,4) -> 106.7889 | AJ33: =ROUND(($C29*AJ29/$BD29+$C30*AJ30/$BD30+$C31*AJ31/$BD31+$C32*AJ32/$BD32)/$C33*100,4) -> 105.5476 | AK33: =ROUND(($C29*AK29/$BD29+$C30*AK30/$BD30+$C31*AK31/$BD31+$C32*AK32/$BD32)/$C33*100,4) -> 106.5879 | AL33: =ROUND(($C29*AL29/$BD29+$C30*AL30/$BD30+$C31*AL31/$BD31+$C32*AL32/$BD32)/$C33*100,4) -> 105.6261 | AM33: =ROUND(($C29*AM29/$BD29+$C30*AM30/$BD30+$C31*AM31/$BD31+$C32*AM32/$BD32)/$C33*100,4) -> 105.1331 | AN33: =ROUND(($C29*AN29/$BD29+$C30*AN30/$BD30+$C31*AN31/$BD31+$C32*AN32/$BD32)/$C33*100,4) -> 104.3002 | AO33: =ROUND(($C29*AO29/$BD29+$C30*AO30/$BD30+$C31*AO31/$BD31+$C32*AO32/$BD32)/$C33*100,4) -> 104.1044 | AP33: =ROUND(($C29*AP29/$BD29+$C30*AP30/$BD30+$C31*AP31/$BD31+$C32*AP32/$BD32)/$C33*100,4) -> 103.9978 | AQ33: =ROUND(($C29*AQ29/$BD29+$C30*AQ30/$BD30+$C31*AQ31/$BD31+$C32*AQ32/$BD32)/$C33*100,4) -> 104.3376 | AR33: =ROUND(($C29*AR29/$BD29+$C30*AR30/$BD30+$C31*AR31/$BD31+$C32*AR32/$BD32)/$C33*100,4) -> 104.0726 | AS33: =ROUND(($C29*AS29/$BD29+$C30*AS30/$BD30+$C31*AS31/$BD31+$C32*AS32/$BD32)/$C33*100,4) -> 104.0661 | AT33: =ROUND(($C29*AT29/$BD29+$C30*AT30/$BD30+$C31*AT31/$BD31+$C32*AT32/$BD32)/$C33*100,4) -> 104.6198 | AU33: =ROUND(($C29*AU29/$BD29+$C30*AU30/$BD30+$C31*AU31/$BD31+$C32*AU32/$BD32)/$C33*100,4) -> 105.8781 | AV33: =ROUND(($C29*AV29/$BD29+$C30*AV30/$BD30+$C31*AV31/$BD31+$C32*AV32/$BD32)/$C33*100,4) -> 106.2465 | AW33: =ROUND(($C29*AW29/$BD29+$C30*AW30/$BD30+$C31*AW31/$BD31+$C32*AW32/$BD32)/$C33*100,4) -> 105.9028 | AX33: =ROUND(($C29*AX29/$BD29+$C30*AX30/$BD30+$C31*AX31/$BD31+$C32*AX32/$BD32)/$C33*100,4) -> 104.7856 | AY33: =ROUND(($C29*AY29/$BD29+$C30*AY30/$BD30+$C31*AY31/$BD31+$C32*AY32/$BD32)/$C33*100,4) -> 104.8868 | AZ33: =ROUND(($C29*AZ29/$BD29+$C30*AZ30/$BD30+$C31*AZ31/$BD31+$C32*AZ32/$BD32)/$C33*100,4) -> 104.1952 | BA33: =ROUND(($C29*BA29/$BD29+$C30*BA30/$BD30+$C31*BA31/$BD31+$C32*BA32/$BD32)/$C33*100,4) -> 100.2398 | BB33: =ROUND(($C29*BB29/$BD29+$C30*BB30/$BD30+$C31*BB31/$BD31+$C32*BB32/$BD32)/$C33*100,4) -> 99.0691 | BC33: 101.5239 | BD33: 100 | BE33: =ROUND(($C29*BE29/$BD29+$C30*BE30/$BD30+$C31*BE31/$BD31+$C32*BE32/$BD32)/$C33*100,4) -> 99.7769 | BF33: =ROUND(($C29*BF29/$BD29+$C30*BF30/$BD30+$C31*BF31/$BD31+$C32*BF32/$BD32)/$C33*100,4) -> 99.1953 | BG33: 99.1953 | BH33: 99.2052 | BI33: =ROUND(($C29*BI29/$BD29+$C30*BI30/$BD30+$C31*BI31/$BD31+$C32*BI32/$BD32)/$C33*100,4) -> 101.1574 | BJ33: 101.43 | BK33: =ROUND(($C29*BK29/$BD29+$C30*BK30/$BD30+$C31*BK31/$BD31+$C32*BK32/$BD32)/$C33*100,4) -> 101.7182 | BL33: 102.323 | BM33: =ROUND(($C29*BM29/$BD29+$C30*BM30/$BD30+$C31*BM31/$BD31+$C32*BM32/$BD32)/$C33*100,4) -> 101.0696 | BN33: 100.5903 | BO33: =ROUND(($C29*BO29/$BD29+$C30*BO30/$BD30+$C31*BO31/$BD31+$C32*BO32/$BD32)/$C33*100,4) -> 102.3 | BP33: 102.8502 | BQ33: =ROUND(($C29*BQ29/$BD29+$C30*BQ30/$BD30+$C31*BQ31/$BD31+$C32*BQ32/$BD32)/$C33*100,4) -> 102.7797 | BR33: 102.0056 | BS33: =ROUND(($C29*BS29/$BD29+$C30*BS30/$BD30+$C31*BS31/$BD31+$C32*BS32/$BD32)/$C33*100,4) -> 101.7665 | BT33: 102.6527 | BU33: =ROUND(($C29*BU29/$BD29+$C30*BU30/$BD30+$C31*BU31/$BD31+$C32*BU32/$BD32)/$C33*100,4) -> 101.1707 | BV33: 102.9825 | BW33: =ROUND(($C29*BW29/$BD29+$C30*BW30/$BD30+$C31*BW31/$BD31+$C32*BW32/$BD32)/$C33*100,4) -> 102.9056 | BX33: 102.3347 | BY33: =ROUND(($C29*BY29/$BD29+$C30*BY30/$BD30+$C31*BY31/$BD31+$C32*BY32/$BD32)/$C33*100,4) -> 102.5718 | BZ33: 104.9892 | CA33: =ROUND(($C29*CA29/$BD29+$C30*CA30/$BD30+$C31*CA31/$BD31+$C32*CA32/$BD32)/$C33*100,4) -> 105.5616 | CB33: 105.8131 | CC33: =ROUND(($C29*CC29/$BD29+$C30*CC30/$BD30+$C31*CC31/$BD31+$C32*CC32/$BD32)/$C33*100,4) -> 104.2949 | CD33: 105.217 | CE33: =ROUND(($C29*CE29/$BD29+$C30*CE30/$BD30+$C31*CE31/$BD31+$C32*CE32/$BD32)/$C33*100,4) -> 105.6225 | CF33: 104.7161 | CG33: =ROUND(($C29*CG29/$BD29+$C30*CG30/$BD30+$C31*CG31/$BD31+$C32*CG32/$BD32)/$C33*100,4) -> 105.5416 | CH33: 105.5043 | CI33: =ROUND(($C29*CI29/$BD29+$C30*CI30/$BD30+$C31*CI31/$BD31+$C32*CI32/$BD32)/$C33*100,4) -> 103.9667
B34: Index Klotzbretter und Kanteln | C34: =SUM(C29:C32) -> 100 | D34: =(D$33-100)/100 -> -0.01912 | E34: -0.005025 | F34: 0.006698 | G34: -0.003408 | H34: 8e-05 | I34: 0.009729 | J34: 0.001719 | K34: 0.002249 | L34: -0.002218 | M34: -0.014498 | N34: 0.005213 | O34: 0.024631 | P34: -0.007894 | Q34: -0.000347 | R34: 0.003319 | S34: 0.015089 | T34: 0.01535 | U34: 0.021983 | V34: 0.025231 | W34: 0.037196 | X34: 0.046931 | Y34: 0.034384 | Z34: 0.061359 | AA34: 0.076509 | AB34: 0.070051 | AC34: 0.087595 | AD34: 0.064705 | AE34: 0.083002 | AF34: 0.078684 | AG34: 0.073526 | AH34: 0.07235 | AI34: 0.067889 | AJ34: 0.055476 | AK34: 0.065879 | AL34: 0.056261 | AM34: 0.051331 | AN34: 0.043002 | AO34: 0.041044 | AP34: 0.039978 | AQ34: 0.043376 | AR34: 0.040726 | AS34: 0.040661 | AT34: 0.046198 | AU34: 0.058781 | AV34: 0.062465 | AW34: 0.059028 | AX34: 0.047856 | AY34: 0.048868 | AZ34: 0.041952 | BA34: 0.002398 | BB34: -0.009309 | BC34: 0.015239 | BD34: 0 | BE34: =(BE$33-100)/100 -> -0.002231 | BF34: =(BF$33-100)/100 -> -0.008047 | BG34: -0.008047 | BH34: -0.007948 | BI34: 0.011574 | BJ34: 0.0143 | BK34: 0.017182 | BL34: 0.02323 | BM34: 0.010696 | BN34: =(BN$33-100)/100 -> 0.005903 | BO34: =(BO$33-100)/100 -> 0.023 | BP34: 0.028502 | BQ34: 0.027797 | BR34: 0.020056 | BS34: 0.017665 | BT34: 0.026527 | BU34: 0.011707 | BV34: 0.029825 | BW34: 0.029056 | BX34: 0.023347 | BY34: 0.025718 | BZ34: 0.049892 | CA34: 0.055616 | CB34: 0.058131 | CC34: 0.042949 | CD34: 0.05217 | CE34: 0.056225 | CF34: 0.047161 | CG34: 0.055416 | CH34: 0.055043 | CI34: 0.039667
A36: Kistenbretter 1) | B36: 5, Breitware, lufttrocken | C36: 5 | D36: 271 | E36: 272 | F36: 274 | G36: 272 | H36: 268 | I36: 271 | J36: 267 | K36: 271 | L36: 270 | M36: 273 | N36: 270 | O36: 270 | P36: 256 | Q36: 258 | R36: 261 | S36: 261 | T36: 262 | U36: 252 | V36: 261 | W36: 262 | X36: 267 | Y36: 265 | Z36: 266 | AA36: 263 | AB36: 266 | AC36: 269 | AD36: 268 | AE36: 265 | AF36: 267 | AG36: 261 | AH36: 253 | AI36: 258 | AJ36: 253 | AK36: 251 | AL36: 245 | AM36: 253 | AN36: 250 | AO36: 252 | AP36: 252 | AQ36: 254 | AR36: 257 | AS36: 260 | AT36: 262 | AU36: 269 | AV36: 271 | AW36: 260 | AX36: 266 | AY36: 267 | AZ36: 242 | BA36: 239 | BB36: 238 | BC36: 243 | BD36: 235 | BE36: 238 | BF36: 237 | BG36: 231 | BH36: 233 | BI36: 240 | BJ36: 246 | BK36: 250 | BL36: 241 | BM36: 247 | BN36: 248 | BO36: 250 | BP36: 251 | BQ36: 252 | BR36: 254 | BS36: 257 | BT36: 252 | BU36: 255 | BV36: 253 | BW36: 255 | BX36: 249 | BY36: 244 | BZ36: 243 | CA36: 242 | CB36: 236 | CC36: 232 | CD36: 224 | CE36: 220 | CF36: 220 | CG36: 218 | CH36: 218 | CI36: 219
A37: Verpackungskantholz 1) | B37: 5, lufttrocken | C37: 3 | D37: 258 | E37: 265 | F37: 269 | G37: 269 | H37: 266 | I37: 273 | J37: 271 | K37: 268 | L37: 273 | M37: 271 | N37: 274 | O37: 274 | P37: 265 | Q37: 255 | R37: 253 | S37: 258 | T37: 253 | U37: 247 | V37: 243 | W37: 251 | X37: 255 | Y37: 256 | Z37: 260 | AA37: 259 | AB37: 253 | AC37: 259 | AD37: 256 | AE37: 253 | AF37: 255 | AG37: 250 | AH37: 256 | AI37: 260 | AJ37: 248 | AK37: 262 | AL37: 247 | AM37: 244 | AN37: 251 | AO37: 246 | AP37: 241 | AQ37: 247 | AR37: 253 | AS37: 248 | AT37: 239 | AU37: 243 | AV37: 240 | AW37: 241 | AX37: 248 | AY37: 251 | AZ37: 255 | BA37: 244 | BB37: 242 | BC37: 228 | BD37: 233 | BE37: 239 | BF37: 235 | BG37: 228 | BH37: 234 | BI37: 232 | BJ37: 214 | BK37: 225 | BL37: 222 | BM37: 214 | BN37: 213 | BO37: 213 | BP37: 207 | BQ37: 213 | BR37: 210 | BS37: 207 | BT37: 216 | BU37: 218 | BV37: 221 | BW37: 222 | BX37: 214 | BY37: 219 | BZ37: 212 | CA37: 214 | CB37: 211 | CC37: 200 | CD37: 202 | CE37: 201 | CF37: 193 | CG37: 189 | CH37: 188 | CI37: 187
A38: Palettenbretter EURO 1) | B38: 5, frisch | C38: 2 | D38: 231 | E38: 237 | F38: 244 | G38: 241 | H38: 233 | I38: 230 | J38: 229 | K38: 229 | L38: 233 | M38: 231 | N38: 228 | O38: 230 | P38: 212 | Q38: 213 | R38: 207 | S38: 220 | T38: 220 | U38: 212 | V38: 214 | W38: 209 | X38: 213 | Y38: 222 | Z38: 222 | AA38: 220 | AB38: 225 | AC38: 229 | AD38: 215 | AE38: 209 | AF38: 192 | AG38: 198 | AH38: 204 | AI38: 206 | AJ38: 203 | AK38: 211 | AL38: 209 | AM38: 207 | AN38: 201 | AO38: 200 | AP38: 199 | AQ38: 203 | AR38: 202 | AS38: 204 | AT38: 201 | AU38: 200 | AV38: 201 | AW38: 200 | AX38: 200 | AY38: 201 | AZ38: 186 | BA38: 185 | BB38: 183 | BC38: 180 | BD38: 181 | BE38: 183 | BF38: 182 | BG38: 161 | BH38: 163 | BI38: 171 | BJ38: 162 | BK38: 169 | BL38: 178 | BM38: 178 | BN38: 176 | BO38: 181 | BP38: 179 | BQ38: 176 | BR38: 183 | BS38: 192 | BT38: 190 | BU38: 185 | BV38: 182 | BW38: 189 | BX38: 184 | BY38: 183 | BZ38: 185 | CA38: 189 | CB38: 182 | CC38: 160 | CD38: 157 | CE38: 159 | CF38: 153 | CG38: 147 | CH38: 147 | CI38: 154
A39: Paletten-Kantholz 1) | B39: 5, frisch | C39: 2 | D39: 228 | E39: 228 | F39: 240 | G39: 228 | H39: 228 | I39: 233 | J39: 231 | K39: 222 | L39: 222 | M39: 222 | N39: 223 | O39: 224 | P39: 188 | Q39: 192 | R39: 208 | S39: 202 | T39: 195 | U39: 194 | V39: 194 | W39: 196 | X39: 214 | Y39: 221 | Z39: 212 | AA39: 204 | AB39: 196 | AC39: 199 | AD39: 187 | AE39: 186 | AF39: 191 | AG39: 199 | AH39: 190 | AI39: 187 | AJ39: 192 | AK39: 184 | AL39: 189 | AM39: 186 | AN39: 185 | AO39: 196 | AP39: 210 | AQ39: 213 | AR39: 217 | AS39: 216 | AT39: 219 | AU39: 219 | AV39: 216 | AW39: 219 | AX39: 221 | AY39: 222 | AZ39: 221 | BA39: 183 | BB39: 185 | BC39: 188 | BD39: 187 | BE39: 188 | BF39: 188 | BG39: 190 | BH39: 188 | BI39: 189 | BJ39: 189 | BK39: 189 | BL39: 190 | BM39: 195 | BN39: 190 | BO39: 193 | BP39: 190 | BQ39: 190 | BR39: 199 | BS39: 216 | BT39: 219 | BU39: 214 | BV39: 214 | BW39: 220 | BX39: 217 | BY39: 208 | BZ39: 212 | CA39: 213 | CB39: 176 | CC39: 174 | CD39: 161 | CE39: 164 | CF39: 167 | CG39: 167 | CH39: 168 | CI39: 158
A40: Index Holzverpackungs- und Palettenware | C40: =SUM(C36:C39) -> 12 | D40: =ROUND(D41*E40/E41,4) -> 118.5288 | E40: 120.121 | F40: 122.6806 | G40: 121.0103 | H40: 118.9253 | I40: 119.9679 | J40: 118.807 | K40: 118.6069 | L40: 119.3995 | M40: 119.487 | N40: 118.8458 | O40: 119.2035 | P40: 110.7728 | Q40: 110.7594 | R40: 111.4671 | S40: 113.2672 | T40: 112.522 | U40: 109.0565 | V40: 110.6137 | W40: 110.8762 | X40: 113.988 | Y40: 115.5085 | Z40: 115.3408 | AA40: 113.8511 | AB40: 114.0143 | AC40: 115.8197 | AD40: 112.5264 | AE40: 110.8279 | AF40: 109.3061 | AG40: 109.2821 | AH40: 108.5295 | AI40: 109.7999 | AJ40: 107.8909 | AK40: 109.2054 | AL40: 107.0188 | AM40: 107.69 | AN40: 106.7981 | AO40: 107.4239 | AP40: 107.9176 | AQ40: 109.5458 | AR40: 110.717 | AS40: 111.0551 | AT40: 110.4814 | AU40: 111.904 | AV40: 111.9359 | AW40: 110.1462 | AX40: 111.9235 | AY40: 112.5588 | AZ40: 106.2471 | BA40: 101.8668 | BB40: 101.3931 | BC40: =ROUND(BC41*BD40/BD41,4) -> 100.9482 | BD40: 100 | BE40: =ROUND(($C36*BE36/$BD36+$C37*BE37/$BD37+$C38*BE38/$BD38+$C39*BE39/$BD39)/$C40*100,4) -> 101.449 | BF40: =ROUND(($C36*BF36/$BD36+$C37*BF37/$BD37+$C38*BF38/$BD38+$C39*BF39/$BD39)/$C40*100,4) -> 100.7504 | BG40: 97.1801 | BH40: 98.1844 | BI40: =ROUND(($C36*BI36/$BD36+$C37*BI37/$BD37+$C38*BI38/$BD38+$C39*BI39/$BD39)/$C40*100,4) -> 100.0367 | BJ40: 98.3404 | BK40: =ROUND(($C36*BK36/$BD36+$C37*BK37/$BD37+$C38*BK38/$BD38+$C39*BK39/$BD39)/$C40*100,4) -> 100.8745 | BL40: 99.8747 | BM40: =ROUND(($C36*BM36/$BD36+$C37*BM37/$BD37+$C38*BM38/$BD38+$C39*BM39/$BD39)/$C40*100,4) -> 100.5258 | BN40: 99.966 | BO40: =ROUND(($C36*BO36/$BD36+$C37*BO37/$BD37+$C38*BO38/$BD38+$C39*BO39/$BD39)/$C40*100,4) -> 101.0484 | BP40: 100.1304 | BQ40: =ROUND(($C36*BQ36/$BD36+$C37*BQ37/$BD37+$C38*BQ38/$BD38+$C39*BQ39/$BD39)/$C40*100,4) -> 100.6752 | BR40: 102.1547 | BS40: =ROUND(($C36*BS36/$BD36+$C37*BS37/$BD37+$C38*BS38/$BD38+$C39*BS39/$BD39)/$C40*100,4) -> 104.7086 | BT40: 104.8709 | BU40: =ROUND(($C36*BU36/$BD36+$C37*BU37/$BD37+$C38*BU38/$BD38+$C39*BU39/$BD39)/$C40*100,4) -> 104.7114 | BV40: 104.4024 | BW40: =ROUND(($C36*BW36/$BD36+$C37*BW37/$BD37+$C38*BW38/$BD38+$C39*BW39/$BD39)/$C40*100,4) -> 106.0437 | BX40: 103.3937 | BY40: =ROUND(($C36*BY36/$BD36+$C37*BY37/$BD37+$C38*BY38/$BD38+$C39*BY39/$BD39)/$C40*100,4) -> 102.1494 | BZ40: 101.7617 | CA40: =ROUND(($C36*CA36/$BD36+$C37*CA37/$BD37+$C38*CA38/$BD38+$C39*CA39/$BD39)/$C40*100,4) -> 102.2564 | CB40: 96.9285 | CC40: =ROUND(($C36*CC36/$BD36+$C37*CC37/$BD37+$C38*CC38/$BD38+$C39*CC39/$BD39)/$C40*100,4) -> 92.835 | CD40: 90.1962 | CE40: =ROUND(($C36*CE36/$BD36+$C37*CE37/$BD37+$C38*CE38/$BD38+$C39*CE39/$BD39)/$C40*100,4) -> 89.8313 | CF40: 88.6878 | CG40: =ROUND(($C36*CG36/$BD36+$C37*CG37/$BD37+$C38*CG38/$BD38+$C39*CG39/$BD39)/$C40*100,4) -> 87.3515 | CH40: 87.3333 | CI40: =ROUND(($C36*CI36/$BD36+$C37*CI37/$BD37+$C38*CI38/$BD38+$C39*CI39/$BD39)/$C40*100,4) -> 87.1566
A41: Index Verpackungs und Palettenware alte Basis | D41: 102.7639 | E41: 104.1443 | F41: 106.3635 | G41: 104.9154 | H41: 103.1077 | I41: 104.0116 | J41: 103.0051 | K41: 102.8316 | L41: 103.5188 | M41: 103.5947 | N41: 103.0388 | O41: 103.3489 | P41: 96.0395 | Q41: 96.0279 | R41: 96.6415 | S41: 98.2022 | T41: 97.5561 | U41: 94.5515 | V41: 95.9016 | W41: 96.1292 | X41: 98.8271 | Y41: 100.1454 | Z41: 100 | AA41: 98.7084 | AB41: 98.8499 | AC41: 100.4152 | AD41: 97.5599 | AE41: 96.0873 | AF41: 94.7679 | AG41: 94.7471 | AH41: 94.0946 | AI41: 95.196 | AJ41: 93.5409 | AK41: 94.6806 | AL41: 92.7848 | AM41: 93.3667 | AN41: 92.5934 | AO41: 93.136 | AP41: 93.564 | AQ41: 94.9756 | AR41: 95.991 | AS41: 96.2841 | AT41: 95.7867 | AU41: 97.0201 | AV41: 97.0478 | AW41: 95.4961 | AX41: 97.037 | AY41: 97.5878 | AZ41: 92.1156 | BA41: 88.3179 | BB41: 87.9072 | BC41: 87.5215 | BD41: 86.6994
A42: Index Verpackungs und Palettenware Internet BFS | Z42: 115.3411 | AB42: 114.0145 | AC42: 115.8199 | AD42: 112.5266 | AE42: 110.8281 | AF42: 109.3063 | AG42: 109.2823 | AH42: 108.5297 | AI42: 109.8001 | AJ42: 107.8911 | AK42: 109.2056 | AL42: 107.019 | AM42: 107.6901 | AN42: 106.7982 | AO42: 107.424 | AP42: 107.9177 | AQ42: 109.5459 | AR42: 110.717 | AS42: 111.0551 | AT42: 110.4814 | AU42: 111.904 | AV42: 111.936 | AW42: 110.1462 | AX42: 111.9235 | AY42: 112.5588 | AZ42: 106.2471 | BA42: 101.8668 | BB42: 101.3931 | BC42: 100.9482 | BD42: 100 | BE42: 101.449 | BF42: 100.7504 | BG42: 97.1801 | BH42: 98.1844 | BI42: 100.0367 | BJ42: 98.3404 | BK42: 100.8745 | BL42: 99.8747 | BM42: 100.5258 | BN42: 99.966 | BO42: 101.0484 | BP42: 100.1304 | BQ42: 100.6752 | BR42: 102.1547 | BS42: 104.7086 | BT42: 104.8709 | BU42: 104.7114 | BV42: 104.4024 | BW42: 106.0437 | BX42: 103.3937 | BY42: 102.1494 | BZ42: 101.7617 | CA42: 102.2564 | CB42: 96.9285 | CC42: 92.835 | CD42: 90.1962 | CE42: 89.8313 | CF42: 88.6878 | CG42: 87.3515
A43: Kontrolle | Z43: =Z40-Z42 -> -0.0003 | AB43: =AB40-AB42 -> -0.0002 | AC43: =AC40-AC42 -> -0.0002 | AD43: =AD40-AD42 -> -0.0002 | AE43: =AE40-AE42 -> -0.0002 | AF43: =AF40-AF42 -> -0.0002 | AG43: =AG40-AG42 -> -0.0002 | AH43: =AH40-AH42 -> -0.0002 | AI43: =AI40-AI42 -> -0.0002 | AJ43: =AJ40-AJ42 -> -0.0002 | AK43: =AK40-AK42 -> -0.0002 | AL43: =AL40-AL42 -> -0.0002 | AM43: =AM40-AM42 -> -0.0001 | AN43: =AN40-AN42 -> -9.999999999e-05 | AO43: =AO40-AO42 -> -0.0001 | AP43: =AP40-AP42 -> -0.0001 | AQ43: =AQ40-AQ42 -> -0.0001 | AR43: =AR40-AR42 -> 0 | AS43: =AS40-AS42 -> 0 | AT43: =AT40-AT42 -> 0 | AU43: =AU40-AU42 -> 0 | AV43: =AV40-AV42 -> -0.0001 | AW43: =AW40-AW42 -> 0 | AX43: =AX40-AX42 -> 0 | AY43: =AY40-AY42 -> 0 | AZ43: =AZ40-AZ42 -> 0 | BA43: =BA40-BA42 -> 0 | BB43: =BB40-BB42 -> 0 | BC43: =BC40-BC42 -> 0 | BD43: =BD40-BD42 -> 0 | BE43: =BE40-BE42 -> 0 | BF43: 0 | BG43: 0 | BH43: 0 | BI43: 0 | BJ43: 0 | BK43: 0 | BL43: =BL40-BL42 -> 0 | BM43: 0 | BN43: =BN40-BN42 -> 0 | BO43: 0 | BP43: 0 | BQ43: =BQ40-BQ42 -> 0 | BR43: 0 | BS43: =BS40-BS42 -> 0 | BT43: 0 | BU43: =BU40-BU42 -> 0 | BV43: 0 | BW43: =BW40-BW42 -> 0 | BX43: 0 | BY43: =BY40-BY42 -> 0 | BZ43: 0 | CA43: =CA40-CA42 -> 0 | CB43: 0 | CC43: =CC40-CC42 -> 0 | CD43: 0 | CE43: =CE40-CE42 -> 0 | CF43: 0 | CG43: =CG40-CG42 -> 0 | CH43: 87.3333 | CI43: =CI40-CI42 -> 87.1566
A44: Index Holzverpackungs- und Palettenware | C44: =SUM(C36:C39) -> 12 | D44: =(D$40-100)/100 -> 0.185288 | E44: 0.20121 | F44: 0.226806 | G44: 0.210103 | H44: 0.189253 | I44: 0.199679 | J44: 0.18807 | K44: 0.186069 | L44: 0.193995 | M44: 0.19487 | N44: 0.188458 | O44: 0.192035 | P44: 0.107728 | Q44: 0.107594 | R44: 0.114671 | S44: 0.132672 | T44: 0.12522 | U44: 0.090565 | V44: 0.106137 | W44: 0.108762 | X44: 0.13988 | Y44: 0.155085 | Z44: 0.153408 | AA44: 0.138511 | AB44: 0.140143 | AC44: 0.158197 | AD44: 0.125264 | AE44: 0.108279 | AF44: 0.093061 | AG44: 0.092821 | AH44: 0.085295 | AI44: 0.097999 | AJ44: 0.078909 | AK44: 0.092054 | AL44: 0.070188 | AM44: 0.0769 | AN44: 0.067981 | AO44: 0.074239 | AP44: 0.079176 | AQ44: 0.095458 | AR44: 0.10717 | AS44: 0.110551 | AT44: 0.104814 | AU44: 0.11904 | AV44: 0.119359 | AW44: 0.101462 | AX44: 0.119235 | AY44: 0.125588 | AZ44: 0.062471 | BA44: 0.018668 | BB44: 0.013931 | BC44: 0.009482 | BD44: 0 | BE44: =(BE$40-100)/100 -> 0.01449 | BF44: =(BF$40-100)/100 -> 0.007504 | BG44: -0.028199 | BH44: -0.018156 | BI44: 0.000367 | BJ44: -0.016596 | BK44: 0.008745 | BL44: -0.001253 | BM44: 0.005258 | BN44: -0.00034 | BO44: 0.010484 | BP44: 0.001304 | BQ44: 0.006752 | BR44: 0.021547 | BS44: 0.047086 | BT44: 0.048709 | BU44: 0.047114 | BV44: 0.044024 | BW44: 0.060437 | BX44: 0.033937 | BY44: 0.021494 | BZ44: 0.017617 | CA44: 0.022564 | CB44: -0.030715 | CC44: -0.07165 | CD44: -0.098038 | CE44: -0.101687 | CF44: -0.113122 | CG44: -0.126485 | CH44: -0.126667 | CI44: -0.128434
A46: Zuschlag ISPM 15 | B46: (nicht mengengewichtet) | D46: 34 | E46: 32 | F46: 32 | G46: 32 | H46: 32 | I46: 31 | J46: 30 | K46: 32 | L46: 32 | M46: 32 | N46: 31 | O46: 31 | P46: 30 | Q46: 30 | R46: 31 | S46: 31 | T46: 30 | U46: 30 | V46: 31 | W46: 31 | X46: 30 | Y46: 32 | Z46: 32 | AA46: 33 | AB46: 31 | AC46: 31 | AD46: 33 | AE46: 33 | AF46: 33 | AG46: 33 | AH46: 33 | AI46: 33 | AJ46: 32 | AK46: 32 | AL46: 32 | AM46: 32 | AN46: 32 | AO46: 32 | AP46: 31 | AQ46: 31 | AR46: 31 | AS46: 32 | AT46: 31 | AU46: 31 | AV46: 31 | AW46: 31 | AX46: 32 | AY46: 31 | AZ46: 29 | BA46: 30 | BB46: 30 | BC46: 30 | BD46: 30 | BE46: 30 | BF46: 30 | BG46: 30 | BH46: 30 | BI46: 30 | BJ46: 30 | BK46: 30 | BL46: 30 | BM46: 30 | BN46: 29 | BO46: 29 | BP46: 30 | BQ46: 29 | BR46: 29 | BS46: 29 | BT46: 29 | BU46: 31 | BV46: 31 | BW46: 30 | BX46: 30 | BY46: 30 | BZ46: 30 | CA46: 30 | CB46: 30 | CC46: 30 | CD46: 30 | CE46: 30 | CF46: 30 | CG46: 28 | CH46: 29 | CI46: 29
A48: Schnittholz (Fichte/Tanne) | B48: Bois de sciage (épicéa/sapin) | C48: =C18+C27+C44 -> 100 | D48: =ROUND(D49*$BD48/$BD49,4) -> 108.8771 | E48: 111.4447 | F48: 113.0401 | G48: 111.5902 | H48: 111.0939 | I48: 110.7499 | J48: 110.613 | K48: 110.2042 | L48: 110.4336 | M48: 109.0871 | N48: 108.9226 | O48: 110.097 | P48: 105.8668 | Q48: 106.0856 | R48: 105.449 | S48: 106.4665 | T48: 106.9212 | U48: 106.0588 | V48: 106.7563 | W48: 105.6464 | X48: 107.2874 | Y48: 108.0194 | Z48: 107.8908 | AA48: 108.1251 | AB48: 107.4523 | AC48: 107.2922 | AD48: 106.3815 | AE48: 105.7381 | AF48: 104.516 | AG48: 104.7241 | AH48: 104.3102 | AI48: 104.1831 | AJ48: 103.446 | AK48: 103.7925 | AL48: 102.929 | AM48: 103.1432 | AN48: 102.1177 | AO48: 103.1847 | AP48: 103.2765 | AQ48: 104.5117 | AR48: 105.2636 | AS48: 105.8483 | AT48: 105.3658 | AU48: 106.5727 | AV48: 106.61 | AW48: 104.5383 | AX48: 104.2939 | AY48: 105.2117 | AZ48: 102.7817 | BA48: 100.1864 | BB48: 100.1975 | BC48: =ROUND(BC49*$BD48/$BD49,4) -> 100.1831 | BD48: =($C7*BD7/$BD7+$C10*BD10/$BD10+$C11*BD11/$BD11+$C12*BD12/$BD12+$C13*BD13/$BD13+$C20*BD20/$BD20+$C21*BD21/$BD21+$C22*BD22/$BD22+$C36*BD36/$BD36+$C37*BD37/$BD37+$C38*BD38/$BD38+$C39*BD39/$BD39)/$C48*100 -> 100 | BE48: =ROUND(($C7*BE7/$BD7+$C10*BE10/$BD10+$C11*BE11/$BD11+$C12*BE12/$BD12+$C13*BE13/$BD13+$C20*BE20/$BD20+$C21*BE21/$BD21+$C22*BE22/$BD22+$C36*BE36/$BD36+$C37*BE37/$BD37+$C38*BE38/$BD38+$C39*BE39/$BD39)/$C48*100,4) -> 100.0928 | BF48: =ROUND(($C7*BF7/$BD7+$C10*BF10/$BD10+$C11*BF11/$BD11+$C12*BF12/$BD12+$C13*BF13/$BD13+$C20*BF20/$BD20+$C21*BF21/$BD21+$C22*BF22/$BD22+$C36*BF36/$BD36+$C37*BF37/$BD37+$C38*BF38/$BD38+$C39*BF39/$BD39)/$C48*100,4) -> 100.7974 | BG48: 99.9129 | BH48: 100.4307 | BI48: =ROUND(($C7*BI7/$BD7+$C10*BI10/$BD10+$C11*BI11/$BD11+$C12*BI12/$BD12+$C13*BI13/$BD13+$C20*BI20/$BD20+$C21*BI21/$BD21+$C22*BI22/$BD22+$C36*BI36/$BD36+$C37*BI37/$BD37+$C38*BI38/$BD38+$C39*BI39/$BD39)/$C48*100,4) -> 100.3352 | BJ48: 99.7865 | BK48: =ROUND(($C7*BK7/$BD7+$C10*BK10/$BD10+$C11*BK11/$BD11+$C12*BK12/$BD12+$C13*BK13/$BD13+$C20*BK20/$BD20+$C21*BK21/$BD21+$C22*BK22/$BD22+$C36*BK36/$BD36+$C37*BK37/$BD37+$C38*BK38/$BD38+$C39*BK39/$BD39)/$C48*100,4) -> 100.6616 | BL48: 100.6637 | BM48: =ROUND(($C7*BM7/$BD7+$C10*BM10/$BD10+$C11*BM11/$BD11+$C12*BM12/$BD12+$C13*BM13/$BD13+$C20*BM20/$BD20+$C21*BM21/$BD21+$C22*BM22/$BD22+$C36*BM36/$BD36+$C37*BM37/$BD37+$C38*BM38/$BD38+$C39*BM39/$BD39)/$C48*100,4) -> 100.7887 | BN48: 100.0742 | BO48: =ROUND(($C7*BO7/$BD7+$C10*BO10/$BD10+$C11*BO11/$BD11+$C12*BO12/$BD12+$C13*BO13/$BD13+$C20*BO20/$BD20+$C21*BO21/$BD21+$C22*BO22/$BD22+$C36*BO36/$BD36+$C37*BO37/$BD37+$C38*BO38/$BD38+$C39*BO39/$BD39)/$C48*100,4) -> 100.9416 | BP48: 100.6346 | BQ48: =ROUND(($C7*BQ7/$BD7+$C10*BQ10/$BD10+$C11*BQ11/$BD11+$C12*BQ12/$BD12+$C13*BQ13/$BD13+$C20*BQ20/$BD20+$C21*BQ21/$BD21+$C22*BQ22/$BD22+$C36*BQ36/$BD36+$C37*BQ37/$BD37+$C38*BQ38/$BD38+$C39*BQ39/$BD39)/$C48*100,4) -> 100.3167 | BR48: 101.1606 | BS48: =ROUND(($C7*BS7/$BD7+$C10*BS10/$BD10+$C11*BS11/$BD11+$C12*BS12/$BD12+$C13*BS13/$BD13+$C20*BS20/$BD20+$C21*BS21/$BD21+$C22*BS22/$BD22+$C36*BS36/$BD36+$C37*BS37/$BD37+$C38*BS38/$BD38+$C39*BS39/$BD39)/$C48*100,4) -> 101.6229 | BT48: 101.7832 | BU48: =ROUND(($C7*BU7/$BD7+$C10*BU10/$BD10+$C11*BU11/$BD11+$C12*BU12/$BD12+$C13*BU13/$BD13+$C20*BU20/$BD20+$C21*BU21/$BD21+$C22*BU22/$BD22+$C36*BU36/$BD36+$C37*BU37/$BD37+$C38*BU38/$BD38+$C39*BU39/$BD39)/$C48*100,4) -> 101.3444 | BV48: 101.6506 | BW48: =ROUND(($C7*BW7/$BD7+$C10*BW10/$BD10+$C11*BW11/$BD11+$C12*BW12/$BD12+$C13*BW13/$BD13+$C20*BW20/$BD20+$C21*BW21/$BD21+$C22*BW22/$BD22+$C36*BW36/$BD36+$C37*BW37/$BD37+$C38*BW38/$BD38+$C39*BW39/$BD39)/$C48*100,4) -> 101.9635 | BX48: 101.4716 | BY48: =ROUND(($C7*BY7/$BD7+$C10*BY10/$BD10+$C11*BY11/$BD11+$C12*BY12/$BD12+$C13*BY13/$BD13+$C20*BY20/$BD20+$C21*BY21/$BD21+$C22*BY22/$BD22+$C36*BY36/$BD36+$C37*BY37/$BD37+$C38*BY38/$BD38+$C39*BY39/$BD39)/$C48*100,4) -> 101.1262 | BZ48: 100.6211 | CA48: =ROUND(($C7*CA7/$BD7+$C10*CA10/$BD10+$C11*CA11/$BD11+$C12*CA12/$BD12+$C13*CA13/$BD13+$C20*CA20/$BD20+$C21*CA21/$BD21+$C22*CA22/$BD22+$C36*CA36/$BD36+$C37*CA37/$BD37+$C38*CA38/$BD38+$C39*CA39/$BD39)/$C48*100,4) -> 100.7401 | CB48: 99.6305 | CC48: =ROUND(($C7*CC7/$BD7+$C10*CC10/$BD10+$C11*CC11/$BD11+$C12*CC12/$BD12+$C13*CC13/$BD13+$C20*CC20/$BD20+$C21*CC21/$BD21+$C22*CC22/$BD22+$C36*CC36/$BD36+$C37*CC37/$BD37+$C38*CC38/$BD38+$C39*CC39/$BD39)/$C48*100,4) -> 98.7265 | CD48: 98.4912 | CE48: =ROUND(($C7*CE7/$BD7+$C10*CE10/$BD10+$C11*CE11/$BD11+$C12*CE12/$BD12+$C13*CE13/$BD13+$C20*CE20/$BD20+$C21*CE21/$BD21+$C22*CE22/$BD22+$C36*CE36/$BD36+$C37*CE37/$BD37+$C38*CE38/$BD38+$C39*CE39/$BD39)/$C48*100,4) -> 98.1676 | CF48: 96.1742 | CG48: =ROUND(($C7*CG7/$BD7+$C10*CG10/$BD10+$C11*CG11/$BD11+$C12*CG12/$BD12+$C13*CG13/$BD13+$C20*CG20/$BD20+$C21*CG21/$BD21+$C22*CG22/$BD22+$C36*CG36/$BD36+$C37*CG37/$BD37+$C38*CG38/$BD38+$C39*CG39/$BD39)/$C48*100,4) -> 96.094 | CH48: 96.2665 | CI48: =ROUND(($C7*CI7/$BD7+$C10*CI10/$BD10+$C11*CI11/$BD11+$C12*CI12/$BD12+$C13*CI13/$BD13+$C20*CI20/$BD20+$C21*CI21/$BD21+$C22*CI22/$BD22+$C36*CI36/$BD36+$C37*CI37/$BD37+$C38*CI38/$BD38+$C39*CI39/$BD39)/$C48*100,4) -> 96.939
A49: Index Schnittholz alte Basis | D49: 100.9142 | E49: 103.294 | F49: 104.7727 | G49: 103.4288 | H49: 102.9688 | I49: 102.65 | J49: 102.5231 | K49: 102.1442 | L49: 102.3568 | M49: 101.1088 | N49: 100.9563 | O49: 102.0448 | P49: 98.124 | Q49: 98.3268 | R49: 97.7368 | S49: 98.6799 | T49: 99.1013 | U49: 98.302 | V49: 98.9485 | W49: 97.9197 | X49: 99.4407 | Y49: 100.1192 | Z49: 100 | AA49: 100.2172 | AB49: 99.5936 | AC49: 99.4452 | AD49: 98.6011 | AE49: 98.0047 | AF49: 96.872 | AG49: 97.0649 | AH49: 96.6813 | AI49: 96.5635 | AJ49: 95.8803 | AK49: 96.2014 | AL49: 95.4011 | AM49: 95.5996 | AN49: 94.6491 | AO49: 95.6381 | AP49: 95.7232 | AQ49: 96.868 | AR49: 97.5649 | AS49: 98.1069 | AT49: 97.6597 | AU49: 98.7783 | AV49: 98.8129 | AW49: 96.8927 | AX49: 96.6662 | AY49: 97.5168 | AZ49: 95.2646 | BA49: 92.8591 | BB49: 92.8694 | BC49: 92.856 | BD49: 92.6863
A50: Index Schnittholz Internet BFS | AB50: 107.4523 | AC50: 107.2922 | AD50: 106.3815 | AE50: 105.7381 | AF50: 104.516 | AG50: 104.7241 | AH50: 104.3102 | AI50: 104.1831 | AJ50: 103.446 | AK50: 103.7925 | AL50: 102.929 | AM50: 103.1432 | AN50: 102.1177 | AO50: 103.1847 | AP50: 103.2765 | AQ50: 104.5117 | AR50: 105.2636 | AS50: 105.8483 | AT50: 105.3658 | AU50: 106.5727 | AV50: 106.61 | AW50: 104.5383 | AX50: 104.2939 | AY50: 105.2117 | AZ50: 102.7817 | BA50: 100.1864 | BB50: 100.1975 | BC50: 100.1831 | BD50: 100 | BE50: 100.0928 | BF50: 100.7974 | BG50: 99.9129 | BH50: 100.4307 | BI50: 100.3352 | BJ50: 99.7865 | BK50: 100.6616 | BL50: 100.6637 | BM50: 100.7887 | BN50: 100.0742 | BO50: 100.9416 | BP50: 100.6346 | BQ50: 100.3167 | BR50: 101.1606 | BS50: 101.6229 | BT50: 101.7832 | BU50: 101.3444 | BV50: 101.6506 | BW50: 101.9635 | BX50: 101.4716 | BY50: 101.1262 | BZ50: 100.6211 | CA50: 100.7401 | CB50: 99.6305 | CC50: 98.7265 | CD50: 98.4912 | CE50: 98.1676 | CF50: 96.1742 | CG50: 96.094
A51: Kontrolle | Z51: =Z48-Z50 -> 107.8908 | AB51: =AB48-AB50 -> 0 | AC51: =AC48-AC50 -> 0 | AD51: =AD48-AD50 -> 0 | AE51: =AE48-AE50 -> 0 | AF51: =AF48-AF50 -> 0 | AG51: =AG48-AG50 -> 0 | AH51: =AH48-AH50 -> 0 | AI51: =AI48-AI50 -> 0 | AJ51: =AJ48-AJ50 -> 0 | AK51: =AK48-AK50 -> 0 | AL51: =AL48-AL50 -> 0 | AM51: =AM48-AM50 -> 0 | AN51: =AN48-AN50 -> 0 | AO51: =AO48-AO50 -> 0 | AP51: =AP48-AP50 -> 0 | AQ51: =AQ48-AQ50 -> 0 | AR51: =AR48-AR50 -> 0 | AS51: =AS48-AS50 -> 0 | AT51: =AT48-AT50 -> 0 | AU51: =AU48-AU50 -> 0 | AV51: =AV48-AV50 -> 0 | AW51: =AW48-AW50 -> 0 | AX51: =AX48-AX50 -> 0 | AY51: =AY48-AY50 -> 0 | AZ51: =AZ48-AZ50 -> 0 | BA51: =BA48-BA50 -> 0 | BB51: =BB48-BB50 -> 0 | BC51: =BC48-BC50 -> 0 | BD51: =BD48-BD50 -> 0 | BE51: =BE48-BE50 -> 0 | BF51: 0 | BG51: 0 | BH51: 0 | BI51: 0 | BJ51: 0 | BK51: 0 | BL51: =BL48-BL50 -> 0 | BM51: 0 | BN51: =BN48-BN50 -> 0 | BO51: 0 | BP51: 0 | BQ51: =BQ48-BQ50 -> 0 | BR51: 0 | BS51: =BS48-BS50 -> 0 | BT51: 0 | BU51: =BU48-BU50 -> 0 | BV51: 0 | BW51: =BW48-BW50 -> 0 | BX51: 0 | BY51: =BY48-BY50 -> 0 | BZ51: 0 | CA51: =CA48-CA50 -> 0 | CB51: 0 | CC51: =CC48-CC50 -> 0 | CD51: 0 | CE51: =CE48-CE50 -> 0 | CF51: 0 | CG51: =CG48-CG50 -> 0 | CH51: 96.2665 | CI51: =CI48-CI50 -> 96.939
A52: Index Schnittholz | D52: =(D$48-100)/100 -> 0.088771 | E52: =(E$48-100)/100 -> 0.114447 | F52: 0.130401 | G52: 0.115902 | H52: 0.110939 | I52: 0.107499 | J52: 0.10613 | K52: 0.102042 | L52: 0.104336 | M52: 0.090871 | N52: 0.089226 | O52: 0.10097 | P52: 0.058668 | Q52: 0.060856 | R52: 0.05449 | S52: 0.064665 | T52: 0.069212 | U52: 0.060588 | V52: 0.067563 | W52: 0.056464 | X52: 0.072874 | Y52: 0.080194 | Z52: 0.078908 | AA52: 0.081251 | AB52: 0.074523 | AC52: 0.072922 | AD52: 0.063815 | AE52: 0.057381 | AF52: 0.04516 | AG52: 0.047241 | AH52: 0.043102 | AI52: 0.041831 | AJ52: 0.03446 | AK52: 0.037925 | AL52: 0.02929 | AM52: 0.031432 | AN52: 0.021177 | AO52: 0.031847 | AP52: 0.032765 | AQ52: 0.045117 | AR52: 0.052636 | AS52: 0.058483 | AT52: 0.053658 | AU52: 0.065727 | AV52: 0.0661 | AW52: 0.045383 | AX52: 0.042939 | AY52: 0.052117 | AZ52: 0.027817 | BA52: 0.001864 | BB52: 0.001975 | BC52: 0.001831 | BD52: 0 | BE52: 0.000928 | BF52: 0.007974 | BG52: -0.000871 | BH52: 0.004307 | BI52: 0.003352 | BJ52: -0.002135 | BK52: 0.006616 | BL52: 0.006637 | BM52: 0.007887 | BN52: 0.000742 | BO52: 0.009416 | BP52: 0.006346 | BQ52: 0.003167 | BR52: 0.011606 | BS52: 0.016229 | BT52: 0.017832 | BU52: 0.013444 | BV52: 0.016506 | BW52: 0.019635 | BX52: 0.014716 | BY52: 0.011262 | BZ52: 0.006211 | CA52: 0.007401 | CB52: -0.003695 | CC52: -0.012735 | CD52: -0.015088 | CE52: -0.018324 | CF52: -0.038258 | CG52: -0.03906 | CH52: -0.037335 | CI52: -0.03061

Sheet Restholzpreise (hidden)
A1: Restholzpreise
A2: (Durchschnittspreise, mengengewichtet)
D3: Gewichtung
A4: Sortiment | C4: Einheit | D4: HIS Index | E4: 2007-1 | F4: 2007-2 | G4: 2007-3 | H4: 2007-4 | I4: 2007-5 | J4: 2007-6 | K4: 2008-1 | L4: 2008-2 | M4: 2008-3 | N4: 2008-4 | O4: 2008-5 | P4: 2008-6 | Q4: 2009-1 | R4: 2009-2 | S4: 2009-3 | T4: 2009-4 | U4: 2009-5 | V4: 2009-6 | W4: 2010-1 | X4: 2010-2 | Y4: 2010-3 | Z4: 2010-4 | AA4: 2010-5 | AB4: 2010-6 | AC4: 2011-1 | AD4: 2011-2 | AE4: 2011-3 | AF4: 2011-4 | AG4: 2011-5 | AH4: 2011-6 | AI4: 2012-1 | AJ4: 2012-2 | AK4: 2012-3 | AL4: 2012-4 | AM4: 2012-5 | AN4: 2012-6 | AO4: 2013-1 | AP4: 2013-2 | AQ4: 2013-3 | AR4: 2013-4 | AS4: 2013-5 | AT4: 2013-6 | AU4: 2014-1 | AV4: 2014-2 | AW4: 2014-3 | AX4: 2014-4 | AY4: 2014-5 | AZ4: 2014-6 | BA4: 2015-1 | BB4: 2015-2 | BC4: 2015-3 | BD4: 2015-4 | BE4: 2015-5 | BF4: 2015-6 | BG4: 2016-1 | BH4: 2016-2 | BI4: 2016-3 | BJ4: 2016-4 | BK4: 2016-5 | BL4: 2016-6 | BM4: 2017-1 | BN4: 2017-2 | BO4: 2017-3 | BP4: 2017-4 | BQ4: 2017-5 | BR4: 2017-6 | BS4: 2018-1 | BT4: 2018-2 | BU4: 2018-3 | BV4: 2018-4 | BW4: 2018-5 | BX4: 2018-6 | BY4: 2019-1 | BZ4: 2019-2 | CA4: 2019-3 | CB4: 2019-4 | CC4: 2019-5 | CD4: 2019-6 | CE4: 2020-1 | CF4: 2020-2 | CG4: 2020-3 | CH4: 2020-4 | CI4: 2020-5 | CJ4: 2020-6
A6: Hackschnitzel | B6: mit Rinde, ab Werk | C6: [Fr./SRm] | D6: 13 | E6: 15.6 | F6: 14.3 | G6: 13 | H6: 13.1 | I6: 12.8 | J6: 12.5 | K6: 14.1 | L6: 14 | M6: 13.5 | N6: 13.3 | O6: 13.7 | P6: 13.5 | Q6: 14 | R6: 15 | S6: 15.4 | T6: 14.2 | U6: 13.9 | V6: 13.5 | W6: 15.7 | X6: 15.2 | Y6: 15.4 | Z6: 15.9 | AA6: 16.8 | AB6: 17.4 | AC6: 17.1 | AD6: 17.7 | AE6: 17.3 | AF6: 16.5 | AG6: 16.1 | AH6: 16.2 | AI6: 15.1 | AJ6: 15 | AK6: 15 | AL6: 14.7 | AM6: 15.2 | AN6: 15.2 | AO6: 15.4 | AP6: 15.1 | AQ6: 14.9 | AR6: 14.2 | AS6: 13.7 | AT6: 14.2 | AU6: 13.9 | AV6: 13.3 | AW6: 12.7 | AX6: 13 | AY6: 12.9 | AZ6: 13 | BA6: 12.8 | BB6: 12.1 | BC6: 12.4 | BD6: 12.6 | BE6: 12.9 | BF6: 13.2 | BG6: 13.2 | BH6: 12.9 | BI6: 12.8 | BJ6: 12.9 | BK6: 12.9 | BL6: 12.6 | BM6: 12.5 | BN6: 12.3 | BO6: 12.6 | BP6: 12.9 | BQ6: 13 | BR6: 13.3 | BS6: 13.4 | BT6: 13.8 | BU6: 13.6 | BV6: 14.2 | BW6: 14.7 | BX6: 14.6 | BY6: 14.7 | BZ6: 14.4 | CA6: 14.2 | CB6: 13.9 | CC6: 13.5 | CD6: 12.9 | CE6: 12.7 | CF6: 12.6 | CG6: 13 | CH6: 11.1 | CI6: 11.3 | CJ6: 10
A7: (keine Brennschnitzel) | B7: ohne Rinde, ab Werk | C7: [Fr./SRm] | D7: 67 | E7: 19.6 | F7: 19.7 | G7: 17.7 | H7: 17.5 | I7: 18 | J7: 17.7 | K7: 19.4 | L7: 19.2 | M7: 19.1 | N7: 18.9 | O7: 17.7 | P7: 18.2 | Q7: 16.9 | R7: 16.6 | S7: 17.6 | T7: 17.8 | U7: 17.1 | V7: 17.2 | W7: 18.5 | X7: 18.5 | Y7: 18.4 | Z7: 19.2 | AA7: 19 | AB7: 19.6 | AC7: 18.6 | AD7: 19.2 | AE7: 19.6 | AF7: 19 | AG7: 17.4 | AH7: 17.2 | AI7: 17.5 | AJ7: 17.3 | AK7: 17.2 | AL7: 17.1 | AM7: 16.9 | AN7: 17.2 | AO7: 17.6 | AP7: 17.8 | AQ7: 18 | AR7: 18.4 | AS7: 18.3 | AT7: 18.9 | AU7: 19.3 | AV7: 19.2 | AW7: 18.7 | AX7: 17.6 | AY7: 17.4 | AZ7: 17.8 | BA7: 17.5 | BB7: 17.2 | BC7: 17.4 | BD7: 17.8 | BE7: 17.5 | BF7: 17.5 | BG7: 17.4 | BH7: 17.2 | BI7: 17.3 | BJ7: 17.1 | BK7: 16.9 | BL7: 17.2 | BM7: 16.6 | BN7: 16.7 | BO7: 16.9 | BP7: 17.3 | BQ7: 16.6 | BR7: 16.5 | BS7: 16.7 | BT7: 17.1 | BU7: 17.4 | BV7: 16.4 | BW7: 15.7 | BX7: 15.8 | BY7: 16 | BZ7: 15.8 | CA7: 15.6 | CB7: 15.7 | CC7: 14.7 | CD7: 13.1 | CE7: 13.4 | CF7: 13.6 | CG7: 13.3 | CH7: 12.2 | CI7: 11.5 | CJ7: 11.7
B8: ohne Rinde, franko Werk | C8: [Fr./t atro] | D8: 20 | E8: 173.2 | F8: 179.2 | G8: 166.1 | H8: 166.2 | I8: 162.3 | J8: 161.4 | K8: 169.2 | L8: 158.4 | M8: 160.8 | N8: 160.8 | O8: 155.4 | P8: 156.9 | Q8: 153.8 | R8: 157.7 | S8: 157.2 | T8: 161.7 | U8: 161.8 | V8: 164.6 | W8: 166.4 | X8: 163.9 | Y8: 169.5 | Z8: 173.1 | AA8: 175.1 | AB8: 173.6 | AC8: 171.4 | AD8: 174.1 | AE8: 175.8 | AF8: 170.1 | AG8: 168.6 | AH8: 169.2 | AI8: 171.7 | AJ8: 161.1 | AK8: 163.9 | AL8: 163.1 | AM8: 162.7 | AN8: 167 | AO8: 166.3 | AP8: 166.4 | AQ8: 167.2 | AR8: 170.5 | AS8: 171.3 | AT8: 172.9 | AU8: 173.4 | AV8: 169.9 | AW8: 166.9 | AX8: 159.8 | AY8: 159.3 | AZ8: 159.5 | BA8: 156.7 | BB8: 152.7 | BC8: 152.4 | BD8: 153.3 | BE8: 150.2 | BF8: 151.1 | BG8: 149.6 | BH8: 147.4 | BI8: 146.6 | BJ8: 143.2 | BK8: 141.6 | BL8: 141.9 | BM8: 140.3 | BN8: 139.1 | BO8: 140.6 | BP8: 141.6 | BQ8: 140.5 | BR8: 141 | BS8: 141.7 | BT8: 142.9 | BU8: 143.1 | BV8: 142.2 | BW8: 141.2 | BX8: 143.2 | BY8: 144 | BZ8: 134.2 | CA8: 136.1 | CB8: 133.8 | CC8: 131.9 | CD8: 130.1 | CE8: 131.2 | CF8: 126.3 | CG8: 129.2 | CH8: 128.3 | CI8: 129 | CJ8: 126.2
A9: Brennschnitzel | B9: franko Kunde | C9: [Fr./SRm] | D9: 0 | K9: 30.2 | L9: 28.3 | M9: 25.8 | N9: 22.1 | O9: 31.5 | P9: 32.1 | Q9: 32.1 | R9: 29.3 | S9: 24.8 | T9: 21.7 | U9: 25.5 | V9: 27.2 | W9: 28.4 | X9: 26.4 | Y9: 24.3 | Z9: 22.1 | AA9: 24.7 | AB9: 25.8 | AC9: 28.6 | AD9: 29.9 | AE9: 30.4 | AF9: 27.3 | AG9: 25.8 | AH9: 26.7 | AI9: 30.7 | AJ9: 27.9 | AK9: 25.4 | AL9: 23.4 | AM9: 25.5 | AN9: 29.9 | AO9: 29.8 | AP9: 30.2 | AQ9: 28.9 | AR9: 29.2 | AS9: 27.1 | AT9: 31 | AU9: 30.2 | AV9: 30.7 | AW9: 28.8 | AX9: 25.1 | AY9: 25.9 | AZ9: 32.1 | BA9: 30.1 | BB9: 28.8 | BC9: 28.6 | BD9: 29.1 | BE9: 31 | BF9: 30.8 | BG9: 29.1 | BH9: 28.7 | BI9: 26.3 | BJ9: 29 | BK9: 27.2 | BL9: 29.2 | BM9: 30.2 | BN9: 30.5 | BO9: 28.5 | BP9: 27 | BQ9: 28 | BR9: 28.9 | BS9: 30 | BT9: 28.2 | BU9: 26.4 | BV9: 26 | BW9: 25.7 | BX9: 26.4 | BY9: 27.7 | BZ9: 26.7 | CA9: 25.2 | CB9: 24 | CC9: 26.6 | CD9: 26.7 | CE9: 25.7 | CF9: 24.3 | CG9: 24.1 | CH9: 23.8 | CI9: 24.6 | CJ9: 22.7
A10: Index Preise Hackschnitzel (ohne Brennschnitzel) | D10: =SUM(D6:D9) -> 100 | E10: =($D6*E6/$BE6+$D7*E7/$BE7+$D8*E8/$BE8+$D9*E9/$BE9)/$D10-1 -> 0.1382351345 | F10: =($D6*F6/$BE6+$D7*F7/$BE7+$D8*F8/$BE8+$D9*F9/$BE9)/$D10-1 -> 0.1369522783 | G10: 0.02983666577 | H10: 0.02332043064 | I10: 0.03424695607 | J10: 0.01853958384 | K10: 0.1101354809 | L10: 0.08708976057 | M10: 0.08141816847 | N10: 0.07174552173 | O10: 0.02264325956 | P10: 0.04176794971 | Q10: -0.007092548732 | R10: -0.003307667739 | S10: 0.03834327534 | T10: 0.03989940559 | U10: 0.01020930557 | V10: 0.01373523143 | W10: 0.0880740069 | X10: 0.0797063524 | Y10: 0.08535000922 | Z10: 0.1258109489 | AA10: 0.1298866893 | AB10: 0.1569072926 | AC10: 0.1126688951 | AD10: 0.1452820417 | AE10: 0.1588289681 | AF10: 0.1202056439 | AG10: 0.05292015637 | AH10: 0.0470697002 | AI10: 0.05079903798 | AJ10: 0.0280196292 | AK10: 0.02791941995 | AL10: 0.02000234637 | AM10: 0.01685134004 | AN10: 0.03406275339 | AO10: 0.05046045243 | AP10: 0.05522749527 | AQ10: 0.06193438059 | AR10: 0.07458854388 | AS10: 0.0667864591 | AT10: 0.09692714004 | AU10: 0.1098839489 | AV10: 0.09534841312 | AW10: 0.06616437058 | AX10: 0.01761927943 | AY10: 0.008288605669 | AZ10: 0.02487695491 | BA10: 0.00764737456 | BB10: -0.01621883498 | BC10: -0.005937903688 | BD10: 0.01259028803 | BE10: 0 | BF10: 0.004221657944 | BG10: -0.001604250368 | BH10: -0.01521407647 | BI10: -0.01345850332 | BJ10: =($D6*BJ6/$BE6+$D7*BJ7/$BE7+$D8*BJ8/$BE8+$D9*BJ9/$BE9)/$D10-1 -> -0.02463519117 | BK10: -0.03442282671 | BL10: =($D6*BL6/$BE6+$D7*BL7/$BE7+$D8*BL8/$BE8+$D9*BL9/$BE9)/$D10-1 -> -0.02556090086 | BM10: -0.05167057404 | BN10: =($D6*BN6/$BE6+$D7*BN7/$BE7+$D8*BN8/$BE8+$D9*BN9/$BE9)/$D10-1 -> -0.051455376 | BO10: -0.03877764044 | BP10: =($D6*BP6/$BE6+$D7*BP7/$BE7+$D8*BP8/$BE8+$D9*BP9/$BE9)/$D10-1 -> -0.01910854099 | BQ10: -0.04636550277 | BR10: =($D6*BR6/$BE6+$D7*BR7/$BE7+$D8*BR8/$BE8+$D9*BR9/$BE9)/$D10-1 -> -0.04650503942 | BS10: -0.03690805408 | BT10: =($D6*BT6/$BE6+$D7*BT7/$BE7+$D8*BT8/$BE8+$D9*BT9/$BE9)/$D10-1 -> -0.01596489111 | BU10: -0.006228369114 | BV10: =($D6*BV6/$BE6+$D7*BV7/$BE7+$D8*BV8/$BE8+$D9*BV9/$BE9)/$D10-1 -> -0.0396659739 | BW10: -0.06275877214 | BX10: =($D6*BX6/$BE6+$D7*BX7/$BE7+$D8*BX8/$BE8+$D9*BX9/$BE9)/$D10-1 -> -0.0572748368 | BY10: -0.04754469567 | BZ10: =($D6*BZ6/$BE6+$D7*BZ7/$BE7+$D8*BZ8/$BE8+$D9*BZ9/$BE9)/$D10-1 -> -0.07127436198 | CA10: -0.07841704866 | CB10: -0.08067431627 | CC10: =($D6*CC6/$BE6+$D7*CC7/$BE7+$D8*CC8/$BE8+$D9*CC9/$BE9)/$D10-1 -> -0.1255209984 | CD10: -0.1952214571 | CE10: =($D6*CE6/$BE6+$D7*CE7/$BE7+$D8*CE8/$BE8+$D9*CE9/$BE9)/$D10-1 -> -0.184286533 | CF10: -0.1841617759 | CG10: =($D6*CG6/$BE6+$D7*CG7/$BE7+$D8*CG8/$BE8+$D9*CG9/$BE9)/$D10-1 -> -0.1877549644 | CH10: -0.2502149391 | CI10: =($D6*CI6/$BE6+$D7*CI7/$BE7+$D8*CI8/$BE8+$D9*CI9/$BE9)/$D10-1 -> -0.2740673447 | CJ10: -0.2832393392
A11: Schwarten/Spreissel | B11: ab Werk | C11: [Fr./Rm] | D11: 30 | E11: 15 | F11: 14.6 | G11: 15.5 | H11: 15.3 | I11: 15.1 | J11: 14.6 | K11: 15.7 | L11: 14.9 | M11: 15.4 | N11: 15.4 | O11: 15.8 | P11: 15.5 | Q11: 15.5 | R11: 14.6 | S11: 14.8 | T11: 14.9 | U11: 14.6 | V11: 14.7 | W11: 15.2 | X11: 15.4 | Y11: 16 | Z11: 17.2 | AA11: 17.3 | AB11: 16.9 | AC11: 17.8 | AD11: 17.9 | AE11: 17.4 | AF11: 16.7 | AG11: 16.2 | AH11: 15.8 | AI11: 16.5 | AJ11: 15.7 | AK11: 15.4 | AL11: 15.4 | AM11: 15.7 | AN11: 16.3 | AO11: 16.3 | AP11: 16.5 | AQ11: 16.2 | AR11: 16.4 | AS11: 16.6 | AT11: 17.1 | AU11: 17.7 | AV11: 17.6 | AW11: 17.4 | AX11: 15.7 | AY11: 15.9 | AZ11: 17.3 | BA11: 16.4 | BB11: 15 | BC11: 14.9 | BD11: 15 | BE11: 14.7 | BF11: 14.8 | BG11: 14.5 | BH11: 13.9 | BI11: 14.5 | BJ11: 15.1 | BK11: 15.4 | BL11: 15.3 | BM11: 15.5 | BN11: 15.7 | BO11: 15.9 | BP11: 16.4 | BQ11: 16.3 | BR11: 16.4 | BS11: 16.7 | BT11: 17.1 | BU11: 17.6 | BV11: 17.2 | BW11: 17.4 | BX11: 16.8 | BY11: 17.2 | BZ11: 16.7 | CA11: 16.8 | CB11: 16.7 | CC11: 16.5 | CD11: 16.3 | CE11: 16.7 | CF11: 16.9 | CG11: 17 | CH11: 16.9 | CI11: 16.7 | CJ11: 16.6
B12: franko Werk | C12: [Fr./t atro] | D12: 70 | E12: 104 | F12: 103.5 | G12: 104.3 | H12: 101.1 | I12: 103 | J12: 103.2 | K12: 104.6 | L12: 107.3 | M12: 105.1 | N12: 106.4 | O12: 105.5 | P12: 104.3 | Q12: 99.4 | R12: 101.6 | S12: 98.9 | T12: 98.8 | U12: 99.5 | V12: 100.3 | W12: 101.5 | X12: 102.1 | Y12: 104.4 | Z12: 105.3 | AA12: 105.8 | AB12: 103.8 | AC12: 104.9 | AD12: 107.1 | AE12: 106.6 | AF12: 102.7 | AG12: 104.3 | AH12: 101.5 | AI12: 104.2 | AJ12: 102.9 | AK12: 103.8 | AL12: 105.5 | AM12: 104.8 | AN12: 103.8 | AO12: 104.6 | AP12: 105.6 | AQ12: 104.2 | AR12: 104.3 | AS12: 104.5 | AT12: 106.3 | AU12: 108.3 | AV12: 104.6 | AW12: 105.3 | AX12: 104.1 | AY12: 105.3 | AZ12: 107.1 | BA12: 105.3 | BB12: 103.8 | BC12: 102.1 | BD12: 102.5 | BE12: 102 | BF12: 100.2 | BG12: 98.4 | BH12: 98.5 | BI12: 100.2 | BJ12: 100.8 | BK12: 100.3 | BL12: 99.1 | BM12: 99.3 | BN12: 98.8 | BO12: 100.7 | BP12: 102.2 | BQ12: 102.5 | BR12: 103.5 | BS12: 100.9 | BT12: 100.4 | BU12: 100.3 | BV12: 100.5 | BW12: 101.2 | BX12: 102.5 | BY12: 103.6 | BZ12: 100.9 | CA12: 99.5 | CB12: 98.6 | CC12: 98.3 | CD12: 97.6 | CE12: 99 | CF12: 99.2 | CG12: 99.8 | CH12: 98.8 | CI12: 98.7 | CJ12: 99.8
A13: Index Preise Schwarten/Spreissel | D13: =SUM(D11:D12) -> 100 | E13: =($D11*E11/$BE11+$D12*E12/$BE12)/$D13-1 -> 0.01984793918 | F13: =($D11*F11/$BE11+$D12*F12/$BE12)/$D13-1 -> 0.008253301321 | G13: 0.03211084434 | H13: 0.006068427371 | I13: 0.0150260104 | J13: 0.006194477791 | K13: 0.03825130052 | L13: 0.04045418167 | M13: 0.03556022409 | N13: 0.04448179272 | O13: 0.04646858743 | P13: 0.03211084434 | Q13: -0.001516606643 | R13: -0.004785914366 | S13: -0.01923369348 | T13: -0.01787915166 | U13: -0.01919767907 | V13: -0.01166666667 | W13: 0.006772709084 | X13: 0.0149719888 | Y13: 0.04300120048 | Z13: 0.07366746699 | AA13: 0.07913965586 | AB13: 0.05725090036 | AC13: 0.08316726691 | AD13: 0.1003061224 | AE13: 0.08667066827 | AF13: 0.0456202481 | AG13: 0.04639655862 | AH13: 0.01901760704 | AI13: 0.05183273309 | AJ13: 0.02658463385 | AK13: 0.02663865546 | AL13: 0.03830532213 | AM13: 0.03962384954 | AN13: 0.0450060024 | AO13: 0.05049619848 | AP13: 0.06144057623 | AQ13: 0.04571028411 | AR13: 0.05047819128 | AS13: 0.05593237295 | AT13: 0.07848939576 | AU13: 0.1044597839 | AV13: 0.07702681072 | AW13: 0.07774909964 | AX13: 0.03481992797 | AY13: 0.04713685474 | AZ13: 0.08806122449 | BA13: 0.05734093637 | BB13: 0.01847539016 | BC13: 0.004767907163 | BD13: 0.009553821529 | BE13: 0 | BF13: -0.01031212485 | BG13: -0.02878751501 | BH13: -0.04034613846 | BI13: -0.01643457383 | BJ13: =($D11*BJ11/$BE11+$D12*BJ12/$BE12)/$D13-1 -> -7.202881152e-05 | BK13: 0.002619047619 | BL13: =($D11*BL11/$BE11+$D12*BL12/$BE12)/$D13-1 -> -0.007657062825 | BM13: -0.002202881152 | BN13: =($D11*BN11/$BE11+$D12*BN12/$BE12)/$D13-1 -> -0.001552621048 | BO13: 0.01556822729 | BP13: =($D11*BP11/$BE11+$D12*BP12/$BE12)/$D13-1 -> 0.03606642657 | BQ13: 0.03608443377 | BR13: =($D11*BR11/$BE11+$D12*BR12/$BE12)/$D13-1 -> 0.0449879952 | BS13: 0.03326730692 | BT13: =($D11*BT11/$BE11+$D12*BT12/$BE12)/$D13-1 -> 0.03799919968 | BU13: 0.0475170068 | BV13: =($D11*BV11/$BE11+$D12*BV12/$BE12)/$D13-1 -> 0.04072629052 | BW13: 0.04961184474 | BX13: =($D11*BX11/$BE11+$D12*BX12/$BE12)/$D13-1 -> 0.04628851541 | BY13: 0.06200080032 | BZ13: =($D11*BZ11/$BE11+$D12*BZ12/$BE12)/$D13-1 -> 0.03326730692 | CA13: 0.02570028011 | CB13: 0.0174829932 | CC13: =($D11*CC11/$BE11+$D12*CC12/$BE12)/$D13-1 -> 0.01134253701 | CD13: 0.002456982793 | CE13: =($D11*CE11/$BE11+$D12*CE12/$BE12)/$D13-1 -> 0.02022809124 | CF13: 0.02568227291 | CG13: =($D11*CG11/$BE11+$D12*CG12/$BE12)/$D13-1 -> 0.03184073629 | CH13: 0.02293717487 | CI13: =($D11*CI11/$BE11+$D12*CI12/$BE12)/$D13-1 -> 0.01816926771 | CJ13: 0.02367747099
A14: Sägespäne | B14: ab Werk | C14: [Fr./SRm] | D14: 96 | E14: 12.8 | F14: 12.7 | G14: 10.9 | H14: 11.2 | I14: 10.5 | J14: 11.2 | K14: 12 | L14: 12 | M14: 10.6 | N14: 10.4 | O14: 10.7 | P14: 11.5 | Q14: 13.3 | R14: 12.7 | S14: 11.5 | T14: 11.9 | U14: 12.7 | V14: 13.6 | W14: 13.1 | X14: 13.3 | Y14: 13.9 | Z14: 14.6 | AA14: 14.2 | AB14: 14.9 | AC14: 15.4 | AD14: 16.6 | AE14: 16.4 | AF14: 15.3 | AG14: 14.6 | AH14: 14.8 | AI14: 14.7 | AJ14: 14.1 | AK14: 14 | AL14: 14.4 | AM14: 14.3 | AN14: 14.3 | AO14: 14.6 | AP14: 14.9 | AQ14: 15 | AR14: 15.1 | AS14: 15.4 | AT14: 16.1 | AU14: 16.8 | AV14: 16.3 | AW14: 16.4 | AX14: 15.5 | AY14: 15.3 | AZ14: 15 | BA14: 14.6 | BB14: 14 | BC14: 13.6 | BD14: 13.9 | BE14: 13.8 | BF14: 14 | BG14: 13.9 | BH14: 13.5 | BI14: 13.7 | BJ14: 14 | BK14: 14.1 | BL14: 14.3 | BM14: 14.5 | BN14: 14.3 | BO14: 14.6 | BP14: 14.7 | BQ14: 14.6 | BR14: 14.8 | BS14: 14.5 | BT14: 14.2 | BU14: 14.5 | BV14: 14.1 | BW14: 14.7 | BX14: 15.1 | BY14: 15.3 | BZ14: 14.5 | CA14: 14.1 | CB14: 13.8 | CC14: 13.4 | CD14: 13 | CE14: 12.6 | CF14: 12.8 | CG14: 12 | CH14: 10.9 | CI14: 10.9 | CJ14: 11.2
B15: abgesaugt ab Werk | C15: [Fr./SRm] | D15: 4 | E15: 5.4 | F15: 6.1 | G15: 5.5 | H15: 5.2 | I15: 5.4 | J15: 5.4 | K15: 5.5 | L15: 5.8 | M15: 5.3 | N15: 5.3 | O15: 5.5 | P15: 5.6 | Q15: 6.2 | R15: 5.8 | S15: 5 | T15: 5 | U15: 5.6 | V15: 5.9 | W15: 5.4 | X15: 5.9 | Y15: 6 | Z15: 6.1 | AA15: 6 | AB15: 5.7 | AC15: 6.1 | AD15: 6.6 | AE15: 6.9 | AF15: 7.2 | AG15: 6.7 | AH15: 6.7 | AI15: 6.2 | AJ15: 6 | AK15: 5.8 | AL15: 5.5 | AM15: 6.3 | AN15: 6.2 | AO15: 6.5 | AP15: 6.3 | AQ15: 6.5 | AR15: 6.5 | AS15: 6.8 | AT15: 7.4 | AU15: 8.1 | AV15: 7.7 | AW15: 7.4 | AX15: 7.5 | AY15: 7.7 | AZ15: 7.4 | BA15: 7.2 | BB15: 7 | BC15: 6.4 | BD15: 5.8 | BE15: 5.6 | BF15: 5.7 | BG15: 5.5 | BH15: 5.7 | BI15: 5.8 | BJ15: 5.4 | BK15: 5.5 | BL15: 5.7 | BM15: 5.9 | BN15: 6.1 | BO15: 5.9 | BP15: 6.1 | BQ15: 5.7 | BR15: 5.4 | BS15: 5.3 | BT15: 5.4 | BU15: 5.6 | BV15: 5.7 | BW15: 5.6 | BX15: 5.4 | BY15: 5.6 | BZ15: 5.5 | CA15: 5.4 | CB15: 4.9 | CC15: 4.7 | CD15: 4.9 | CE15: 5.4 | CF15: 4.6 | CG15: 4.7 | CH15: 4.3 | CI15: 4.7 | CJ15: 4.8
A16: Index Preise Sägespäne | D16: =SUM(D14:D15) -> 100 | E16: =($D14*E14/$BE14+$D15*E15/$BE15)/$D16-1 -> -0.07099378882 | F16: =($D14*F14/$BE14+$D15*F15/$BE15)/$D16-1 -> -0.07295031056 | G16: -0.2024534161 | H16: -0.1837267081 | I16: -0.2309937888 | J16: -0.1822981366 | K16: -0.125931677 | L16: -0.1237888199 | M16: -0.2247515528 | N16: -0.2386645963 | O16: -0.2163664596 | P16: -0.16 | Q16: -0.03049689441 | R16: -0.0750931677 | S16: -0.1642857143 | T16: -0.1364596273 | U16: -0.07652173913 | V16: -0.01177018634 | W16: -0.0501242236 | X16: -0.03263975155 | Y16: 0.009813664596 | Z16: 0.05922360248 | AA16: 0.03068322981 | AB16: 0.07723602484 | AC16: 0.1148757764 | AD16: 0.2019254658 | AE16: 0.1901552795 | AF16: 0.1157763975 | AG16: 0.06350931677 | AH16: 0.07742236025 | AI16: 0.06689440994 | AJ16: 0.02372670807 | AK16: 0.01534161491 | AL16: 0.04102484472 | AM16: 0.0397826087 | AN16: 0.03906832298 | AO16: 0.06208074534 | AP16: 0.08152173913 | AQ16: 0.0899068323 | AR16: 0.09686335404 | AS16: 0.1198757764 | AT16: 0.1728571429 | AU16: 0.226552795 | AV16: 0.1889130435 | AW16: 0.1937267081 | AX16: 0.1318322981 | AY16: 0.1193478261 | AZ16: 0.09633540373 | BA16: 0.06708074534 | BB16: 0.02391304348 | BC16: -0.008198757764 | BD16: 0.008385093168 | BE16: 0 | BF16: 0.01462732919 | BG16: 0.006242236025 | BH16: -0.0201552795 | BI16: -0.005527950311 | BJ16: =($D14*BJ14/$BE14+$D15*BJ15/$BE15)/$D16-1 -> 0.01248447205 | BK16: 0.0201552795 | BL16: =($D14*BL14/$BE14+$D15*BL15/$BE15)/$D16-1 -> 0.03549689441 | BM16: 0.05083850932 | BN16: =($D14*BN14/$BE14+$D15*BN15/$BE15)/$D16-1 -> 0.03835403727 | BO16: 0.05779503106 | BP16: =($D14*BP14/$BE14+$D15*BP15/$BE15)/$D16-1 -> 0.06618012422 | BQ16: 0.05636645963 | BR16: =($D14*BR14/$BE14+$D15*BR15/$BE15)/$D16-1 -> 0.06813664596 | BS16: 0.04655279503 | BT16: =($D14*BT14/$BE14+$D15*BT15/$BE15)/$D16-1 -> 0.02639751553 | BU16: 0.04869565217 | BV16: =($D14*BV14/$BE14+$D15*BV15/$BE15)/$D16-1 -> 0.02158385093 | BW16: 0.06260869565 | BX16: =($D14*BX14/$BE14+$D15*BX15/$BE15)/$D16-1 -> 0.08900621118 | BY16: 0.1043478261 | BZ16: =($D14*BZ14/$BE14+$D15*BZ15/$BE15)/$D16-1 -> 0.04798136646 | CA16: 0.01944099379 | CB16: -0.005 | CC16: =($D14*CC14/$BE14+$D15*CC15/$BE15)/$D16-1 -> -0.03425465839 | CD16: -0.06065217391 | CE16: =($D14*CE14/$BE14+$D15*CE15/$BE15)/$D16-1 -> -0.0849068323 | CF16: -0.07670807453 | CG16: =($D14*CG14/$BE14+$D15*CG15/$BE15)/$D16-1 -> -0.1316459627 | CH16: -0.2110248447 | CI16: =($D14*CI14/$BE14+$D15*CI15/$BE15)/$D16-1 -> -0.2081677019 | CJ16: -0.1865838509
A17: Hobelspäne | B17: ab Werk | C17: [Fr./SRm] | D17: 65 | E17: 9.1 | F17: 8.2 | G17: 7.6 | H17: 7.2 | I17: 8.2 | J17: 8.4 | K17: 7.6 | L17: 7.8 | M17: 7.7 | N17: 8.1 | O17: 8.8 | P17: 8.9 | Q17: 9.5 | R17: 10.2 | S17: 10.7 | T17: 11.8 | U17: 12.9 | V17: 13.2 | W17: 12.3 | X17: 12.5 | Y17: 12.3 | Z17: 11 | AA17: 11.4 | AB17: 12.1 | AC17: 12.3 | AD17: 12.7 | AE17: 12.1 | AF17: 11.6 | AG17: 10.4 | AH17: 10.9 | AI17: 11.5 | AJ17: 11 | AK17: 10.3 | AL17: 10.5 | AM17: 9.9 | AN17: 10.3 | AO17: 10.9 | AP17: 11.2 | AQ17: 11.2 | AR17: 10.8 | AS17: 10.9 | AT17: 10.7 | AU17: 11.2 | AV17: 11.2 | AW17: 10.9 | AX17: 10.8 | AY17: 11 | AZ17: 11 | BA17: 10.3 | BB17: 9.9 | BC17: 10 | BD17: 10.1 | BE17: 10 | BF17: 9.9 | BG17: 9.8 | BH17: 9.4 | BI17: 9.6 | BJ17: 9.9 | BK17: 10 | BL17: 10.2 | BM17: 10.5 | BN17: 10.2 | BO17: 10.5 | BP17: 10.8 | BQ17: 10.6 | BR17: 10 | BS17: 9.7 | BT17: 9.9 | BU17: 9.7 | BV17: 9.7 | BW17: 9.4 | BX17: 9.4 | BY17: 9.4 | BZ17: 8.9 | CA17: 8.4 | CB17: 9.2 | CC17: 9.3 | CD17: 10.2 | CE17: 9.1 | CF17: 9 | CG17: 8.7 | CH17: 8.3 | CI17: 8.4 | CJ17: 8.3
B18: abgesaugt ab Werk | C18: [Fr./SRm] | D18: 35 | E18: 5.8 | F18: 5.3 | G18: 4.5 | H18: 4 | I18: 4.9 | J18: 4.7 | K18: 4.4 | L18: 4.8 | M18: 4.7 | N18: 4.7 | O18: 4.9 | P18: 5 | Q18: 5.9 | R18: 6.1 | S18: 5.9 | T18: 6.3 | U18: 6.6 | V18: 6.8 | W18: 6.6 | X18: 6.4 | Y18: 6.7 | Z18: 6.9 | AA18: 7.3 | AB18: 7.1 | AC18: 6.8 | AD18: 6.7 | AE18: 6.3 | AF18: 6.3 | AG18: 6.2 | AH18: 6.7 | AI18: 6.9 | AJ18: 7.1 | AK18: 6.4 | AL18: 6 | AM18: 5.5 | AN18: 5.4 | AO18: 5.7 | AP18: 6.3 | AQ18: 6.4 | AR18: 6.2 | AS18: 6.7 | AT18: 6.7 | AU18: 7 | AV18: 7 | AW18: 6.7 | AX18: 5.7 | AY18: 5.8 | AZ18: 5.5 | BA18: 5.1 | BB18: 5.2 | BC18: 5.4 | BD18: 5.7 | BE18: 5.5 | BF18: 5.4 | BG18: 5.6 | BH18: 5.3 | BI18: 5.1 | BJ18: 5 | BK18: 5.2 | BL18: 5.1 | BM18: 5.3 | BN18: 5.1 | BO18: 5.1 | BP18: 5.2 | BQ18: 5.6 | BR18: 5.8 | BS18: 5.7 | BT18: 6 | BU18: 5.5 | BV18: 5.2 | BW18: 5.5 | BX18: 5.7 | BY18: 5.6 | BZ18: 5.3 | CA18: 5.3 | CB18: 5.3 | CC18: 5.4 | CD18: 4.8 | CE18: 4.9 | CF18: 4.9 | CG18: 4.1 | CH18: 4.3 | CI18: 4.6 | CJ18: 4.7
A19: Index Preise Hobelspäne | D19: =SUM(D17:D18) -> 100 | E19: =($D17*E17/$BE17+$D18*E18/$BE18)/$D19-1 -> -0.03940909091 | F19: =($D17*F17/$BE17+$D18*F18/$BE18)/$D19-1 -> -0.1297272727 | G19: -0.2196363636 | H19: -0.2774545455 | I19: -0.1551818182 | J19: -0.1549090909 | K19: -0.226 | L19: -0.1875454545 | M19: -0.2004090909 | N19: -0.1744090909 | O19: -0.1161818182 | P19: -0.1033181818 | Q19: -0.007045454545 | R19: 0.05118181818 | S19: 0.07095454545 | T19: 0.1679090909 | U19: 0.2585 | V19: 0.2907272727 | W19: 0.2195 | X19: 0.2197727273 | Y19: 0.2258636364 | Z19: 0.1540909091 | AA19: 0.2055454545 | AB19: 0.2383181818 | AC19: 0.2322272727 | AD19: 0.2518636364 | AE19: 0.1874090909 | AF19: 0.1549090909 | AG19: 0.07054545455 | AH19: 0.1348636364 | AI19: 0.1865909091 | AJ19: 0.1668181818 | AK19: 0.07677272727 | AL19: 0.06431818182 | AM19: -0.0065 | AN19: 0.01313636364 | AO19: 0.07122727273 | AP19: 0.1289090909 | AQ19: 0.1352727273 | AR19: 0.09654545455 | AS19: 0.1348636364 | AT19: 0.1218636364 | AU19: 0.1734545455 | AV19: 0.1734545455 | AW19: 0.1348636364 | AX19: 0.06472727273 | AY19: 0.08409090909 | AZ19: 0.065 | BA19: -0.005954545455 | BB19: -0.02559090909 | BC19: -0.006363636364 | BD19: 0.01922727273 | BE19: 0 | BF19: -0.01286363636 | BG19: -0.006636363636 | BH19: -0.05172727273 | BI19: -0.05145454545 | BJ19: =($D17*BJ17/$BE17+$D18*BJ18/$BE18)/$D19-1 -> -0.03831818182 | BK19: -0.01909090909 | BL19: =($D17*BL17/$BE17+$D18*BL18/$BE18)/$D19-1 -> -0.01245454545 | BM19: 0.01977272727 | BN19: =($D17*BN17/$BE17+$D18*BN18/$BE18)/$D19-1 -> -0.01245454545 | BO19: 0.007045454545 | BP19: =($D17*BP17/$BE17+$D18*BP18/$BE18)/$D19-1 -> 0.03290909091 | BQ19: 0.04536363636 | BR19: =($D17*BR17/$BE17+$D18*BR18/$BE18)/$D19-1 -> 0.01909090909 | BS19: -0.006772727273 | BT19: =($D17*BT17/$BE17+$D18*BT18/$BE18)/$D19-1 -> 0.02531818182 | BU19: -0.0195 | BV19: =($D17*BV17/$BE17+$D18*BV18/$BE18)/$D19-1 -> -0.03859090909 | BW19: -0.039 | BX19: =($D17*BX17/$BE17+$D18*BX18/$BE18)/$D19-1 -> -0.02627272727 | BY19: -0.03263636364 | BZ19: =($D17*BZ17/$BE17+$D18*BZ18/$BE18)/$D19-1 -> -0.08422727273 | CA19: -0.1167272727 | CB19: -0.06472727273 | CC19: =($D17*CC17/$BE17+$D18*CC18/$BE18)/$D19-1 -> -0.05186363636 | CD19: -0.03154545455 | CE19: =($D17*CE17/$BE17+$D18*CE18/$BE18)/$D19-1 -> -0.09668181818 | CF19: -0.1031818182 | CG19: =($D17*CG17/$BE17+$D18*CG18/$BE18)/$D19-1 -> -0.1735909091 | CH19: -0.1868636364 | CI19: =($D17*CI17/$BE17+$D18*CI18/$BE18)/$D19-1 -> -0.1612727273 | CJ19: -0.1614090909
A20: Rinde | B20: ab Werk | C20: [Fr./SRm] | D20: 100 | E20: 5.2 | F20: 4.9 | G20: 4.4 | H20: 4 | I20: 4.3 | J20: 4.8 | K20: 4 | L20: 4.4 | M20: 4.4 | N20: 4.4 | O20: 4.6 | P20: 4.7 | Q20: 4.6 | R20: 5 | S20: 5.2 | T20: 5.6 | U20: 5.7 | V20: 5.5 | W20: 4.8 | X20: 5.5 | Y20: 5.7 | Z20: 5.3 | AA20: 5.7 | AB20: 5.3 | AC20: 5.4 | AD20: 5.8 | AE20: 6.1 | AF20: 6.3 | AG20: 5.7 | AH20: 6.3 | AI20: 6 | AJ20: 6.1 | AK20: 6.2 | AL20: 5.9 | AM20: 5.6 | AN20: 5.6 | AO20: 5.8 | AP20: 5.9 | AQ20: 6.1 | AR20: 5.9 | AS20: 6.1 | AT20: 6.3 | AU20: 6.6 | AV20: 6.7 | AW20: 6.6 | AX20: 6.3 | AY20: 6.2 | AZ20: 6.5 | BA20: 6.4 | BB20: 5.9 | BC20: 5.9 | BD20: 6.1 | BE20: 5.9 | BF20: 5.6 | BG20: 5.7 | BH20: 5.6 | BI20: 5.8 | BJ20: 5.9 | BK20: 6.4 | BL20: 6.2 | BM20: 6.4 | BN20: 6.5 | BO20: 6.6 | BP20: 6.7 | BQ20: 6.2 | BR20: 6.5 | BS20: 6.7 | BT20: 6.8 | BU20: 6.1 | BV20: 6 | BW20: 5.8 | BX20: 5.7 | BY20: 5.5 | BZ20: 5.3 | CA20: 5.5 | CB20: 5.8 | CC20: 5.9 | CD20: 5.3 | CE20: 5.4 | CF20: 5.6 | CG20: 5.9 | CH20: 5.8 | CI20: 5.9 | CJ20: 5.8
A21: Index Preis Rinde | D21: =SUM(D20) -> 100 | E21: =($D20*E20/$BE20)/$D21-1 -> -0.1186440678 | F21: =($D20*F20/$BE20)/$D21-1 -> -0.1694915254 | G21: -0.2542372881 | H21: -0.3220338983 | I21: -0.2711864407 | J21: -0.186440678 | K21: -0.3220338983 | L21: -0.2542372881 | M21: -0.2542372881 | N21: -0.2542372881 | O21: -0.2203389831 | P21: -0.2033898305 | Q21: -0.2203389831 | R21: -0.1525423729 | S21: -0.1186440678 | T21: -0.05084745763 | U21: -0.03389830508 | V21: -0.06779661017 | W21: -0.186440678 | X21: -0.06779661017 | Y21: -0.03389830508 | Z21: -0.1016949153 | AA21: -0.03389830508 | AB21: -0.1016949153 | AC21: -0.08474576271 | AD21: -0.01694915254 | AE21: 0.03389830508 | AF21: 0.06779661017 | AG21: -0.03389830508 | AH21: 0.06779661017 | AI21: 0.01694915254 | AJ21: 0.03389830508 | AK21: 0.05084745763 | AL21: 0 | AM21: -0.05084745763 | AN21: -0.05084745763 | AO21: -0.01694915254 | AP21: 0 | AQ21: 0.03389830508 | AR21: 0 | AS21: 0.03389830508 | AT21: 0.06779661017 | AU21: 0.1186440678 | AV21: 0.1355932203 | AW21: 0.1186440678 | AX21: 0.06779661017 | AY21: 0.05084745763 | AZ21: 0.1016949153 | BA21: 0.08474576271 | BB21: 0 | BC21: 0 | BD21: 0.03389830508 | BE21: 0 | BF21: -0.05084745763 | BG21: -0.03389830508 | BH21: -0.05084745763 | BI21: =($D20*BI20/$BE20)/$D21-1 -> -0.01694915254 | BJ21: 0 | BK21: 0.08474576271 | BL21: 0.05084745763 | BM21: 0.08474576271 | BN21: 0.1016949153 | BO21: 0.1186440678 | BP21: =($D20*BP20/$BE20)/$D21-1 -> 0.1355932203 | BQ21: 0.05084745763 | BR21: =($D20*BR20/$BE20)/$D21-1 -> 0.1016949153 | BS21: 0.1355932203 | BT21: =($D20*BT20/$BE20)/$D21-1 -> 0.1525423729 | BU21: 0.03389830508 | BV21: =($D20*BV20/$BE20)/$D21-1 -> 0.01694915254 | BW21: -0.01694915254 | BX21: =($D20*BX20/$BE20)/$D21-1 -> -0.03389830508 | BY21: -0.06779661017 | BZ21: =($D20*BZ20/$BE20)/$D21-1 -> -0.1016949153 | CA21: -0.06779661017 | CB21: -0.01694915254 | CC21: =($D20*CC20/$BE20)/$D21-1 -> 0 | CD21: -0.1016949153 | CE21: =($D20*CE20/$BE20)/$D21-1 -> -0.08474576271 | CF21: -0.05084745763 | CG21: =($D20*CG20/$BE20)/$D21-1 -> 0 | CH21: -0.01694915254 | CI21: =($D20*CI20/$BE20)/$D21-1 -> 0 | CJ21: -0.01694915254

Sheet Preise (hidden)
A1: Sortiment | C1: Jan.-Feb. | D1: März-Apr. | E1: Mai-Juni | F1: Juli-Aug. | G1: Sept.-Okt. | H1: Nov.-Dez.
A2: (Falls keine Angaben alle Schnitthölzer FI/TA) | C2: [Fr./m3] | D2: [Fr./m3] | E2: [Fr./m3] | F2: [Fr./m3] | G2: [Fr./m3] | H2: [Fr./m3]
A3: Vollholz | B3: C24 N, bis 8m, herzgetrennt | C3: =Schnittholzpreise!CD7 -> 385 | D3: =Schnittholzpreise!CE7 -> 387 | E3: =Schnittholzpreise!CF7 -> 387 | F3: =Schnittholzpreise!CG7 -> 384 | G3: =Schnittholzpreise!CH7 -> 385 | H3: =Schnittholzpreise!CI7 -> 388
A4: Dachlatten | B4: lufttrocken | C4: =Schnittholzpreise!CD10 -> 372 | D4: =Schnittholzpreise!CE10 -> 372 | E4: =Schnittholzpreise!CF10 -> 366 | F4: =Schnittholzpreise!CG10 -> 363 | G4: =Schnittholzpreise!CH10 -> 363 | H4: =Schnittholzpreise!CI10 -> 367
A5: Doppellatten | B5: lufttrocken | C5: =Schnittholzpreise!CD11 -> 370 | D5: =Schnittholzpreise!CE11 -> 369 | E5: =Schnittholzpreise!CF11 -> 361 | F5: =Schnittholzpreise!CG11 -> 360 | G5: =Schnittholzpreise!CH11 -> 360 | H5: =Schnittholzpreise!CI11 -> 365
A6: BSH-Lamellen | B6: C24, N, technisch getrocknet | C6: =Schnittholzpreise!CD12 -> 306 | D6: =Schnittholzpreise!CE12 -> 303 | E6: =Schnittholzpreise!CF12 -> 286 | F6: =Schnittholzpreise!CG12 -> 285 | G6: =Schnittholzpreise!CH12 -> 288 | H6: =Schnittholzpreise!CI12 -> 293
B7: C24, I, technisch getrocknet | C7: =Schnittholzpreise!CD13 -> 246 | D7: =Schnittholzpreise!CE13 -> 246 | E7: =Schnittholzpreise!CF13 -> 240 | F7: =Schnittholzpreise!CG13 -> 240 | G7: =Schnittholzpreise!CH13 -> 242 | H7: =Schnittholzpreise!CI13 -> 249
A8: Index Bauhol | C8: =Schnittholzpreise!CD14 -> 101.3716 | D8: =Schnittholzpreise!CE14 -> 101.2315 | E8: =Schnittholzpreise!CF14 -> 98.9221 | F8: =Schnittholzpreise!CG14 -> 98.4492 | G8: =Schnittholzpreise!CH14 -> 98.823 | H8: =Schnittholzpreise!CI14 -> 100.2955
A9: Schalungskantholz | B9: C16, 8/12, gekappt, frisch | C9: =Schnittholzpreise!CD20 -> 260 | D9: =Schnittholzpreise!CE20 -> 256 | E9: =Schnittholzpreise!CF20 -> 255 | F9: =Schnittholzpreise!CG20 -> 256 | G9: =Schnittholzpreise!CH20 -> 255 | H9: =Schnittholzpreise!CI20 -> 251
A10: Schalbretter | B10: C16, roh, fix breit, frisch | C10: =Schnittholzpreise!CD21 -> 253 | D10: =Schnittholzpreise!CE21 -> 253 | E10: =Schnittholzpreise!CF21 -> 245 | F10: =Schnittholzpreise!CG21 -> 246 | G10: =Schnittholzpreise!CH21 -> 248 | H10: =Schnittholzpreise!CI21 -> 253
A11: Gerüstbretter | B11: C24, fix breit, gekappt, frisch | C11: =Schnittholzpreise!CD22 -> 285 | D11: =Schnittholzpreise!CE22 -> 285 | E11: =Schnittholzpreise!CF22 -> 278 | F11: =Schnittholzpreise!CG22 -> 283 | G11: =Schnittholzpreise!CH22 -> 282 | H11: =Schnittholzpreise!CI22 -> 281
A12: Index Preise Arbeitsmittel | C12: =Schnittholzpreise!CD23 -> 97.3207 | D12: =Schnittholzpreise!CE23 -> 96.7687 | E12: =Schnittholzpreise!CF23 -> 94.9227 | F12: =Schnittholzpreise!CG23 -> 95.7559 | G12: =Schnittholzpreise!CH23 -> 95.7238 | H12: =Schnittholzpreise!CI23 -> 95.6118
A13: Kistenbretter | B13: 5, Breitware, lufttrocken | C13: =Schnittholzpreise!CD36 -> 224 | D13: =Schnittholzpreise!CE36 -> 220 | E13: =Schnittholzpreise!CF36 -> 220 | F13: =Schnittholzpreise!CG36 -> 218 | G13: =Schnittholzpreise!CH36 -> 218 | H13: =Schnittholzpreise!CI36 -> 219
A14: Verpackungskantholz | B14: 5, lufttrocken | C14: =Schnittholzpreise!CD37 -> 202 | D14: =Schnittholzpreise!CE37 -> 201 | E14: =Schnittholzpreise!CF37 -> 193 | F14: =Schnittholzpreise!CG37 -> 189 | G14: =Schnittholzpreise!CH37 -> 188 | H14: =Schnittholzpreise!CI37 -> 187
A15: Palettenbretter | B15: 5, frisch | C15: =Schnittholzpreise!CD38 -> 157 | D15: =Schnittholzpreise!CE38 -> 159 | E15: =Schnittholzpreise!CF38 -> 153 | F15: =Schnittholzpreise!CG38 -> 147 | G15: =Schnittholzpreise!CH38 -> 147 | H15: =Schnittholzpreise!CI38 -> 154
A16: Paletten-Kantholz | B16: 5, frisch | C16: =Schnittholzpreise!CD39 -> 161 | D16: =Schnittholzpreise!CE39 -> 164 | E16: =Schnittholzpreise!CF39 -> 167 | F16: =Schnittholzpreise!CG39 -> 167 | G16: =Schnittholzpreise!CH39 -> 168 | H16: =Schnittholzpreise!CI39 -> 158
A17: Index Hpolverpackungs- und paletteware | C17: =Schnittholzpreise!CD40 -> 90.1962 | D17: =Schnittholzpreise!CE40 -> 89.8313 | E17: =Schnittholzpreise!CF40 -> 88.6878 | F17: =Schnittholzpreise!CG40 -> 87.3515 | G17: =Schnittholzpreise!CH40 -> 87.3333 | H17: =Schnittholzpreise!CI40 -> 87.1566
A18: Zuschlag ISPM 15 | B18: (Nicht mengengewichtet) | C18: =Schnittholzpreise!CD46 -> 30 | D18: =Schnittholzpreise!CE46 -> 30 | E18: =Schnittholzpreise!CF46 -> 30 | F18: =Schnittholzpreise!CG46 -> 28 | G18: =Schnittholzpreise!CH46 -> 29 | H18: =Schnittholzpreise!CI46 -> 29
A19: Index Schnittholz BFS | C19: =Schnittholzpreise!CD48 -> 98.4912 | D19: =Schnittholzpreise!CE48 -> 98.1676 | E19: =Schnittholzpreise!CF48 -> 96.1742 | F19: =Schnittholzpreise!CG48 -> 96.094 | G19: =Schnittholzpreise!CH48 -> 96.2665 | H19: =Schnittholzpreise!CI48 -> 96.939
A21: Assortiment | C21: Janv.-Fév. | D21: Mars-Avr. | E21: Mai-Juin | F21: Juill.-Août | G21: Sept.-Oct. | H21: Nov.-Déc.
A22: (Sauf indication, tous les sciage EP/SA) | C22: [Fr./m3] | D22: [Fr./m3] | E22: [Fr./m3] | F22: [Fr./m3] | G22: [Fr./m3] | H22: [Fr./m3]
A23: Bois massif | B23: C24, N, jusqu'à 8m, coeur refendu, frais | C23: =C3 -> 385 | D23: 387 | E23: 387 | F23: 384 | G23: 385 | H23: 388
A24: Lattes à tuiles | B24: séché à l'air | C24: 372 | D24: 372 | E24: 366 | F24: 363 | G24: 363 | H24: 367
A25: Lattes doubles | B25: séché à l'air | C25: 370 | D25: 369 | E25: 361 | F25: 360 | G25: 360 | H25: 365
A26: Lames pour le bois lamellé-collé | B26: C24, N, séché techniquement | C26: 306 | D26: 303 | E26: 286 | F26: 285 | G26: 288 | H26: 293
A27: Lames pour le bois lamellé-collé | B27: C24, I, séché techniquement | C27: 246 | D27: 246 | E27: 240 | F27: 240 | G27: 242 | H27: 249
A28: Indice bois de charpente | C28: 101.3716 | D28: 101.2315 | E28: 98.9221 | F28: 98.4492 | G28: 98.823 | H28: 100.2955
A29: Carrelets de coffrage | B29: C16, 8/12, tronçonné, frais | C29: 260 | D29: 256 | E29: 255 | F29: 256 | G29: 255 | H29: 251
A30: Planches de coffrage | B30: C16, brut, largeur fixe, frais | C30: 253 | D30: 253 | E30: 245 | F30: 246 | G30: 248 | H30: 253
A31: Planches d'échafaudage | B31: C24, largeur fixe, tronçonné, frais | C31: 285 | D31: 285 | E31: 278 | F31: 283 | G31: 282 | H31: 281
A32: Indice prix matériel de chantier | C32: 97.3207 | D32: 96.7687 | E32: 94.9227 | F32: 95.7559 | G32: 95.7238 | H32: 95.6118
A33: Planches pour caisses | B33: 5, grande largeur, séché à l'air | C33: 224 | D33: 220 | E33: 220 | F33: 218 | G33: 218 | H33: 219
A34: Carrelets d'emballage | B34: 5, séché à l'air | C34: 202 | D34: 201 | E34: 193 | F34: 189 | G34: 188 | H34: 187
A35: Planches pour palettes EURO | B35: 5, frais | C35: 157 | D35: 159 | E35: 153 | F35: 147 | G35: 147 | H35: 154
A36: Carrelets pour palettes | B36: 5, frais | C36: 161 | D36: 164 | E36: 167 | F36: 167 | G36: 168 | H36: 158
A37: Indice bois d'emballages et palettes | C37: 90.1962 | D37: 89.8313 | E37: 88.6878 | F37: 87.3515 | G37: 87.3333 | H37: 87.1566
A38: Supplément NIMP 15 | B38: (Non pondéré par le volume) | C38: 30 | D38: 30 | E38: 30 | F38: 28 | G38: 29 | H38: 29
A39: Indice sciage OFS | C39: =C19 -> 98.4912 | D39: 98.1676 | E39: 96.1742 | F39: 96.094 | G39: 96.2665 | H39: 96.939
A43: Sortiment | C43: Einheit | D43: Jan.-Feb. | E43: März-Apr. | F43: Mai-Juni | G43: Juli-Aug. | H43: Sept.-Okt. | I43: Nov.-Dez.
A44: Hackschnitzel | B44: Mit Rinde, ab Werk | C44: [Fr./SRm] | D44: =Restholzpreise!CE6 -> 12.7 | E44: =Restholzpreise!CF6 -> 12.6 | F44: =Restholzpreise!CG6 -> 13 | G44: =Restholzpreise!CH6 -> 11.1 | H44: =Restholzpreise!CI6 -> 11.3 | I44: =Restholzpreise!CJ6 -> 10
B45: Ohne Rinde, ab Werk | C45: [Fr./SRm] | D45: =Restholzpreise!CE7 -> 13.4 | E45: =Restholzpreise!CF7 -> 13.6 | F45: =Restholzpreise!CG7 -> 13.3 | G45: =Restholzpreise!CH7 -> 12.2 | H45: =Restholzpreise!CI7 -> 11.5 | I45: =Restholzpreise!CJ7 -> 11.7
B46: Ohne Rinde, franko | C46: [Fr./t atro] | D46: =Restholzpreise!CE8 -> 131.2 | E46: =Restholzpreise!CF8 -> 126.3 | F46: =Restholzpreise!CG8 -> 129.2 | G46: =Restholzpreise!CH8 -> 128.3 | H46: =Restholzpreise!CI8 -> 129 | I46: =Restholzpreise!CJ8 -> 126.2
A47: Brennschnitzel | B47: Franko Kunde | C47: [Fr./SRm] | D47: =Restholzpreise!CE9 -> 25.7 | E47: =Restholzpreise!CF9 -> 24.3 | F47: =Restholzpreise!CG9 -> 24.1 | G47: =Restholzpreise!CH9 -> 23.8 | H47: =Restholzpreise!CI9 -> 24.6 | I47: =Restholzpreise!CJ9 -> 22.7
A48: Index Hackschnitzel (ohne Brennschnitzel) | D48: =(Restholzpreise!CE10+1)*100 -> 81.5713467 | E48: =(Restholzpreise!CF10+1)*100 -> 81.58382241 | F48: =(Restholzpreise!CG10+1)*100 -> 81.22450356 | G48: =(Restholzpreise!CH10+1)*100 -> 74.97850609 | H48: =(Restholzpreise!CI10+1)*100 -> 72.59326553 | I48: =(Restholzpreise!CJ10+1)*100 -> 71.67606608
A49: Schwarten/Spreissel | B49: Ab Werk | C49: [Fr./SRm] | D49: =Restholzpreise!CE11 -> 16.7 | E49: =Restholzpreise!CF11 -> 16.9 | F49: =Restholzpreise!CG11 -> 17 | G49: =Restholzpreise!CH11 -> 16.9 | H49: =Restholzpreise!CI11 -> 16.7 | I49: =Restholzpreise!CJ11 -> 16.6
B50: Franko Werk | C50: [Fr./t atro] | D50: =Restholzpreise!CE12 -> 99 | E50: =Restholzpreise!CF12 -> 99.2 | F50: =Restholzpreise!CG12 -> 99.8 | G50: =Restholzpreise!CH12 -> 98.8 | H50: =Restholzpreise!CI12 -> 98.7 | I50: =Restholzpreise!CJ12 -> 99.8
A51: Index Schwarten/Spreissel | D51: =(Restholzpreise!CE13+1)*100 -> 102.0228091 | E51: =(Restholzpreise!CF13+1)*100 -> 102.5682273 | F51: =(Restholzpreise!CG13+1)*100 -> 103.1840736 | G51: =(Restholzpreise!CH13+1)*100 -> 102.2937175 | H51: =(Restholzpreise!CI13+1)*100 -> 101.8169268 | I51: =(Restholzpreise!CJ13+1)*100 -> 102.3677471
A52: Sägespäne | B52: Ab Werk | C52: [Fr./SRm] | D52: =Restholzpreise!CE14 -> 12.6 | E52: =Restholzpreise!CF14 -> 12.8 | F52: =Restholzpreise!CG14 -> 12 | G52: =Restholzpreise!CH14 -> 10.9 | H52: =Restholzpreise!CI14 -> 10.9 | I52: =Restholzpreise!CJ14 -> 11.2
B53: Abgesaugt, ab Werk | C53: [Fr./SRm] | D53: =Restholzpreise!CE15 -> 5.4 | E53: =Restholzpreise!CF15 -> 4.6 | F53: =Restholzpreise!CG15 -> 4.7 | G53: =Restholzpreise!CH15 -> 4.3 | H53: =Restholzpreise!CI15 -> 4.7 | I53: =Restholzpreise!CJ15 -> 4.8
A54: Index Sägespäne | D54: =(Restholzpreise!CE16+1)*100 -> 91.50931677 | E54: =(Restholzpreise!CF16+1)*100 -> 92.32919255 | F54: =(Restholzpreise!CG16+1)*100 -> 86.83540373 | G54: =(Restholzpreise!CH16+1)*100 -> 78.89751553 | H54: =(Restholzpreise!CI16+1)*100 -> 79.18322981 | I54: =(Restholzpreise!CJ16+1)*100 -> 81.34161491
A55: Hobelspäne | B55: Ab Werk | C55: [Fr./SRm] | D55: =Restholzpreise!CE17 -> 9.1 | E55: =Restholzpreise!CF17 -> 9 | F55: =Restholzpreise!CG17 -> 8.7 | G55: =Restholzpreise!CH17 -> 8.3 | H55: =Restholzpreise!CI17 -> 8.4 | I55: =Restholzpreise!CJ17 -> 8.3
B56: Abgesaugt, ab Werk | C56: [Fr./SRm] | D56: =Restholzpreise!CE18 -> 4.9 | E56: =Restholzpreise!CF18 -> 4.9 | F56: =Restholzpreise!CG18 -> 4.1 | G56: =Restholzpreise!CH18 -> 4.3 | H56: =Restholzpreise!CI18 -> 4.6 | I56: =Restholzpreise!CJ18 -> 4.7
A57: Index Hobelspäne | D57: =(Restholzpreise!CE19+1)*100 -> 90.33181818 | E57: =(Restholzpreise!CF19+1)*100 -> 89.68181818 | F57: =(Restholzpreise!CG19+1)*100 -> 82.64090909 | G57: =(Restholzpreise!CH19+1)*100 -> 81.31363636 | H57: =(Restholzpreise!CI19+1)*100 -> 83.87272727 | I57: =(Restholzpreise!CJ19+1)*100 -> 83.85909091
A58: Rinde | B58: Ab Werk | C58: [Fr./SRm] | D58: =Restholzpreise!CE20 -> 5.4 | E58: =Restholzpreise!CF20 -> 5.6 | F58: =Restholzpreise!CG20 -> 5.9 | G58: =Restholzpreise!CH20 -> 5.8 | H58: =Restholzpreise!CI20 -> 5.9 | I58: =Restholzpreise!CJ20 -> 5.8
A59: Index Rinde | D59: =(Restholzpreise!CE21+1)*100 -> 91.52542373 | E59: =(Restholzpreise!CF21+1)*100 -> 94.91525424 | F59: =(Restholzpreise!CG21+1)*100 -> 100 | G59: =(Restholzpreise!CH21+1)*100 -> 98.30508475 | H59: =(Restholzpreise!CI21+1)*100 -> 100 | I59: =(Restholzpreise!CJ21+1)*100 -> 98.30508475
A63: Sortiment | C63: Unité | D63: Janv.-Fév. | E63: Mars-Avr. | F63: Mai-Juin | G63: Juill.-Août | H63: Sept.-Oct. | I63: Nov.-Déc.
A64: Plaquettes | B64: En écorce, dép. usine | C64: [Fr./m3 v] | D64: =D44 -> 12.7 | E64: =E44 -> 12.6 | F64: 13 | G64: 11.1 | H64: 11.3 | I64: =I44 -> 10
B65: Sans écorce, dép. usine | C65: [Fr./m3 v] | D65: =D45 -> 13.4 | E65: 13.6 | F65: 13.3 | G65: 12.2 | H65: 11.5 | I65: 11.7
B66: Sans écorce, franco | C66: [Fr./t atro] | D66: 131.2 | E66: 126.3 | F66: 129.2 | G66: 128.3 | H66: 129 | I66: 126.2
A67: plaqu. Énergétiques | B67: Franco client | C67: [Fr./m3 v] | D67: 25.7 | E67: 24.3 | F67: 24.1 | G67: 23.8 | H67: 24.6 | I67: 22.7
A68: Index Hackschnitzel (ohne Brennschnitzel) | D68: =D48 -> 81.5713467 | E68: 81.58382241 | F68: 81.22450356 | G68: 74.97850609 | H68: 72.59326553 | I68: 71.67606608
A69: Couen./Délignures | B69: Départ usine | C69: [Fr./m3 a] | D69: =D49 -> 16.7 | E69: 16.9 | F69: 17 | G69: 16.9 | H69: 16.7 | I69: 16.6
B70: Franco usine | C70: [Fr./t atro] | D70: 99 | E70: 99.2 | F70: 99.8 | G70: 98.8 | H70: 98.7 | I70: 99.8
A71: Index Schwarten/Spreissel | D71: =D51 -> 102.0228091 | E71: 102.5682273 | F71: 103.1840736 | G71: 102.2937175 | H71: 101.8169268 | I71: 102.3677471
A72: Sciure | B72: Départ usine | C72: [Fr./m3 v] | D72: =D52 -> 12.6 | E72: 12.8 | F72: 12 | G72: 10.9 | H72: 10.9 | I72: 11.2
B73: Aspiré, départ usine | C73: [Fr./m3 v] | D73: 5.4 | E73: 4.6 | F73: 4.7 | G73: 4.3 | H73: 4.7 | I73: 4.8
A74: Index Sägespäne | D74: =D54 -> 91.50931677 | E74: 92.32919255 | F74: 86.83540373 | G74: 78.89751553 | H74: 79.18322981 | I74: 81.34161491
A75: Copeaux | B75: Départ usine | C75: [Fr./m3 v] | D75: =D55 -> 9.1 | E75: 9 | F75: 8.7 | G75: 8.3 | H75: 8.4 | I75: 8.3
B76: Aspiré, départ usine | C76: [Fr./m3 v] | D76: 4.9 | E76: 4.9 | F76: 4.1 | G76: 4.3 | H76: 4.6 | I76: 4.7
A77: Index Hobelspäne | D77: =D57 -> 90.33181818 | E77: 89.68181818 | F77: 82.64090909 | G77: 81.31363636 | H77: 83.87272727 | I77: 83.85909091
A78: Écorce | B78: Départ usine | C78: [Fr./m3 v] | D78: =D58 -> 5.4 | E78: 5.6 | F78: 5.9 | G78: 5.8 | H78: 5.9 | I78: 5.8
A79: Index Rinde | D79: =D59 -> 91.52542373 | E79: 94.91525424 | F79: 100 | G79: 98.30508475 | H79: 100 | I79: 98.30508475

Sheet Grafik
B8: Fichte / Epicéa L1 3B
B11: Fichte / Epicéa L1 3C
B12: Tanne / Sapin L1 3C
B14: Fichte / Epicéa D
B21: Konstruktionsholz
B22: Bois de charpente s.l.
B25: BSH-Lamellen N
B26: Lames BLC N
B28: Verpackungskantholz
B29: Carrelets d'emballage
B31: Palettenbretter
B32: Planches pour palettes
B41: Hackschnitzel ohne Rinde
B42: Plaquettes sans écorce
B47: Schwarten/Spreissel
B48: Couenneaux/délignures
B49: Sägespäne / Sciures
